Workbook

Sheet Sheet1
A1: Types of Orgs | B1: Scale | C1: Thematic areas | D1: Ecosystem Map Sector | E1: Ecosystem Map Subcategory | F1: Districts | G1: IASC Sectors | J1: Level of priority | L1: Type of support provided by RIL | M1: Innovation Stage | N1: Matchmaking solicitation | O1: Outcome of MM application | Q1: yes | R1: No action plan | U1: Project | V1: Status
F2: Adjumani | G2: Camp Coordination and Management | J2: Existential -- Org cannot survive without solution | L2: Technical Assistance | M2: ideation | N2: Invited to apply by RIL | O2: Application rejected | Q2: no | R2: Action planned developed | U2: DIF APPLICANT | V2: Active
A3: Academic | B3: Global / Multi-country / Foreign | C3: Cash Transfer Programming/Social Protection/Financial Inclusion | D3: Private Sector | E3: Corporation | F3: Terego | G3: Early Recovery | J3: Project/Programme critical -- project/programme will fail without solution | L3: Referral | M3: prototyping | N3: In-country request for RIL support | O3: Application on hold | R3: Action plan under implementation | U3: GREEN INNOVATION | V3: Inactive
A4: Donor | B4: National | C4: Disability/Inclusivity | D4: Knowledge | E4: Telecom | F4: Isingiro | G4: Education | J4: Prioritized -- Challenge is organizational priority by Sr. Mgmt. | L4: MatchMaker | M4: piloting | N4: Unsolicited web application | O4: Application under review/revision/discussion | R4: Action plan implemented | U4: COVID PRIZE | V4: Unknown
A5: For-profit | B5: Subnational and settlement-level | C5: Disaster Risk Reduction/Emergency Logistics/Early Warning Systems | D5: Implementer | E5: Energy | F5: Kamwenge | G5: Emergency Telecommunications | J5: Not-prioritzed -- Challenge is priority only for individual/team | L5: RIL Funding | M5: scaleup | N5: Other | O5: Application selected for referral/brokering | U5: GREEN INNOVATION AND DIF
A6: NGO | C6: Displacement (refugees and IDPs) | D6: Finance | E6: Social Enterprise | F6: Kikuube | G6: Food Security and Livelihoods | L6: Training | M6: No longer active | O6: Application selected for full Solution Pack | U6: EDUTECH
A7: Public sector | C7: Economic Development | D7: Innovation Support | E7: Startup | F7: Kiryandongo | G7: Health | L7: Tool(s) provided | O7: Application selected for other action | U7: ULEARN
A8: Social Enterprise | C8: Education | D8: Government | E8: Internet Analytics | F8: Kyegegwa | G8: Mutli/cross-sectoral | L8: Funding application support | U8: RLOs-LH
A9: UN | C9: Energy/Environment | E9: Industry | F9: Yumbe | G9: Nutrition | L9: Multiple | U9: LINS
C10: Engineering/Infrastructure | E10: Retailer | F10: Lamwo | G10: Protection | L10: Other | U10: DIF APPLICANT, LINS
C11: Food Security and Agriculture | F11: Obongi | G11: Shelter | U11: ULEARN, LINS
C12: Gender | E12: Advocacy | F12: Madi Okollo | G12: WASH
C13: Health | E13: Training | F13: Kampala
C14: Human Rights/Legal | E14: Policy
C15: Institutional Capacity Development/Ecosystem Support | E15: Data Analytics | F15: Settlements | N15: ULEARN Solicitation | O15: ULEARN Support requested | V15: ULEARN STATUS OF REQUEST
C16: IT/Digital/ICT4D | E16: Research | F16: Adjumani | N16: Website form | O16: Resource Curation | V16: Rejected
C17: Livelihoods / (social) Entrepreneurship | E17: University | F17: Bidibidi | N17: Email request | O17: Resource Development | V17: On hold
C18: Media/Communication | E18: Technical Expertise | F18: Imvepi | N18: Verbal request | O18: Learning Consultation | V18: Under review
C19: Monitoring Evaluation Accountability and Learning (MEAL) | E19: Licensing | F19: Kiryandongo | N19: Through response coordination actor | O19: Learning Discussion | V19: Selected
C20: Multi-sectoral | E20: Media | F20: Kyaka II | N20: U-Learn initiative | O20: Visualisation | V20: Other
C21: Nutrition | F21: Kyangwali | N21: Other | O21: Research
C22: Peacebuilding/Security | F22: Lobule | O22: Other
C23: Protection | E23: Consortium | F23: Nakivale
C24: Shelter and NFIs | E24: Association | F24: Oruchinga
C25: Social Behavioral Change Communication/Community Mobilization | E25: INGO | F25: Palabek
A26: ULEARN subcategories | C26: Water Sanitation and Hygiene (WASH) | E26: LNGO | F26: Palorinya | G26: ULEARN Learning Agenda Themes
A27: Faith Based Organisation | C27: Youth | E27: Campaign | F27: Rhino Camp | G27: Sustainable Livelihoods
A28: Refugee-Led Organisation | E28: Multilateral | F28: Rwamwanja | G28: Private sector & Innovation
A29: Foundations | E29: Coordination | F29: Kampala | G29: Cash & Social Protection
A30: Multilateral Organisations | E30: UN | G30: Accountability to Affected Populations
A31: CBO | E31: Project | G31: Localisation
A32: Not for Profit | G32: Nexus
A33: Private Sector | E33: Micro Finance
A34: Other | E34: Crowdfund
E35: Mobile Money
E36: Fund
E37: Donor
E38: Banking
E39: Venture Capital (VC)
E40: Investment Platform
E42: Technical Innovation Support
E43: Business Development
E44: Ideation
E45: Network
E46: Makerspace
E47: Incubation Lab
E48: Design Lab
E49: Innovation Hub
E51: National Government
E52: District Government
E53: County
E54: Municipal
E55: Sub-county or zone

Sheet Instructions
A1: Process | B1: Step | C1: Instructions | E1: Warnings 1. Do NOT change or overwrite any formulas 2. Do NOT add rows above the data or columns anywhere inside or to the left of the tables 3. Do NOT delete any column (you may hide them as needed) -- deleting rows is ok 4. You MUST generate a unique code for each organisation, challenge and innovation 5. Do NOT merge cells. Data for each organization, challenge, innovation, Matchmaker and support activity must be include in the same line | J1: Info/tips 1. Columns in Orange are filled via drop-down menus (some are based on data entered elsewhere) 2. Columns in Grey are automatically filled (do not fill in data yourself) based on data entered elsewhere 3. Columns in Blue are manually filled 4. Enter the data starting in the Ecosystem Tab and making your way through the other tabs.
A2: Transfering data from your existing sources | B2: 1 | C2: Make sure that you are using the latest version of your database from which to transfer data
B3: 2 | C3: Go to the RIL Teams page, click on the Files tab under the logo and search for the Country Lab Information spreadsheet in your Local Lab page.
B4: 3 | C4: Open the file in your desktop Excel and save it as an offline draft before adding any data. This will ensure that you retain an original blank version in case you need to start over.
B5: 4 | C5: Begin by filling in the Ecosystem tab and work your ways through the tabs from left to right all the way to the support tab
B6: 5 | C6: If your source data includes additional information not captured by this tool, you may add additional columns to the right of the table. Do NOT insert columns between or to the left of existing ones.
B7: 6 | C7: You may need to overwrite existing sample data in the tabs, please make sure that only your data is included in the spreadsheet
A9: Adding/transfering data to the Ecosystem tab | B9: 1 | C9: This tab is organized on the principle of one organization per line. Do not include information for the same org on multiple lines.
B10: 2 | C10: If you do have data for one organization spread across multiple lines, highlight those cases so that you can manually enter data into the new spreadsheet
B11: 3 | C11: Cut and paste your data column by column (having made sure to exclude duplicate lines for the same org), starting in column B
B12: 4 | C12: In column A, you will need to manually enter a code for each organization you register. The This code may be a single word (i.e. a common acronym or short version of the name). For instance, Catholic Relief Services' code would be "CRS", Innovation Village could be INNOVILLAGE, etc.. Please use common acronyms for global orgs (ACF and not AAH for Action Contre La Faim/Action Against Hunger). Do NOT use spaces in your codes.
B13: 5 | C13: You must select an Org Type and a Org scale (column E) for each Org. Choices will appear from a drop-down menu, please select the most appropriate. National orgs are orgs that operate in more than one distinct local jurisdictions across a significant swath of the country. Subnational orgs are primarily focused on a particular jurisdiction/geographic area. Start-ups can fall into either category depending on their current market and ambitions
B14: 6 | C14: Please enter at least one technical area for each org in column F. You may add up to two others in columns G and H. Please select top 3 areas as you cannot include more.
B15: 7 | C15: Manually enter the number of Convener events. Columns K-Q will fill in automatically as data is entered into the other tabs.

Sheet Color Meaning
A1: Colours and their meanings
A2: Colour | B2: Meaning
A3: YELLOW | B3: For Brain reference
A4: Gold Accent | B4: Missing Description
B5: Missing Website

Sheet Dashboard

Sheet Analysis
A4: Output Indicators
A5: Indicator # | B5: Indicator category | C5: Disagregation | D5: Result | E5: %
A6: 1 | B6: Organisations Mapped / Scale and diversity of ecosystem | C6: Number of Orgs mapped | D6: =COUNTA(Ecosystem!A2:A2424) -> 1659 | E6: N/A
C7: Number of NGO mapped | D7: =COUNTIF(Ecosystem!$E$2:$E$2424,"*NGO*") -> 707 | E7: =D7/$D$6 -> 0.4261603376
C8: Number of UN orgs mapped | D8: =COUNTIF(Ecosystem!$E$2:$E$2424,"*UN*") -> 34 | E8: =D8/$D$6 -> 0.02049427366
C9: Number of donor orgs mapped | D9: =COUNTIF(Ecosystem!$E$2:$E$2424,"*Donor*") -> 101 | E9: 0.06088004822
C10: Number of for-profit orgs mapped | D10: =COUNTIF(Ecosystem!$E$2:$E$2424,"*For-profit*") -> 407 | E10: 0.2453285112
C11: Number of academic orgs mapped | D11: =COUNTIF(Ecosystem!$E$2:$E$2424,"*Academic*") -> 64 | E11: 0.0385774563
C12: Number of public sector orgs mapped | D12: =COUNTIF(Ecosystem!$E$2:$E$2424,"*Public sector*") -> 110 | E12: 0.06630500301
C13: Number of social enterprise orgs mapped | D13: =COUNTIF(Ecosystem!$E$2:$E$2424,"*Social enterprise*") -> 236 | E13: 0.1422543701
C14: Number of Refugee-Led Organisations | D14: =COUNTIF(Ecosystem!$W$2:$W$2424,"*Refugee-Led Organisation*") -> 110 | E14: 0.06630500301
C15: Number of local orgs mapped | D15: =COUNTIF(Ecosystem!F2:F2424,"National")+COUNTIF(Ecosystem!F2:F2424,"Subnational") -> 856 | E15: 0.515973478
C16: Number of international orgs mapped | D16: =COUNTIF(Ecosystem!F2:F2424, "*Global / Multi-country*") -> 593 | E16: =D16/$D$6 -> 0.3574442435
A18: 2 | B18: Overall ecosystem engagement with RIL | C18: Number of mapped Orgs accessing RIL services | D18: =COUNTIF(Ecosystem!V2:V2424,">0") -> 691 | E18: =D18/D6 -> 0.4165159735
C19: Number of mapped NGOs accessing RIL services | D19: =COUNTIFS(Ecosystem!E2:E2424,"*NGO*",Ecosystem!$V$2:$V$2424,">0") -> 152 | E19: =D19/D7 -> 0.2149929279
C20: Number of mapped UN orgs accessing RIL services | D20: =COUNTIFS(Ecosystem!E2:E2424,"*UN*",Ecosystem!$V$2:$V$2424,">0") -> 6 | E20: 0.1764705882
C21: Number of mapped donor orgs accessing RIL services | D21: =COUNTIFS(Ecosystem!E2:E2424,"*Donor*",Ecosystem!$V$2:$V$2424,">0") -> 21 | E21: 0.2079207921
C22: Number of mapped for-profit orgss accessing RIL services | D22: =COUNTIFS(Ecosystem!E2:E2424,"*For-Profit*",Ecosystem!$V$2:$V$2424,">0") -> 268 | E22: 0.6584766585
C23: Number of mapped academic orgs accessing RIL services | D23: =COUNTIFS(Ecosystem!E2:E2424,"*Academic*",Ecosystem!$V$2:$V$2424,">0") -> 19 | E23: 0.296875
C24: Number of mapped public sector orgs accessing RIL services | D24: =COUNTIFS(Ecosystem!E2:E2424,"*Public sector*",Ecosystem!$V$2:$V$2424,">0") -> 20 | E24: 0.1818181818
C25: Number of mapped social enterprise orgs accessing RIL services | D25: =COUNTIFS(Ecosystem!E2:E2424,"*Social enterprise*",Ecosystem!$V$2:$V$2424,">0") -> 205 | E25: 0.8686440678
C27: Number of mapped international orgs accessing RIL services | D27: =COUNTIFS(Ecosystem!F2:F2424,"*Global / Multi-Country*",Ecosystem!$V$2:$V$2424,">0") -> 182 | E27: 0.2126168224
C28: Number of mapped national/subnational orgs accessing RIL services | D28: =COUNTIFS(Ecosystem!F2:F2424,"National",Ecosystem!$V$2:$V$2424,">0")+COUNTIFS(Ecosystem!F2:F2424,"*Subnational*",Ecosystem!$V$2:$V$2424,">0") -> 509 | E28: 0.8583473862
A30: 3 | B30: Convener engagement | C30: Number of convener events held | D30: Manual
C31: Number of mapped orgs attended conveners | D31: =COUNTIF(Ecosystem!O2:O2424,">0") -> 233 | E31: =D31/D6 -> 0.1404460518
C32: Number of NGOs attending conveners | D32: =COUNTIFS(Ecosystem!E2:E2424,"*NGO*",Ecosystem!$O$2:$O$2424,">0") -> 99 | E32: =D32/$D$31 -> 0.4248927039
C33: Number of UN orgs mapped | D33: =COUNTIFS(Ecosystem!E2:E2424,"*UN*",Ecosystem!$O$2:$O$2424,">0") -> 4 | E33: =D33/$D$31 -> 0.01716738197
C34: Number of donor orgs mapped | D34: =COUNTIFS(Ecosystem!E2:E2424,"*Donor*",Ecosystem!$O$2:$O$2424,">0") -> 12 | E34: =D34/$D$31 -> 0.05150214592
C35: Number of for-profit orgss mapped | D35: =COUNTIFS(Ecosystem!E2:E2424,"*For-profit*",Ecosystem!$O$2:$O$2424,">0") -> 54 | E35: 0.2317596567
C36: Number of academic orgs mapped | D36: =COUNTIFS(Ecosystem!E2:E2424,"*Academic*",Ecosystem!$O$2:$O$2424,">0") -> 14 | E36: 0.06008583691
C37: Number of public sector orgs mapped | D37: =COUNTIFS(Ecosystem!E2:E2424,"*Public sector*",Ecosystem!$O$2:$O$2424,">0") -> 14 | E37: 0.06008583691
C38: Number of social enterprise orgs mapped | D38: =COUNTIFS(Ecosystem!E2:E2424,"*Social enterpreise*",Ecosystem!$O$2:$O$2424,">0") -> 0 | E38: 0
C40: Number of international orgs mapped | D40: =COUNTIFS(Ecosystem!F2:F2424,"*Global / Multi-Country*",Ecosystem!$O$2:$O$2424,">0") -> 80 | E40: 0.3433476395
C41: Number of local orgs mapped | D41: =COUNTIFS(Ecosystem!F2:F2424,"*National*",Ecosystem!$O$2:$O$2424,">0")+COUNTIFS(Ecosystem!F2:F2424,"*Subnational*",Ecosystem!$O$2:$O$2424,">0") -> 182 | E41: 0.7811158798
A43: 4 | B43: Challenges registered | C43: Number of challenges registered | D43: =COUNTA(Challenges!B6:B83) -> 77
C44: Number of orgs submitting challenges | D44: =COUNTA(Challenges!G6:H473) -> 31
C45: Camp Coordination and Management | D45: =COUNTIF(Challenges!C6:C473,"*Camp Coordination and Management*") -> 4 | E45: =D45/$D$43 -> 0.05194805195
C46: Early Recovery | D46: =COUNTIF(Challenges!C6:C473,"*Early Recovery*") -> 4 | E46: 0.05194805195
C47: Education | D47: =COUNTIF(Challenges!C6:C473,"*Education*") -> 12 | E47: 0.1558441558
C48: Emergency Telecommunications | D48: =COUNTIF(Challenges!C6:C473,"*Emergency Telecommunications*") -> 5 | E48: 0.06493506494
C49: Food Security and Livelihoods | D49: =COUNTIF(Challenges!C6:C473,"*Food Security*") -> 10 | E49: 0.1298701299
C50: Health | D50: =COUNTIF(Challenges!C6:C473,"*Health*") -> 12 | E50: 0.1558441558
C51: Logistics | D51: =COUNTIF(Challenges!C6:C473,"*Logistics*") -> 13 | E51: =D51/$D$43 -> 0.1688311688
C52: Mutli/cross-sectoral | D52: =COUNTIF(Challenges!C6:C473,"*Mutli/cross-sectoral*") -> 40 | E52: 0.5194805195
C53: Nutrition | D53: =COUNTIF(Challenges!C6:C473,"*Nutrition*") -> 0 | E53: 0
C54: Protection | D54: =COUNTIF(Challenges!C6:C473,"*Protection*") -> 12 | E54: 0.1558441558
C55: Shelter | D55: =COUNTIF(Challenges!C6:C473,"*Shelter*") -> 2 | E55: 0.02597402597
C56: WASH | D56: =COUNTIF(Challenges!C6:C473,"*WASH*") -> 7 | E56: 0.09090909091
C57: Covid-19 | D57: =COUNTIF(Challenges!E6:E306,"*COVID*") -> 16
A59: 5 | B59: Innovation identification | C59: Number of innovations identified | D59: =COUNTA(Innovations!B2:B1150) -> 522
C60: Number in ideation stage | D60: =COUNTIF(Innovations!K2:K714,"*ideation*") -> 5 | E60: =D60/$D$59 -> 0.009578544061
C61: Number in prototyping stage | D61: =COUNTIF(Innovations!K2:K714,"*prototyping*") -> 89 | E61: =D61/$D$59 -> 0.1704980843
C62: Number in piloting stage | D62: =COUNTIF(Innovations!K2:K714,"*piloting*") -> 199 | E62: =D62/$D$59 -> 0.3812260536
C63: Number in scaleup stage | D63: =COUNTIF(Innovations!K2:K714,"*scaleup*") -> 205 | E63: =D63/$D$59 -> 0.3927203065
C64: Camp Coordination and Management | D64: =COUNTIF(Innovations!G2:G714,"*Camp Coordination and Management*") -> 25 | E64: =D64/$D$59 -> 0.04789272031
C65: Early Recovery | D65: =COUNTIF(Innovations!G2:G714,"*Early Recovery*") -> 31 | E65: =D65/$D$59 -> 0.05938697318
C66: Education | D66: =COUNTIF(Innovations!G2:G714,"*Education*") -> 40 | E66: 0.07662835249
C67: Emergency Telecommunications | D67: =COUNTIF(Innovations!G2:G714,"*Emergency Telecommunications*") -> 28 | E67: 0.05363984674
C68: Food Security and Livelihoods | D68: =COUNTIF(Innovations!G2:G714,"*Food Security*") -> 109 | E68: 0.2088122605
C69: Health | D69: =COUNTIF(Innovations!G2:G714,"*Health*") -> 80 | E69: 0.153256705
C70: Logistics | D70: =COUNTIF(Innovations!G2:G714,"*Logistics*") -> 0 | E70: 0
C71: Mutli/cross-sectoral | D71: =COUNTIF(Innovations!G2:G714,"*Mutli/cross-sectoral*") -> 123 | E71: 0.2356321839
C72: Nutrition | D72: =COUNTIF(Innovations!G2:G714,"*Nutrition*") -> 2 | E72: 0.003831417625
C73: Protection | D73: =COUNTIF(Innovations!G2:G714,"*Protection*") -> 53 | E73: 0.101532567
C74: Shelter | D74: =COUNTIF(Innovations!G2:G714,"*Shelter*") -> 0 | E74: 0
C75: WASH | D75: =COUNTIF(Innovations!G2:G714,"*WASH*") -> 27 | E75: 0.05172413793
C76: Covid-19 | D76: =COUNTIF(Innovations!H2:H749,"*COVID*") -> 0
A78: 6 | B78: Referrals | C78: Number of referrals made through RIL | D78: =COUNTA(Referrals!A2:A560) -> 187 | E78: N/A
C79: Number of referrals made that address known challenges | D79: =COUNTA(Referrals!E2:E560) -> 1 | E79: N/A
C80: Number of referrals that connect solutions to know challenges | D80: =COUNTIFS(Referrals!B2:B560,"<>",Referrals!E2:E560,"<>") -> 0 | E80: N/A
C81: Number of local orgs connected with global orgs | D81: Manual | E81: N/A
C82: Number of private sector orgs connected with non-profits | D82: Manual | E82: N/A
C83: Amount of funding generated by referrals | D83: =SUM(Referrals!M2:M525) -> 0
A85: 7 | B85: Challenges macthed to at least one solution | C85: Number of challenges matched to solutions | D85: =COUNTIFS(Challenges!B6:B306, "<>",Challenges!D6:D306,"yes") -> 9
C86: Camp Coordination and Management | D86: =COUNTIFS(Challenges!D6:D306,"yes",Challenges!C6:C306,"Camp Coordination and Management") -> 1 | E86: =D86/$D$85 -> 0.1111111111
C87: Early Recovery | D87: =COUNTIFS(Challenges!D6:D306,"yes",Challenges!C6:C306,"Early Recovery") -> 0 | E87: =D87/$D$85 -> 0
C88: Education | D88: =COUNTIFS(Challenges!D6:D306,"yes",Challenges!C6:C306,"Early Recovery") -> 0 | E88: 0
C89: Emergency Telecommunications | D89: =COUNTIFS(Challenges!D6:D306,"yes",Challenges!C6:C306,"Emergency Telecommunications") -> 1 | E89: 0.1111111111
C90: Food Security and Livelihoods | D90: =COUNTIFS(Challenges!D6:D306,"yes",Challenges!C6:C306,"*Food Security*") -> 1 | E90: 0.1111111111
C91: Health | D91: =COUNTIFS(Challenges!D6:D306,"yes",Challenges!C6:C306,"Health") -> 0 | E91: 0
C92: Logistics | D92: =COUNTIFS(Challenges!D6:D306,"yes",Challenges!C6:C306,"Logistics") -> 3 | E92: 0.3333333333
C93: Mutli/cross-sectoral | D93: =COUNTIFS(Challenges!D6:D306,"yes",Challenges!C6:C306,"Mutli/cross-sectoral") -> 1 | E93: 0.1111111111
C94: Nutrition | D94: =COUNTIFS(Challenges!D6:D306,"yes",Challenges!C6:C306,"Nutrition") -> 0 | E94: 0
C95: Protection | D95: =COUNTIFS(Challenges!D6:D306,"yes",Challenges!C6:C306,"Protection") -> 0 | E95: 0
C96: Shelter | D96: =COUNTIFS(Challenges!D6:D306,"yes",Challenges!C6:C306,"Shelter") -> 0 | E96: 0
C97: WASH | D97: =COUNTIFS(Challenges!D6:D306,"yes",Challenges!C6:C306,"WASH") -> 2 | E97: 0.2222222222
C98: Covid-19 | D98: =COUNTIFS(Challenges!D6:D306,"yes",Challenges!E6:E306,"*COVID*") -> 0
B99: Number of people impacted by challenges macthed to solutions | D99: =SUMIFS(Challenges!K6:K306,Challenges!D6:D306,"yes") -> 5100000
A101: 8 | B101: Innovations matched with Challenges | C101: Number of innovations matched to challenges | D101: =COUNTA(Innovations!I2:I714) -> 0
C102: Camp Coordination and Management | D102: =COUNTIFS(Innovations!I2:I661,"<>",Innovations!J2:J661,"Camp Coordination and Management") -> 0 | E102: =D102/$D$101 -> 
C103: Early Recovery | D103: =COUNTIFS(Innovations!I2:I661,"<>",Innovations!J2:J661,"Early Recovery") -> 0 | E103: =D103/$D$101 -> 
C104: Education | D104: =COUNTIFS(Innovations!I2:I661,"<>",Innovations!J2:J661,"Education") -> 0
C105: Emergency Telecommunications | D105: =COUNTIFS(Innovations!I2:I661,"<>",Innovations!J2:J661,"Emergency Telecommunications") -> 0
C106: Food Security and Livelihoods | D106: =COUNTIFS(Innovations!I2:I661,"<>",Innovations!J2:J661,"*Food*") -> 0
C107: Health | D107: =COUNTIFS(Innovations!I2:I661,"<>",Innovations!J2:J661,"Health") -> 0
C108: Logistics | D108: =COUNTIFS(Innovations!I2:I661,"<>",Innovations!J2:J661,"Logistics") -> 0
C109: Mutli/cross-sectoral | D109: =COUNTIFS(Innovations!I2:I661,"<>",Innovations!J2:J661,"Mutli/cross-sectoral") -> 0
C110: Nutrition | D110: =COUNTIFS(Innovations!I2:I661,"<>",Innovations!J2:J661,"Nutrition") -> 0
C111: Protection | D111: =COUNTIFS(Innovations!I2:I661,"<>",Innovations!J2:J661,"Protection") -> 0
C112: Shelter | D112: =COUNTIFS(Innovations!I2:I661,"<>",Innovations!J2:J661,"Shelter") -> 0
C113: WASH | D113: =COUNTIFS(Innovations!I2:I661,"<>",Innovations!J2:J661,"WASH") -> 0
C114: Covid-19 | D114: =COUNTIFS(Innovations!I2:I661,"<>",Innovations!H2:H661,"*COVID*") -> 0
A116: 9 | B116: MatchMaker implementation | C116: Number of MatchMaker applications submitted | D116: =COUNTA(Matchmaker!G2:G491) -> 3
C117: Disagregation by org type | D117: Manual
C118: Number and % of MM applications issued Solution Pack | D118: =COUNTIF(Matchmaker!I2:I491,"yes") -> 2 | E118: =D118/D116 -> 0.6666666667
A120: 10 | B120: Innovation Support | C120: Number of Innovations provided with support by RIL | D120: =COUNTA(Support!H2:H1048576) -> 60
C121: Number/% provided with technical assistance | D121: =COUNTIF(Support!H2:H1048576, "*TA*") -> 4 | E121: =D121/$D$120 -> 0.06666666667
C122: Number/% provided with referrals | D122: =COUNTIF(Support!H2:H1048576, "*Referral*") -> 0 | E122: =D122/$D$120 -> 0
C123: Number/% included in MacthMaker pack | D123: =COUNTIF(Support!H2:H1048576, "*MatchMaker*") -> 0 | E123: =D123/$D$120 -> 0
C124: Number/% provided with RIL funding | D124: =COUNTIF(Support!H2:H1048576, "*RIL Funding*") -> 9 | E124: =D124/$D$120 -> 0.15
C125: Number/% provided with training | D125: =COUNTIF(Support!H2:H1048576, "*training*") -> 18 | E125: =D125/$D$120 -> 0.3
C126: Number/% provided with tools | D126: =COUNTIF(Support!H2:H1048576, "*Tool*") -> 0 | E126: 0
C127: Number/% provided with promotion support | D127: =COUNTIF(Support!H2:H1048576, "*Promotion*") -> 0 | E127: 0
C128: Number/% provided with funding application support | D128: =COUNTIF(Support!H2:H1048576, "*application*") -> 7 | E128: 0.1166666667
C129: Number/% provided with other type of support | D129: =COUNTIF(Support!H2:H1048576, "*other*") -> 1 | E129: 0.01666666667
C130: Number/% provided with multiple types of support | D130: =COUNTIF(Support!H2:H1048576, "*Multiple*") -> 21 | E130: 0.35
C131: Number of Covid-19 response projects providede with RIL support | D131: =COUNTIF(Support!#REF!,"yes") -> 
C132: Amount of funding directly provided by RIL to innovations | D132: =SUM(Support!J2:J1048576) -> 268211.734
A135: Outcome indicators
A136: Indicator # | B136: Indicator category | C136: Disagregation | D136: Result | E136: %
A137: a | B137: Repeat usage (credibility) | C137: Repeat users of RIL | D137: =COUNTIF(Ecosystem!V2:V933,">1") -> 84 | E137: =D137/D18 -> 0.1215629522
C138: Number of NGOs repeat users | D138: =COUNTIFS(Ecosystem!$E$2:$E$2424,"*NGO*",Ecosystem!$V$2:$V$2424,">1") -> 25 | E138: =D138/$D$137 -> 0.2976190476
C139: Numberof UN orgs repeat users | D139: =COUNTIFS(Ecosystem!$E$2:$E$2424,"*UN*",Ecosystem!$V$2:$V$2424,">1") -> 0 | E139: =D139/$D$137 -> 0
C140: Number of donor orgs repeat users | D140: =COUNTIFS(Ecosystem!$E$2:$E$2424,"*Donor*",Ecosystem!$V$2:$V$2424,">1") -> 4 | E140: 0.04761904762
C141: Number of for-profit orgss repeat users | D141: =COUNTIFS(Ecosystem!$E$2:$E$2424,"*For-profit*",Ecosystem!$V$2:$V$2424,">1") -> 34 | E141: 0.4047619048
C142: Number academic orgs repeat users | D142: =COUNTIFS(Ecosystem!$E$2:$E$2424,"*Academic*",Ecosystem!$V$2:$V$2424,">1") -> 1 | E142: 0.0119047619
C143: Number public sector orgs repeat users | D143: =COUNTIFS(Ecosystem!$E$2:$E$2424,"*Public sector*",Ecosystem!$V$2:$V$2424,">1") -> 1 | E143: 0.0119047619
C144: Number of mapped social enterprise orgs accessing RIL services | D144: =COUNTIFS(Ecosystem!$E$2:$E$2424,"*Social Enterprise*",Ecosystem!$V$2:$V$2424,">1") -> 48 | E144: 0.5714285714
C146: Number of international orgs repeat users | D146: =COUNTIFS(Ecosystem!F2:F2424,"*Global / Multi-Country*",Ecosystem!$V$2:$V$2424,">1") -> 19 | E146: 0.2261904762
C147: Number of national/subnational orgs repeat users | D147: =COUNTIFS(Ecosystem!F2:F2424,"National",Ecosystem!$V$2:$V$2424,">1")+COUNTIFS(Ecosystem!F2:F2424,"*Subnational*",Ecosystem!$V$2:$V$2424,">1") -> 94 | E147: 1.119047619
A149: b | B149: Innovation progress (efficacy) | C149: Total number and % of innovations moving to next stage | D149: Manual
C150: Disagregation by sector
C151: Number and % of referrals leading to innovations moving to next stage | D151: Manual
C152: Disagregation by sector
C153: Number and % of MatchMaker packs leading to innovations moving to next stage | D153: Manual
C154: Disagregation by sector
C155: Number and % of innovations receiving RIL support moving to next stage | D155: Manual
C156: Disagregation by sector
A158: c | B158: Localization | C158: Number and % of challenges submitted by local organizations | D158: =SUMIF(Ecosystem!F2:F1924,"National", Ecosystem!P2:P1924) -> 1 | E158: =D158/COUNTA(Challenges!B6:B473) -> 0.007692307692
C159: Number and % of innovations developed or co-developed by local organizations | D159: =SUMIF(Ecosystem!F2:F1541,"National", Ecosystem!Q2:Q1541)+SUMIF(Ecosystem!F2:F1541,"Subnational", Ecosystem!Q2:Q1541) -> 344 | E159: =D159/COUNTA(Innovations!B2:B1164) -> 0.6590038314
C160: Number % of local organizations reffered to/by RIL | D160: =SUMIF(Ecosystem!F2:F933,"National", Ecosystem!R2:R933)+SUMIF(Ecosystem!F2:F933,"Subnational", Ecosystem!R2:R933) ->  | E160: =D160/COUNTA(Referrals!A2:A1025) -> 
C161: Number % of local organizations receiving MatchMaker Solution Pack | D161: =SUMIF(Ecosystem!F2:F933,"National", Ecosystem!T2:T933)+SUMIF(Ecosystem!F2:F933,"Subnational", Ecosystem!T2:T933) -> 0 | E161: =D161/COUNTIF(Matchmaker!I2:I492,"yes") -> 0
C162: Number % of local organizations receiving RIL support | D162: =SUMIF(Ecosystem!F2:F933,"National", Ecosystem!T2:T933)+SUMIF(Ecosystem!F2:F933,"Subnational", Ecosystem!T2:T933) -> 0 | E162: =D162/COUNTA(Support!B2:B1048576) -> 0
C163: Amount and % of RIL support funding allocated to local partners | D163: Manual
C164: % of innovations led by local organizations moving to next stage | D164: Manual
C165: % of innovations at pilot and scale-up stage led by local organizations | D165: Manual
A167: d | B167: Non-traditional actors (inclusion) | C167: Diversity of ecosystem (changes in % of engaged orgs by profile over time) | D167: Manual
C168: Number and % of private sector organizations engaged in Convener, included in referrals and MM, provided RIL support | D168: Manual
C169: Number and % of academic organizations engaged in Convener, included in referrals and MM, provided RIL support | D169: Manual
C170: …

Sheet Ecosystem
A1: ORG CODE (PLEASE GENERATE ONE-WORD CODE FOR EACH ORG, USE STD. ACRONYMS WHEN POSSIBLE) | B1: Organisation Name | C1: Description | D1: website | E1: Org Type (select from list) | F1: Intl./Natl./Local (select from list) | G1: Primary technical area 1 (select from list) | H1: Technical area(s) (select from list) | I1: Technical area(s) (select from list)2 | J1: Technical area(s) (select from list)3 | K1: Technical area(s) (select from list)4 | L1: TAG_UG Ecosystem Map | M1: Ecosystem Map Sector | N1: Ecosystem Map sub-category | O1: Number of Convener events attended (Manually entered) | P1: Number of Challenges submitted (automatically generated) | Q1: Number of Innovations shared (automatically generated) | R1: Number of referrals made (automatically generated) | S1: Number of Matchmaker applications submitted (automatically generated) | T1: Number of Matchmaker solution packs received (automatically generated) | U1: Number of projects supported by RIL (automatically generated) | V1: Total number of interactions with RIL (automatically generated) | W1: ULEARN Subcategory | X1: Date of last contact | Y1: Status /Next step | Z1: Primary Contact Name | AA1: Role | AB1: Email | AC1: Other email address | AD1: Phone | AE1: contact info | AF1: Location of Base | AG1: Disctrict(s) covered | AH1: Refugee Settlement(s) covered | AI1: Working Locations | AJ1: Access Locations | AK1: Notes | AL1: Generic | AM1: Status | AN1: Org is involved in response (yes/no)
A2: 8LEARNING-UG | B2: 8TECHNOLOGIES | C2: Eight Learning (8Learning) is an e-learning solution for organizations/institutions that want to run online courses for their staff or students. They manage the technology for organization and let them do the learning. The organization can run courses on the system and enroll participants until completion. 8Learning can manage the system or train a member from the client organization on how to administer your account. | D2: http://www.8technologies.net/eightlearning-online-elearning-solution-for-institutions-organisations/ | E2: For-profit | F2: National | G2: Education | H2: IT/Digital/ICT4D | I2: Livelihoods / (social) Entrepreneurship | L2: =G2&", "&H2&", "&I2&", "&J2&", "&K2 -> Education, IT/Digital/ICT4D, Livelihoods / (social) Entrepreneurship, , | M2: Private Sector | N2: Startup | O2: =COUNTIFS(Conveners!$B$2:$B$1798,"="&A2,Conveners!$AA$2:$AA$1798,">0") -> 1 | P2: =COUNTIFS(Challenges!$H$2:$H$982,"="&A2,Challenges!$H$2:$H$982,"<>") -> 0 | Q2: =COUNTIFS(Innovations!$C$2:$F$1628,"="&A2, Innovations!$C$2:$F$1628,"<>") -> 0 | R2: =COUNTIFS(Referrals!B3:'Referrals'!H1979,"="&A2, Referrals!B3:'Referrals'!H1979,"<>") -> 0 | S2: =COUNTIFS(Matchmaker!$B$2:$B$999,"="&A2,Matchmaker!$H$2:$H$999,"<>") -> 0 | T2: =COUNTIFS(Matchmaker!$B$2:$B$999,"="&A2,Matchmaker!$J$2:$J$999,"<>") -> 0 | U2: =COUNTIFS(Support!$C$2:$C$973,"="&A2,Support!$C$2:$C$973,"<>") -> 0 | V2: =SUM(O2:U2) -> 1 | Z2: Prof. Jude Lubega | AA2: Team Member | AB2: robert@8technologies.net | AD2: 414 - 666 - 884 | AE2: http://judelubega.com/ | AF2: 36859 Magdalene Lane Kisaasi. | AI2: Ntinda Road, Kampala | AN2: yes
A3: 97FUND-UG | B3: 97 FUND | C3: The 97 Fund builds and invests in high growth early stage companies. The 97 Fund takes an active, hands on approach that leverages our entrepreneurial and early stage expertise. At The 97 Fund we help entrepreneurs to increase their chance of success by applying extensive operational knowledge and providing access to networks, capital and funding. | D3: https://the97.fund/ | E3: Donor | F3: Global / Multi-country / Foreign | G3: Institutional Capacity Development/Ecosystem Support | H3: Cash Transfer Programming/Social Protection/Financial Inclusion | I3: Disability/Inclusivity | L3: Institutional Capacity Development/Ecosystem Support, Cash Transfer Programming/Social Protection/Financial Inclusion, Disability/Inclusivity, , | M3: Finance | N3: Fund | O3: =COUNTIFS(Conveners!$B$2:$B$1798,"="&A3,Conveners!$AA$2:$AA$1798,">0") -> 1 | P3: =COUNTIFS(Challenges!$H$2:$H$982,"="&A3,Challenges!$H$2:$H$982,"<>") -> 0 | Q3: =COUNTIFS(Innovations!$C$2:$F$1628,"="&A3, Innovations!$C$2:$F$1628,"<>") -> 0 | R3: =COUNTIFS(Referrals!B4:'Referrals'!H1980,"="&A3, Referrals!B4:'Referrals'!H1980,"<>") -> 0 | S3: =COUNTIFS(Matchmaker!$B$2:$B$999,"="&A3,Matchmaker!$H$2:$H$999,"<>") -> 0 | T3: =COUNTIFS(Matchmaker!$B$2:$B$999,"="&A3,Matchmaker!$J$2:$J$999,"<>") -> 0 | U3: =COUNTIFS(Support!$C$2:$C$973,"="&A3,Support!$C$2:$C$973,"<>") -> 0 | V3: 1 | Z3: Arnold Byarugaba​ | AA3: Advisor | AB3: the97@ortusafrica.com | AD3: 256 414 667 986 | AE3: The 97Fund is managed by Ortus Africa Capital who oversee the sourcing, screening, investing, management and exit of portfolio companies on behalf of investors in The 97Fund. Ortus Africa Capital works in partnership with The Innovation Village who are a pipeline sourcing and venture building partner for The 97Fund. The 97Fund activities are supported by funding from Mastercard Foundation as part of the Young Africa Works Program. Kampala Angel Investment Network (KAIN) is a co-investment partner by syndicating the deals and opportunities identified by The 97Fund with angel investors within the angel network and referring investment opportunities that have been vetted through KAIN. | AF3: Plot 31 Ntinda - Kisaasi Rd. | AI3: Ntinda Shopping Complex Block B&C 3rd Floor, Kampala
A4: AAA-UG | B4: AFRICA AGRIBUSINESS ACADEMY | C4: Africa Agribusiness Academy (AAA) is an entrepreneur platform seeking to foster innovation and growth of small and medium scale agribusiness firms in Africa, with the ultimate aim to contribute to economic growth and improvement of rural income and Food Security and Agriculture in Africa. | D4: www.aa-academy.org/ | E4: Academic | F4: Global / Multi-country / Foreign | G4: Food Security and Agriculture | H4: Education | I4: Youth | L4: Food Security and Agriculture, Education, Youth, , | M4: Knowledge | N4: Training | O4: =COUNTIFS(Conveners!$B$2:$B$1798,"="&A4,Conveners!$AA$2:$AA$1798,">0") -> 1 | P4: =COUNTIFS(Challenges!$H$2:$H$982,"="&A4,Challenges!$H$2:$H$982,"<>") -> 0 | Q4: =COUNTIFS(Innovations!$C$2:$F$1628,"="&A4, Innovations!$C$2:$F$1628,"<>") -> 0 | R4: =COUNTIFS(Referrals!B5:'Referrals'!H1981,"="&A4, Referrals!B5:'Referrals'!H1981,"<>") -> 0 | S4: =COUNTIFS(Matchmaker!$B$2:$B$999,"="&A4,Matchmaker!$H$2:$H$999,"<>") -> 0 | T4: =COUNTIFS(Matchmaker!$B$2:$B$999,"="&A4,Matchmaker!$J$2:$J$999,"<>") -> 0 | U4: =COUNTIFS(Support!$C$2:$C$973,"="&A4,Support!$C$2:$C$973,"<>") -> 0 | V4: 1 | Z4: Logose Angella | AA4: Country Manager Africa Agribusiness Academy (U) Ltd | AB4: info@aa-academy.org | AD4: +256 752 584069 | AE4: angella.logose@aa-academy.org | AF4: Plot 173/174 Kintu Road P. O. Box 6046 Kampala
A5: AAH-UG | B5: ACTION AFRICA HELP | C5: Action Africa Help (AAH) is an international non-governmental organization working with communities in the horn of Africa, and east and southern Africa to sustainably improve their quality of life. AAH-I has over 30 years’ experience working with communities, including refugees, internally displaced people, host communities, pastoralists and people living in urban informal settlements. AAH-I has country programmes in South Sudan, Zambia, Uganda, Somalia, Djibouti, Ethiopia and Kenya. | D5: https://www.actionafricahelp.org/ | E5: NGO | F5: Global / Multi-country / Foreign | G5: Displacement (refugees and IDPs) | H5: Cash Transfer Programming/Social Protection/Financial Inclusion | I5: Protection | L5: Displacement (refugees and IDPs), Cash Transfer Programming/Social Protection/Financial Inclusion, Protection, , | M5: Implementer | N5: INGO | O5: =COUNTIFS(Conveners!$B$2:$B$1798,"="&A5,Conveners!$AA$2:$AA$1798,">0") -> 0 | P5: =COUNTIFS(Challenges!$H$2:$H$982,"="&A5,Challenges!$H$2:$H$982,"<>") -> 0 | Q5: =COUNTIFS(Innovations!$C$2:$F$1628,"="&A5, Innovations!$C$2:$F$1628,"<>") -> 0 | R5: =COUNTIFS(Referrals!B6:'Referrals'!H1982,"="&A5, Referrals!B6:'Referrals'!H1982,"<>") -> 0 | S5: =COUNTIFS(Matchmaker!$B$2:$B$999,"="&A5,Matchmaker!$H$2:$H$999,"<>") -> 0 | T5: =COUNTIFS(Matchmaker!$B$2:$B$999,"="&A5,Matchmaker!$J$2:$J$999,"<>") -> 0 | U5: =COUNTIFS(Support!$C$2:$C$973,"="&A5,Support!$C$2:$C$973,"<>") -> 0 | V5: 0 | Z5: Basilio Okello | AA5: Country Director | AB5: uganda@actionafricahelp.org | AC5: bokello@actionafricahelp.org | AD5: 792084172 | AE5: uganda@actionafricahelp.org
A6: AAID-UG | B6: AFRICAN AGENCY FOR INTEGRATED DEVELOPMENT | C6: African Agency for Integrated Development (AID) is a registered international non government organization operating globally. It is dedicated to empowering and promoting the welfare of the poor in communities, through education, training and provision of basic services (including clean water, sanitation, health, and Food Security and Agriculture), improving household income and promotion of human rights. | D6: http://africanaid.org/ | E6: NGO | F6: National | G6: Water Sanitation and Hygiene (WASH) | H6: Education | I6: Energy/Environment | L6: Water Sanitation and Hygiene (WASH), Education, Energy/Environment, , | M6: Implementer | N6: INGO | O6: =COUNTIFS(Conveners!$B$2:$B$1798,"="&A6,Conveners!$AA$2:$AA$1798,">0") -> 0 | P6: =COUNTIFS(Challenges!$H$2:$H$982,"="&A6,Challenges!$H$2:$H$982,"<>") -> 0 | Q6: =COUNTIFS(Innovations!$C$2:$F$1628,"="&A6, Innovations!$C$2:$F$1628,"<>") -> 0 | R6: =COUNTIFS(Referrals!B7:'Referrals'!H1983,"="&A6, Referrals!B7:'Referrals'!H1983,"<>") -> 0 | S6: =COUNTIFS(Matchmaker!$B$2:$B$999,"="&A6,Matchmaker!$H$2:$H$999,"<>") -> 0 | T6: =COUNTIFS(Matchmaker!$B$2:$B$999,"="&A6,Matchmaker!$J$2:$J$999,"<>") -> 0 | U6: =COUNTIFS(Support!$C$2:$C$973,"="&A6,Support!$C$2:$C$973,"<>") -> 0 | V6: 0 | AB6: jenniper_busingye@yahoo.com | AC6: african.agency@yahoo.com | AD6: +256 772443965 | AE6: Uganda (headquarters) Kampala Lule Road
A7: AAR-UG | B7: ASSOCIATION FOR AID AND RELIEF JAPAN | C7: Association for Aid and Relief (AIR Japan) was founded in 1979 by Yukika Sohma, our first chairperson, with a mission to help refugees from Indochina, and as a civil organization without any political, religious, or ideological affiliations. It has since then grown into an international organization approved and registered by the United Nations. | D7: http://www.aarjapan.gr.jp/english/activity/Uganda/ | E7: Donor | F7: Global / Multi-country / Foreign | G7: Protection | H7: Disability/Inclusivity | I7: Multi-sectoral | L7: Protection, Disability/Inclusivity, Multi-sectoral, , | M7: Implementer | N7: Multilateral | O7: =COUNTIFS(Conveners!$B$2:$B$1798,"="&A7,Conveners!$AA$2:$AA$1798,">0") -> 0 | P7: =COUNTIFS(Challenges!$H$2:$H$982,"="&A7,Challenges!$H$2:$H$982,"<>") -> 0 | Q7: =COUNTIFS(Innovations!$C$2:$F$1628,"="&A7, Innovations!$C$2:$F$1628,"<>") -> 0 | R7: =COUNTIFS(Referrals!B8:'Referrals'!H1984,"="&A7, Referrals!B8:'Referrals'!H1984,"<>") -> 0 | S7: =COUNTIFS(Matchmaker!$B$2:$B$999,"="&A7,Matchmaker!$H$2:$H$999,"<>") -> 0 | T7: =COUNTIFS(Matchmaker!$B$2:$B$999,"="&A7,Matchmaker!$J$2:$J$999,"<>") -> 0 | U7: =COUNTIFS(Support!$C$2:$C$973,"="&A7,Support!$C$2:$C$973,"<>") -> 0 | V7: 0 | AB7: uganda@aarjapan.gr.jp | AD7: 81-3-5423-4511 | AE7: -9795 | AF7: 7F, Mizuho Building, 2-12-2 Kamiosaki, | AI7: Shinagawa-ku, Tokyo, | AJ7: 141-0021 Japan
A8: AASCS-UG | B8: ALPHA AGRO START CONSULTANCY | C8: Alpha-Agro-Start Consultancy Services aims to grow cassava with selects local women an youth train and teach them how to add value to cassava with value added product like chips ,crisps ,ethanol ,flour and cassava bread. | D8: https://m.facebook.com/pages/category/Product-Service/Alpha-agro-start-consultancy-services-Ltd-101773001895852/ | E8: Social Enterprise | F8: National | G8: Food Security and Agriculture | H8: Gender | I8: Youth | L8: Food Security and Agriculture, Gender, Youth, , | M8: Knowledge | N8: Training | O8: =COUNTIFS(Conveners!$B$2:$B$1798,"="&A8,Conveners!$AA$2:$AA$1798,">0") -> 0 | P8: =COUNTIFS(Challenges!$H$2:$H$982,"="&A8,Challenges!$H$2:$H$982,"<>") -> 0 | Q8: =COUNTIFS(Innovations!$C$2:$F$1628,"="&A8, Innovations!$C$2:$F$1628,"<>") -> 1 | R8: =COUNTIFS(Referrals!B9:'Referrals'!H1985,"="&A8, Referrals!B9:'Referrals'!H1985,"<>") -> 0 | S8: =COUNTIFS(Matchmaker!$B$2:$B$999,"="&A8,Matchmaker!$H$2:$H$999,"<>") -> 0 | T8: =COUNTIFS(Matchmaker!$B$2:$B$999,"="&A8,Matchmaker!$J$2:$J$999,"<>") -> 0 | U8: =COUNTIFS(Support!$C$2:$C$973,"="&A8,Support!$C$2:$C$973,"<>") -> 0 | V8: 1 | Z8: Ajuna WILISON | AA8: CEO | AD8: +256 702 630021 | AE8: Kampala | AL8: LINS
A9: AAS-UG | B9: AFRICA AGRIBUSINESS SERVICES | C9: Africa Agribusiness Services is an agribusiness service provider that offers technical, financial , advisory and management services across the value chain. Africa Agribusiness Services facilitates investments, developmental projects and key interventions geared towards profitable and viable agriculture. | D9: http://www.aagriusiness.com | E9: For-profit | F9: National | G9: Food Security and Agriculture | H9: Nutrition | J9: Economic Development | L9: Food Security and Agriculture, Nutrition, , Economic Development, | M9: Innovation Support | N9: Business Development | O9: =COUNTIFS(Conveners!$B$2:$B$1798,"="&A9,Conveners!$AA$2:$AA$1798,">0") -> 0 | P9: =COUNTIFS(Challenges!$H$2:$H$982,"="&A9,Challenges!$H$2:$H$982,"<>") -> 0 | Q9: =COUNTIFS(Innovations!$C$2:$F$1628,"="&A9, Innovations!$C$2:$F$1628,"<>") -> 1 | R9: =COUNTIFS(Referrals!B10:'Referrals'!H1986,"="&A9, Referrals!B10:'Referrals'!H1986,"<>") -> 0 | S9: =COUNTIFS(Matchmaker!$B$2:$B$999,"="&A9,Matchmaker!$H$2:$H$999,"<>") -> 0 | T9: =COUNTIFS(Matchmaker!$B$2:$B$999,"="&A9,Matchmaker!$J$2:$J$999,"<>") -> 0 | U9: =COUNTIFS(Support!$C$2:$C$973,"="&A9,Support!$C$2:$C$973,"<>") -> 0 | V9: 1 | Z9: Kaahwa Jean | AA9: Managing Director | AB9: africabusinessltd@gmail.com | AC9: info@aagribusiness.com | AD9: +256 775788808 | AF9: PORT BELL KAMPALA ,UGANDA
A10: AASYA-UG | B10: ARISE AND SHINE YOUTH ASSOCIATION | C10: Arise and Shine Youth Association (AASYA) is a youth refugee led organisation with it's objectives for creating youth platform for sharing issues affecting youths in the refugee settlement and how to solve areas of work, youth empowerment, environmental protection and awareness, livelihoods activities, capacity building training, peace building activities. | D10: https://www.facebook.com/Arise-and-Shine-Youth-Development-976860195780490/ | E10: NGO | F10: Subnational and settlement-level | G10: Displacement (refugees and IDPs) | H10: Youth | I10: Energy/Environment | L10: Displacement (refugees and IDPs), Youth, Energy/Environment, , | M10: Implementer | N10: Association | O10: =COUNTIFS(Conveners!$B$2:$B$1798,"="&A10,Conveners!$AA$2:$AA$1798,">0") -> 0 | P10: =COUNTIFS(Challenges!$H$2:$H$982,"="&A10,Challenges!$H$2:$H$982,"<>") -> 0 | Q10: =COUNTIFS(Innovations!$C$2:$F$1628,"="&A10, Innovations!$C$2:$F$1628,"<>") -> 0 | R10: =COUNTIFS(Referrals!B11:'Referrals'!H1987,"="&A10, Referrals!B11:'Referrals'!H1987,"<>") -> 0 | S10: =COUNTIFS(Matchmaker!$B$2:$B$999,"="&A10,Matchmaker!$H$2:$H$999,"<>") -> 0 | T10: =COUNTIFS(Matchmaker!$B$2:$B$999,"="&A10,Matchmaker!$J$2:$J$999,"<>") -> 0 | U10: =COUNTIFS(Support!$C$2:$C$973,"="&A10,Support!$C$2:$C$973,"<>") -> 0 | V10: 0 | W10: Refugee-Led Organisation | AB10: ariseandshiney835@gmail.com | AD10: 0786 303233 | AE10: samuellokule02@gmail.com | AF10: Jinja | AG10: Yumbe | AH10: Bidibidi
A11: AAU-UG | B11: ACTION AID UGANDA | C11: ActionAid was founded as a charity in 1972 in the 1990s, it adopted a human rights-based approach to development. Then in 2003, they established the ActionAid international federation where their head office was in Johannesburg, South Africa. ActionAid also have hubs in Asia, the Americas and Europe, whereas it is a global federation working for a world free from poverty and injustice. They want to see a just, fair and sustainable world, in which everybody enjoys the right to a life of dignity, and freedom from poverty and oppression. | D11: https://actionaid.org/ | E11: Donor | F11: Global / Multi-country / Foreign | G11: Human Rights/Legal | H11: Economic Development | I11: Livelihoods / (social) Entrepreneurship | L11: Human Rights/Legal, Economic Development, Livelihoods / (social) Entrepreneurship, , | M11: Implementer | N11: INGO | O11: =COUNTIFS(Conveners!$B$2:$B$1798,"="&A11,Conveners!$AA$2:$AA$1798,">0") -> 0 | P11: =COUNTIFS(Challenges!$H$2:$H$982,"="&A11,Challenges!$H$2:$H$982,"<>") -> 0 | Q11: =COUNTIFS(Innovations!$C$2:$F$1628,"="&A11, Innovations!$C$2:$F$1628,"<>") -> 0 | R11: =COUNTIFS(Referrals!B12:'Referrals'!H1988,"="&A11, Referrals!B12:'Referrals'!H1988,"<>") -> 0 | S11: =COUNTIFS(Matchmaker!$B$2:$B$999,"="&A11,Matchmaker!$H$2:$H$999,"<>") -> 0 | T11: =COUNTIFS(Matchmaker!$B$2:$B$999,"="&A11,Matchmaker!$J$2:$J$999,"<>") -> 0 | U11: =COUNTIFS(Support!$C$2:$C$973,"="&A11,Support!$C$2:$C$973,"<>") -> 0 | V11: 0 | Z11: Nabwire Joyce Baker | AA11: Project Coordinator Women Protection Shelter and NFIss | AB11: info.uganda@actionaid.org | AC11: imogen.bryson@acted.org | AD11: info.uganda@actionaid.org | AE11: Emmanuel Ochieng Action Aid Uganda Project Officer GBV Special Courts
A12: ABAN-UG | B12: AFRICAN BUSINESS ANGELS NETWORK | C12: African Business Angel Network (ABAN) is a pan-African non-profit association founded in early 2015 to support the development of early stage investor networks across the continent and to grow the cohort of early stage investors excited about the opportunities in Africa. ABAN seeks to promote a culture of angel investing across Africa. With networks of angel investors emerging across the continent, aban serves to connect them and works to collect knowledge and develop best practices in order to share this with African investors. | D12: https://abanangels.org/ | E12: NGO | F12: National | G12: Institutional Capacity Development/Ecosystem Support | H12: IT/Digital/ICT4D | I12: Education | J12: Cash Transfer Programming/Social Protection/Financial Inclusion | L12: Institutional Capacity Development/Ecosystem Support, IT/Digital/ICT4D, Education, Cash Transfer Programming/Social Protection/Financial Inclusion, | M12: Finance | N12: Investment Platform | O12: =COUNTIFS(Conveners!$B$2:$B$1798,"="&A12,Conveners!$AA$2:$AA$1798,">0") -> 0 | P12: =COUNTIFS(Challenges!$H$2:$H$982,"="&A12,Challenges!$H$2:$H$982,"<>") -> 0 | Q12: =COUNTIFS(Innovations!$C$2:$F$1628,"="&A12, Innovations!$C$2:$F$1628,"<>") -> 0 | R12: =COUNTIFS(Referrals!B13:'Referrals'!H1989,"="&A12, Referrals!B13:'Referrals'!H1989,"<>") -> 0 | S12: =COUNTIFS(Matchmaker!$B$2:$B$999,"="&A12,Matchmaker!$H$2:$H$999,"<>") -> 0 | T12: =COUNTIFS(Matchmaker!$B$2:$B$999,"="&A12,Matchmaker!$J$2:$J$999,"<>") -> 0 | U12: =COUNTIFS(Support!$C$2:$C$973,"="&A12,Support!$C$2:$C$973,"<>") -> 0 | V12: 0 | AA12: 0 | AB12: secretariat@abanangels.org
A13: ABBI-UG | B13: ABBI LABOUR LINK | C13: Abbi Labour Link is a recruitment and research company that connects job opportunities especially to youths from low income backgrounds in field research, contractual and permanent areas and the industries we focus on include but not limited to research services, hospitality, marketing, manufacturing, construction, and warehouse management. | D13: https://www.abbilabour.com/# | E13: For-profit | F13: National | G13: Economic Development | H13: Disability/Inclusivity | I13: Gender | L13: Economic Development, Disability/Inclusivity, Gender, , | M13: Private Sector | N13: Social Enterprise | O13: =COUNTIFS(Conveners!$B$2:$B$1798,"="&A13,Conveners!$AA$2:$AA$1798,">0") -> 0 | P13: =COUNTIFS(Challenges!$H$2:$H$982,"="&A13,Challenges!$H$2:$H$982,"<>") -> 0 | Q13: =COUNTIFS(Innovations!$C$2:$F$1628,"="&A13, Innovations!$C$2:$F$1628,"<>") -> 1 | R13: =COUNTIFS(Referrals!B14:'Referrals'!H1990,"="&A13, Referrals!B14:'Referrals'!H1990,"<>") -> 0 | S13: =COUNTIFS(Matchmaker!$B$2:$B$999,"="&A13,Matchmaker!$H$2:$H$999,"<>") -> 0 | T13: =COUNTIFS(Matchmaker!$B$2:$B$999,"="&A13,Matchmaker!$J$2:$J$999,"<>") -> 0 | U13: =COUNTIFS(Support!$C$2:$C$973,"="&A13,Support!$C$2:$C$973,"<>") -> 0 | V13: 1 | Z13: Diana Wakwale | AA13: Founder | AB13: info@abbilabour.com | AD13: +256 200925941 +256 788 473818 | AL13: WOMEN LED ORG
A14: ABC-UG | B14: ACTION FOR BEHAVIOURAL CHANGE UGANDA | C14: Action for Behavioral Change (ABC) is an indigenous-owned organization which runs programmes aimed at ending child marriage and improving sexual and reproductive health of girls and women. The organization advocates for women's and children's rights, maternal and child health, access to nutrition and livelihoods whilst also working on HIV/AIDs prevention, care and support. | D14: http://www.abcUganda.org/ | E14: NGO | F14: National | G14: Human Rights/Legal | H14: Gender | I14: Protection | L14: Human Rights/Legal, Gender, Protection, , | M14: Implementer | N14: LNGO | O14: =COUNTIFS(Conveners!$B$2:$B$1798,"="&A14,Conveners!$AA$2:$AA$1798,">0") -> 0 | P14: =COUNTIFS(Challenges!$H$2:$H$982,"="&A14,Challenges!$H$2:$H$982,"<>") -> 0 | Q14: =COUNTIFS(Innovations!$C$2:$F$1628,"="&A14, Innovations!$C$2:$F$1628,"<>") -> 0 | R14: =COUNTIFS(Referrals!B15:'Referrals'!H1991,"="&A14, Referrals!B15:'Referrals'!H1991,"<>") -> 0 | S14: =COUNTIFS(Matchmaker!$B$2:$B$999,"="&A14,Matchmaker!$H$2:$H$999,"<>") -> 0 | T14: =COUNTIFS(Matchmaker!$B$2:$B$999,"="&A14,Matchmaker!$J$2:$J$999,"<>") -> 0 | U14: =COUNTIFS(Support!$C$2:$C$973,"="&A14,Support!$C$2:$C$973,"<>") -> 0 | V14: 0 | Z14: Mr. Otundo Kennedy | AA14: Executive director | AB14: otundokennedy@hotmail.com | AD14: 256 772 593319 | AE14: abctororo@yahoo.com | AI14: P.O. Box: 25671 | AL14: DIF APPLICANT
A15: ABI-UG | B15: AGRICULTURAL BUSINESS INSTITUTE | C15: The Agricultural Business Initiative (ABI) is a multi-donor entity devoted to private sector agribusiness development. ABI follows a long-term commitment by being both a catalyst in support of the Ugandan agricultural sector and a conduit through which development partners and investors can build the capacity of the agricultural sector in the private sector to achieve the objective of the government of Uganda's Competitiveness and Investment Climate Strategy (CICS). | D15: https://www.abi.co.ug/ | E15: Donor | F15: National | G15: Economic Development | H15: Nutrition | I15: Food Security and Agriculture | L15: Economic Development, Nutrition, Food Security and Agriculture, , | M15: Finance | N15: Investment Platform | O15: =COUNTIFS(Conveners!$B$2:$B$1798,"="&A15,Conveners!$AA$2:$AA$1798,">0") -> 0 | P15: =COUNTIFS(Challenges!$H$2:$H$982,"="&A15,Challenges!$H$2:$H$982,"<>") -> 0 | Q15: =COUNTIFS(Innovations!$C$2:$F$1628,"="&A15, Innovations!$C$2:$F$1628,"<>") -> 0 | R15: =COUNTIFS(Referrals!B16:'Referrals'!H1992,"="&A15, Referrals!B16:'Referrals'!H1992,"<>") -> 0 | S15: =COUNTIFS(Matchmaker!$B$2:$B$999,"="&A15,Matchmaker!$H$2:$H$999,"<>") -> 0 | T15: =COUNTIFS(Matchmaker!$B$2:$B$999,"="&A15,Matchmaker!$J$2:$J$999,"<>") -> 0 | U15: =COUNTIFS(Support!$C$2:$C$973,"="&A15,Support!$C$2:$C$973,"<>") -> 0 | V15: 0 | Z15: Mrs. Josephine Mukumbya | AA15: Group Chief Executive Officer | AB15: karlsson.thore@gmail.com | AD15: 256 (0) 312 351600 | AE15: info@abi.co.ug | AI15: UMOJA House, 2nd Floor Plot 20, Nakasero Road. P.O Box 29851, Kampala, Uganda
A16: ABIZARDI-UG | B16: ABI ZONAL AGRICULTURAL RESEARCH AND DEVELOPMENT INSTITUTE | C16: Abi Zonal Agricultural Research and Development Institute (Abi ZARDI) is one of Uganda’s Public Agricultural Research Institutes (PARIs) under National Agricultural Research Organization (NARO). Abi ZARDI covers an agro-ecologically diverse and geographically strategic region of Uganda known as West Nile Agro-Ecological Zone comprising 8 districts including Arua, Nebbi, Zombo, Maracha, Koboko, Yumbe, Moyo and Adjumani. | D16: https://www.linkedin.com/in/abi-zardi-294aab16a/?originalSubdomain=ug | E16: Public sector | F16: Subnational and settlement-level | G16: Food Security and Agriculture | H16: Economic Development | L16: Food Security and Agriculture, Economic Development, , , | M16: Knowledge | N16: Research | O16: =COUNTIFS(Conveners!$B$2:$B$1798,"="&A16,Conveners!$AA$2:$AA$1798,">0") -> 1 | P16: =COUNTIFS(Challenges!$H$2:$H$982,"="&A16,Challenges!$H$2:$H$982,"<>") -> 0 | Q16: =COUNTIFS(Innovations!$C$2:$F$1628,"="&A16, Innovations!$C$2:$F$1628,"<>") -> 0 | R16: =COUNTIFS(Referrals!B17:'Referrals'!H1993,"="&A16, Referrals!B17:'Referrals'!H1993,"<>") -> 0 | S16: =COUNTIFS(Matchmaker!$B$2:$B$999,"="&A16,Matchmaker!$H$2:$H$999,"<>") -> 0 | T16: =COUNTIFS(Matchmaker!$B$2:$B$999,"="&A16,Matchmaker!$J$2:$J$999,"<>") -> 0 | U16: =COUNTIFS(Support!$C$2:$C$973,"="&A16,Support!$C$2:$C$973,"<>") -> 0 | V16: 1 | Z16: Sadik Kassim | AA16: Director | AB16: asti@cgiar.org | AC16: Nasser.Kasozi@naro.go.ug
A17: ABP-UG | B17: AFRIBANANA PRODUCTS LTD | C17: AfriBanana Products (ABP) has managed to add value to banana especially the cooking type known as matooke. ABP has successfully increased the shelf life of the matooke from one week to six months. It has managed to utilize almost 90% of the plant which used to left to waste; ABP has extracted wine, juice, charcoal briquettes, shopping bags and clean planting materials. | D17: www.afribananaproducts.com | E17: For-profit | F17: National | G17: Food Security and Agriculture | H17: Nutrition | I17: Health | L17: Food Security and Agriculture, Nutrition, Health, , | M17: Private Sector | N17: Social Enterprise | O17: =COUNTIFS(Conveners!$B$2:$B$1798,"="&A17,Conveners!$AA$2:$AA$1798,">0") -> 1 | P17: =COUNTIFS(Challenges!$H$2:$H$982,"="&A17,Challenges!$H$2:$H$982,"<>") -> 0 | Q17: =COUNTIFS(Innovations!$C$2:$F$1628,"="&A17, Innovations!$C$2:$F$1628,"<>") -> 1 | R17: =COUNTIFS(Referrals!B18:'Referrals'!H1994,"="&A17, Referrals!B18:'Referrals'!H1994,"<>") -> 0 | S17: =COUNTIFS(Matchmaker!$B$2:$B$999,"="&A17,Matchmaker!$H$2:$H$999,"<>") -> 0 | T17: =COUNTIFS(Matchmaker!$B$2:$B$999,"="&A17,Matchmaker!$J$2:$J$999,"<>") -> 0 | U17: =COUNTIFS(Support!$C$2:$C$973,"="&A17,Support!$C$2:$C$973,"<>") -> 0 | V17: 2 | Z17: Mr. J. (John) Bosco Byaugisha | AA17: founder | AB17: owesi.ambrose@gmail.com | AC17: info@afribananaproducts.com | AL17: LINS | AM17: Active
A18: ABTI-UG | B18: ABILITY BEYOND THE IRIS | C18: Ability Beyond the Iris works with the PWDs to enable them live independently by provide work with the persons affected by the following disabilities but not limited to; loss or deformity of limbs muscular dystrophy cerebral palsy spina bifida poliomyelitis stroke head injury spinal cord injury details of muscular skeletal disability loss or deformity of limbs and disabilities. | D18: https://b-m.facebook.com/abiUganda/ | E18: Social enterprise | F18: Subnational and settlement-level | G18: Disability/Inclusivity | H18: Livelihoods / (social) Entrepreneurship | I18: Cash Transfer Programming/Social Protection/Financial Inclusion | L18: Disability/Inclusivity, Livelihoods / (social) Entrepreneurship, Cash Transfer Programming/Social Protection/Financial Inclusion, , | M18: Implementer | N18: LNGO | O18: =COUNTIFS(Conveners!$B$2:$B$1798,"="&A18,Conveners!$AA$2:$AA$1798,">0") -> 0 | P18: =COUNTIFS(Challenges!$H$2:$H$982,"="&A18,Challenges!$H$2:$H$982,"<>") -> 0 | Q18: =COUNTIFS(Innovations!$C$2:$F$1628,"="&A18, Innovations!$C$2:$F$1628,"<>") -> 1 | R18: =COUNTIFS(Referrals!#REF!:'Referrals'!H1995,"="&A18, Referrals!#REF!:'Referrals'!H1995,"<>") ->  | S18: =COUNTIFS(Matchmaker!$B$2:$B$999,"="&A18,Matchmaker!$H$2:$H$999,"<>") -> 0 | T18: =COUNTIFS(Matchmaker!$B$2:$B$999,"="&A18,Matchmaker!$J$2:$J$999,"<>") -> 0 | U18: =COUNTIFS(Support!$C$2:$C$973,"="&A18,Support!$C$2:$C$973,"<>") -> 0 | Z18: Boaz Morea | AA18: Contact Person | AB18: abiuganda@oulook.com | AC18: abiuganda@outlook.com | AD18: 256 (0) 772 78 91 81 | AE18: Shalom Nahariya, Program Coordinator | AF18: Ntare Road Kamukuzi, | AI18: Mbarara, Uganda, 6016, Kampala
A19: ACAV-UG | B19: ACAV | C19: ACAV is an NGO established in 1985 in Africa and currently working in Sub Saharan Africa: Uganda, Democratic Republic of Congo and South Sudan. According to ACAV, the dignity and the happiness of each human being are fundamental values. For this reason we promote the culture of brotherhood, building solidarity bridges with Africa. We realize sustainable and shared projects with transparency and respecting the context, recognizing the value of the cultural exchange, of the comparison and of the reciprocal enrichment. | D19: https://www.acav.eu/en/ | E19: NGO | F19: Global / Multi-country / Foreign | G19: Displacement (refugees and IDPs) | H19: Food Security and Agriculture | I19: Education | L19: Displacement (refugees and IDPs), Food Security and Agriculture, Education, , | M19: Implementer | N19: INGO | O19: =COUNTIFS(Conveners!$B$2:$B$1798,"="&A19,Conveners!$AA$2:$AA$1798,">0") -> 0 | P19: =COUNTIFS(Challenges!$H$2:$H$982,"="&A19,Challenges!$H$2:$H$982,"<>") -> 0 | Q19: =COUNTIFS(Innovations!$C$2:$F$1628,"="&A19, Innovations!$C$2:$F$1628,"<>") -> 0 | R19: =COUNTIFS(Referrals!B19:'Referrals'!H1996,"="&A19, Referrals!B19:'Referrals'!H1996,"<>") -> 0 | S19: =COUNTIFS(Matchmaker!$B$2:$B$999,"="&A19,Matchmaker!$H$2:$H$999,"<>") -> 0 | T19: =COUNTIFS(Matchmaker!$B$2:$B$999,"="&A19,Matchmaker!$J$2:$J$999,"<>") -> 0 | U19: =COUNTIFS(Support!$C$2:$C$973,"="&A19,Support!$C$2:$C$973,"<>") -> 0 | V19: 0 | AB19: acav_kampala@yahoo.com | AE19: acav_kampala@yahoo.com
A20: ACBIO-UG | B20: AFRICAN CENTRE FOR BIODIVERSITY | C20: African Centre for Biodiversity is an NGO committed to dismantling inequalities in the food and agriculture systems in Africa through the promotion of agroecology and food sovereignty. | D20: https://www.acbio.org.za/ | E20: NGO | F20: Global / Multi-country / Foreign | G20: Food Security and Agriculture | H20: Food Security and Agriculture | I20: Social Behavioral Change Communication/Community Mobilization | J20: Cash Transfer Programming/Social Protection/Financial Inclusion | K20: Multi-sectoral | L20: Food Security and Agriculture, Food Security and Agriculture, Social Behavioral Change Communication/Community Mobilization, Cash Transfer Programming/Social Protection/Financial Inclusion, Multi-sectoral | M20: Implementer | N20: INGO | O20: =COUNTIFS(Conveners!$B$2:$B$1798,"="&A20,Conveners!$AA$2:$AA$1798,">0") -> 0 | P20: =COUNTIFS(Challenges!$H$2:$H$982,"="&A20,Challenges!$H$2:$H$982,"<>") -> 0 | Q20: =COUNTIFS(Innovations!$C$2:$F$1628,"="&A20, Innovations!$C$2:$F$1628,"<>") -> 0 | R20: =COUNTIFS(Referrals!B20:'Referrals'!H1997,"="&A20, Referrals!B20:'Referrals'!H1997,"<>") -> 0 | S20: =COUNTIFS(Matchmaker!$B$2:$B$999,"="&A20,Matchmaker!$H$2:$H$999,"<>") -> 0 | T20: =COUNTIFS(Matchmaker!$B$2:$B$999,"="&A20,Matchmaker!$J$2:$J$999,"<>") -> 0 | U20: =COUNTIFS(Support!$C$2:$C$973,"="&A20,Support!$C$2:$C$973,"<>") -> 0 | V20: 0 | AB20: office@acbio.org.za | AC20: mariam@acbio.org.za
A21: ACCESS-UG | B21: AFRICAN COMMUNITY CENTRE FOR SOCIAL SUSTAINABILITY | C21: The African Community Centre for Social Sustainability (ACCESS) is a community-based organization in the rural district of Uganda called Nakase. It was founded on the premise that everyone has a right to a healthy life with a mission to work with vulnerable people in resource-limited settings through provision of medical care, education and economic empowerment to create long lasting change that is owned by the entire community. | D21: https://accessUganda.org/ | E21: NGO | F21: Subnational and settlement-level | G21: Multi-sectoral | H21: Protection | I21: Economic Development | L21: Multi-sectoral, Protection, Economic Development, , | M21: Implementer | N21: LNGO | O21: =COUNTIFS(Conveners!$B$2:$B$1798,"="&A21,Conveners!$AA$2:$AA$1798,">0") -> 0 | P21: =COUNTIFS(Challenges!$H$2:$H$982,"="&A21,Challenges!$H$2:$H$982,"<>") -> 0 | Q21: =COUNTIFS(Innovations!$C$2:$F$1628,"="&A21, Innovations!$C$2:$F$1628,"<>") -> 0 | R21: =COUNTIFS(Referrals!B21:'Referrals'!H1998,"="&A21, Referrals!B21:'Referrals'!H1998,"<>") -> 0 | S21: =COUNTIFS(Matchmaker!$B$2:$B$999,"="&A21,Matchmaker!$H$2:$H$999,"<>") -> 0 | T21: =COUNTIFS(Matchmaker!$B$2:$B$999,"="&A21,Matchmaker!$J$2:$J$999,"<>") -> 0 | U21: =COUNTIFS(Support!$C$2:$C$973,"="&A21,Support!$C$2:$C$973,"<>") -> 0 | V21: 0 | Z21: Robert Kalyesubula | AA21: President | AB21: info@accessuganda.org | AC21: rkalyesubula@gmail.com | AE21: lifecareaccess@gmail.com | AL21: DIF APPLICANT
A22: ACCTFF-UG | B22: AFRICAN CHILDREN'S TELEVISION AND FILM FOUNDATION | C22: Africa Children Television and Film Foundation (ACTFF) is a non-profit public organization, which acts as a voice in policy matters, as a stakeholder and provider of African children's mobile phones, internet, television and film content, as an initiator of innovative and entertaining children's Media and the leading centre for valuable screen resources for the education sector. ACTFF was incorporated in November 2014 and opened its first head office in Kampala and operates all-over the African continent. | D22: https://actff.org/ | E22: NGO | F22: Global / Multi-country / Foreign | G22: Social Behavioral Change Communication/Community Mobilization | H22: Social Behavioral Change Communication/Community Mobilization | L22: Social Behavioral Change Communication/Community Mobilization, Social Behavioral Change Communication/Community Mobilization, , , | M22: Implementer | N22: Campaign | O22: =COUNTIFS(Conveners!$B$2:$B$1798,"="&A22,Conveners!$AA$2:$AA$1798,">0") -> 0 | P22: =COUNTIFS(Challenges!$H$2:$H$982,"="&A22,Challenges!$H$2:$H$982,"<>") -> 0 | Q22: =COUNTIFS(Innovations!$C$2:$F$1628,"="&A22, Innovations!$C$2:$F$1628,"<>") -> 0 | R22: =COUNTIFS(Referrals!B22:'Referrals'!H1999,"="&A22, Referrals!B22:'Referrals'!H1999,"<>") -> 0 | S22: =COUNTIFS(Matchmaker!$B$2:$B$999,"="&A22,Matchmaker!$H$2:$H$999,"<>") -> 0 | T22: =COUNTIFS(Matchmaker!$B$2:$B$999,"="&A22,Matchmaker!$J$2:$J$999,"<>") -> 0 | U22: =COUNTIFS(Support!$C$2:$C$973,"="&A22,Support!$C$2:$C$973,"<>") -> 0 | V22: 0 | AB22: info@actff.org | AC22: actff28@gmail.com | AE22: info@actff.org
A23: ACDIPE-UG | B23: ACTION FOR DISADVANTAGED PEOPLE UGANDA | C23: Action for Disadvantaged People Uganda (ACIDIPE) is a registered non-profit organization with a vision: an organization that excels in improving the quality of life of orphans, vulnerable children and disadvantaged people. Mission: to contribute to a process of giving hope to orphans, vulnerable children and disadvantaged people by facilitating them to acquire knowledge and skills required to make them self-reliant. | D23: www.acdipe.org | E23: NGO | F23: National | G23: Disability/Inclusivity | H23: Cash Transfer Programming/Social Protection/Financial Inclusion | I23: Shelter and NFIs | L23: Disability/Inclusivity, Cash Transfer Programming/Social Protection/Financial Inclusion, Shelter and NFIs, , | M23: Implementer | N23: LNGO | O23: =COUNTIFS(Conveners!$B$2:$B$1798,"="&A23,Conveners!$AA$2:$AA$1798,">0") -> 0 | P23: =COUNTIFS(Challenges!$H$2:$H$982,"="&A23,Challenges!$H$2:$H$982,"<>") -> 0 | Q23: =COUNTIFS(Innovations!$C$2:$F$1628,"="&A23, Innovations!$C$2:$F$1628,"<>") -> 0 | R23: =COUNTIFS(Referrals!B23:'Referrals'!H2000,"="&A23, Referrals!B23:'Referrals'!H2000,"<>") -> 0 | S23: =COUNTIFS(Matchmaker!$B$2:$B$999,"="&A23,Matchmaker!$H$2:$H$999,"<>") -> 0 | T23: =COUNTIFS(Matchmaker!$B$2:$B$999,"="&A23,Matchmaker!$J$2:$J$999,"<>") -> 0 | U23: =COUNTIFS(Support!$C$2:$C$973,"="&A23,Support!$C$2:$C$973,"<>") -> 0 | V23: 0 | Z23: George Ntambi. Director | AA23: Director | AB23: info@acdipe.org | AD23: 0758 309474 | AE23: 101/2Km along Bombo Rd P.O.BOX 22598, Kampala. Tel : +256-414-568625 Mobile : 0772-533676 | AF23: 7 Miles, Kagoma, Bombo Rd, Kampala | AI23: Physical Address: Kagoma – Near Kobil Fuel Station.
A24: ACDI-UG | B24: ACDI/VOCA | C24: ACDI/VOCA is a global development design and delivery partner that fosters broad-based economic growth, increased living standards, and community development. ACDI/VOCA designs and delivers technical and management solutions in agriculture, economic growth, and resilience to promote economic prosperity and social inclusion. | D24: https://www.acdivoca.org/ | E24: Social enterprise | F24: Global / Multi-country / Foreign | G24: Institutional Capacity Development/Ecosystem Support | H24: Economic Development | L24: Institutional Capacity Development/Ecosystem Support, Economic Development, , , | M24: Implementer | N24: INGO | O24: =COUNTIFS(Conveners!$B$2:$B$1798,"="&A24,Conveners!$AA$2:$AA$1798,">0") -> 0 | P24: =COUNTIFS(Challenges!$H$2:$H$982,"="&A24,Challenges!$H$2:$H$982,"<>") -> 0 | Q24: =COUNTIFS(Innovations!$C$2:$F$1628,"="&A24, Innovations!$C$2:$F$1628,"<>") -> 0 | R24: =COUNTIFS(Referrals!B24:'Referrals'!H2001,"="&A24, Referrals!B24:'Referrals'!H2001,"<>") -> 0 | S24: =COUNTIFS(Matchmaker!$B$2:$B$999,"="&A24,Matchmaker!$H$2:$H$999,"<>") -> 0 | T24: =COUNTIFS(Matchmaker!$B$2:$B$999,"="&A24,Matchmaker!$J$2:$J$999,"<>") -> 0 | U24: =COUNTIFS(Support!$C$2:$C$973,"="&A24,Support!$C$2:$C$973,"<>") -> 0 | V24: 0 | Z24: Charles J. Hall | AA24: Chief Executive Officer | AB24: acdivocainfo@acdivoca.org | AC24: lvalentedacosta@acdivoca.org | AE24: eboardman@acdivoca.org | AF24: plot 6 -8 Kibiria road, industrial area | AG24: KAMPALA | AI24: 32.59696 | AJ24: 0.315722 | AK24: TO IMPROVE ON THE LIVELIHOOD HEALTH
A25: ACET-UG | B25: AIDS CARE EDUCATION AND TRAINING UGANDA LTD | C25: AIDS CARE Education and Training (ACET) Uganda, is a non – government organization that is committed to the development of appropriate responses to HIV and AIDS initiatives and community development programmes. | D25: https://acet-uganda.org/ | E25: NGO | F25: National | G25: Health | H25: Protection | L25: Health, Protection, , , | M25: Knowledge | N25: Training | O25: =COUNTIFS(Conveners!$B$2:$B$1798,"="&A25,Conveners!$AA$2:$AA$1798,">0") -> 1 | P25: =COUNTIFS(Challenges!$H$2:$H$982,"="&A25,Challenges!$H$2:$H$982,"<>") -> 0 | Q25: =COUNTIFS(Innovations!$C$2:$F$1628,"="&A25, Innovations!$C$2:$F$1628,"<>") -> 0 | R25: =COUNTIFS(Referrals!B25:'Referrals'!H2002,"="&A25, Referrals!B25:'Referrals'!H2002,"<>") -> 0 | S25: =COUNTIFS(Matchmaker!$B$2:$B$999,"="&A25,Matchmaker!$H$2:$H$999,"<>") -> 0 | T25: =COUNTIFS(Matchmaker!$B$2:$B$999,"="&A25,Matchmaker!$J$2:$J$999,"<>") -> 0 | U25: =COUNTIFS(Support!$C$2:$C$973,"="&A25,Support!$C$2:$C$973,"<>") -> 0 | V25: 1 | AB25: acet@afsat.com | AC25: acet@acet-uganda.org | AD25: +256 414 267826 | AF25: Plot 80 Makindye, Kizungu lane(off Makindye hill road) | AG25: KAMPALA | AI25: 32.59696 | AJ25: 0.315722 | AK25: TO PROMOTE TRAINING AND EDUCATION ON HIV/AIDS
A26: ACE-UG | B26: AFRICAN CLEAN ENERGY | C26: African Clean Energy's mission is to enable clean cooking and sustainable energy for sub-Saharan Africa and beyond. The ACE One provides a solution that addresses the full spectrum of Base-of-Pyramid energy needs. The device symbiotically pairs thermal and electric generation by using a solar-charged LiFePO4 battery to not only give users access to electricity, but also to power the ventilator needed to create a truly clean biomass combustion. This enables the product to have the cross-sectoral positive impact of a cookstove, with the business model of a solar home system. | D26: www.africancleanenergy.com | E26: For-profit | F26: Global / Multi-country / Foreign | G26: Energy/Environment | L26: Energy/Environment, , , , | M26: Private Sector | N26: Energy | O26: =COUNTIFS(Conveners!$B$2:$B$1798,"="&A26,Conveners!$AA$2:$AA$1798,">0") -> 0 | P26: =COUNTIFS(Challenges!$H$2:$H$982,"="&A26,Challenges!$H$2:$H$982,"<>") -> 0 | Q26: =COUNTIFS(Innovations!$C$2:$F$1628,"="&A26, Innovations!$C$2:$F$1628,"<>") -> 0 | R26: =COUNTIFS(Referrals!B26:'Referrals'!H2003,"="&A26, Referrals!B26:'Referrals'!H2003,"<>") -> 0 | S26: =COUNTIFS(Matchmaker!$B$2:$B$999,"="&A26,Matchmaker!$H$2:$H$999,"<>") -> 0 | T26: =COUNTIFS(Matchmaker!$B$2:$B$999,"="&A26,Matchmaker!$J$2:$J$999,"<>") -> 0 | U26: =COUNTIFS(Support!$C$2:$C$973,"="&A26,Support!$C$2:$C$973,"<>") -> 0 | V26: 0 | Z26: Tyler Sanderson | AA26: Operations Director - East Africa | AB26: info@ace-taf.org | AC26: tyler@africancleanenergy.com | AL26: DIF APPLICANT
A27: ACF-UG | B27: ACTION AGAINST HUNGER | C27: Action Against Hunger is the world’s hunger specialist and leader in a global movement that aims to end life-threatening hunger for good with primary goal is to create a better way to deal with hunger as our teams have been on the front lines, treating and preventing malnutrition across nearly 50 countries. Action against Hungry save the lives of children and their families and help with disaster strikes, as they enable people to provide for themselves, see their children grow up strong, and for whole communities to prosper. | D27: https://www.actionagainsthunger.org/ | E27: Donor | F27: Global / Multi-country / Foreign | G27: Food Security and Agriculture | H27: Nutrition | I27: Livelihoods / (social) Entrepreneurship | J27: Cash Transfer Programming/Social Protection/Financial Inclusion | K27: Multi-sectoral | L27: Food Security and Agriculture, Nutrition, Livelihoods / (social) Entrepreneurship, Cash Transfer Programming/Social Protection/Financial Inclusion, Multi-sectoral | M27: Implementer | N27: INGO | O27: =COUNTIFS(Conveners!$B$2:$B$1798,"="&A27,Conveners!$AA$2:$AA$1798,">0") -> 1 | P27: =COUNTIFS(Challenges!$H$2:$H$982,"="&A27,Challenges!$H$2:$H$982,"<>") -> 1 | Q27: =COUNTIFS(Innovations!$C$2:$F$1628,"="&A27, Innovations!$C$2:$F$1628,"<>") -> 0 | R27: =COUNTIFS(Referrals!B27:'Referrals'!H2004,"="&A27, Referrals!B27:'Referrals'!H2004,"<>") -> 0 | S27: =COUNTIFS(Matchmaker!$B$2:$B$999,"="&A27,Matchmaker!$H$2:$H$999,"<>") -> 0 | T27: =COUNTIFS(Matchmaker!$B$2:$B$999,"="&A27,Matchmaker!$J$2:$J$999,"<>") -> 0 | U27: =COUNTIFS(Support!$C$2:$C$973,"="&A27,Support!$C$2:$C$973,"<>") -> 0 | V27: 2 | W27: Multilateral Organisations | Z27: Claire Mazin | AA27: Country Director | AB27: acfuglogco@iwayafrica.com | AC27: info@actionagainsthunger.org | AD27: 031 2262794 | AE27: Sebastien Chevalier <dcdp@ug-actionagainsthunger.org> | AF27: Plot 1188/9/90 Embassy Plaza, 2nd Floor, Ggaba Road, Kampala | AL27: LINS | AM27: Active
A28: ACME-UG | B28: ACME PROJECT ASSOCIATES | C28: ACME Project Associates was formed to support management of development/social projects and offer project management advisory services in Uganda. The company works with clients to provide hands- on management solutions. | D28: https://www.facebook.com/ACME-Project-Associates-Limited-111224147139678/ | E28: For-profit | F28: National | G28: Livelihoods / (social) Entrepreneurship | H28: Monitoring Evaluation Accountability and Learning (MEAL) | L28: Livelihoods / (social) Entrepreneurship, Monitoring Evaluation Accountability and Learning (MEAL), , , | M28: Knowledge | N28: Training | O28: =COUNTIFS(Conveners!$B$2:$B$1798,"="&A28,Conveners!$AA$2:$AA$1798,">0") -> 0 | P28: =COUNTIFS(Challenges!$H$2:$H$982,"="&A28,Challenges!$H$2:$H$982,"<>") -> 0 | Q28: =COUNTIFS(Innovations!$C$2:$F$1628,"="&A28, Innovations!$C$2:$F$1628,"<>") -> 0 | R28: =COUNTIFS(Referrals!B28:'Referrals'!H2005,"="&A28, Referrals!B28:'Referrals'!H2005,"<>") -> 0 | S28: =COUNTIFS(Matchmaker!$B$2:$B$999,"="&A28,Matchmaker!$H$2:$H$999,"<>") -> 0 | T28: =COUNTIFS(Matchmaker!$B$2:$B$999,"="&A28,Matchmaker!$J$2:$J$999,"<>") -> 0 | U28: =COUNTIFS(Support!$C$2:$C$973,"="&A28,Support!$C$2:$C$973,"<>") -> 0 | V28: 0 | Z28: Peter Mugagga | AA28: Director | AB28: mugagga@gmail.com | AD28: +256 759800115 | AF28: Kampala
A29: ACME-UG | B29: AFRICAN CENTRE FOR MEDIA/COMMUNICATION EXCELLENCE | C29: The African Centre for Media Excellence is a Kampala-based independent, non-profit professional organisation that is committed to excellence in journalism and mass communication in Africa with a goal to make the Media a more effective platform for the provision of information on public affairs, a tool for monitoring official power, and a forum for vibrant public debate. ACME has a unique approach to continuing training and education. Instead of one-off workshops, which are common in the region, ACME employs a long-term approach in which practical training workshops are complemented by mentoring and coaching over a period of several months. | D29: http://www.acme-ug.org | E29: NGO | F29: National | G29: Media/Communication | L29: Media/Communication, , , , | M29: Knowledge | N29: Technical Expertise | O29: =COUNTIFS(Conveners!$B$2:$B$1798,"="&A29,Conveners!$AA$2:$AA$1798,">0") -> 0 | P29: =COUNTIFS(Challenges!$H$2:$H$982,"="&A29,Challenges!$H$2:$H$982,"<>") -> 0 | Q29: =COUNTIFS(Innovations!$C$2:$F$1628,"="&A29, Innovations!$C$2:$F$1628,"<>") -> 0 | R29: =COUNTIFS(Referrals!B29:'Referrals'!H2006,"="&A29, Referrals!B29:'Referrals'!H2006,"<>") -> 0 | S29: =COUNTIFS(Matchmaker!$B$2:$B$999,"="&A29,Matchmaker!$H$2:$H$999,"<>") -> 0 | T29: =COUNTIFS(Matchmaker!$B$2:$B$999,"="&A29,Matchmaker!$J$2:$J$999,"<>") -> 0 | U29: =COUNTIFS(Support!$C$2:$C$973,"="&A29,Support!$C$2:$C$973,"<>") -> 0 | V29: 0 | Z29: Susan Nsibirwa | AA29: Chairperson | AB29: info@acme-ug.org | AD29: 031 2202351
A30: ACODE-UG | B30: ADVOCATES COALITION FOR DEVELOPMENT AND ENVIRONMENT | C30: Advocates Coalition for Development and Environment (ABODE) is an independent public policy research and advocacy think tank based in Uganda, working in the east and southern Africa sub-regions on a wide range of public policy issues to enhance responsiveness of the mandated central government institutions through strengthened governance structures and processes at the local government level. | D30: https://www.acode-u.org/ | E30: NGO | F30: National | G30: Protection | H30: Education | I30: Livelihoods / (social) Entrepreneurship | L30: Protection, Education, Livelihoods / (social) Entrepreneurship, , | M30: Knowledge | N30: Policy | O30: =COUNTIFS(Conveners!$B$2:$B$1798,"="&A30,Conveners!$AA$2:$AA$1798,">0") -> 1 | P30: =COUNTIFS(Challenges!$H$2:$H$982,"="&A30,Challenges!$H$2:$H$982,"<>") -> 0 | Q30: =COUNTIFS(Innovations!$C$2:$F$1628,"="&A30, Innovations!$C$2:$F$1628,"<>") -> 0 | R30: =COUNTIFS(Referrals!B30:'Referrals'!H2007,"="&A30, Referrals!B30:'Referrals'!H2007,"<>") -> 0 | S30: =COUNTIFS(Matchmaker!$B$2:$B$999,"="&A30,Matchmaker!$H$2:$H$999,"<>") -> 0 | T30: =COUNTIFS(Matchmaker!$B$2:$B$999,"="&A30,Matchmaker!$J$2:$J$999,"<>") -> 0 | U30: =COUNTIFS(Support!$C$2:$C$973,"="&A30,Support!$C$2:$C$973,"<>") -> 0 | V30: 1 | Z30: Dr. Arthur Bain Mugisha | AA30: Executive Director | AB30: acode@acode-u.org | AD30: 256 312 812150 | AE30: Onesimus Mugyenyi Research Fellow/Deputy Executive Director | AF30: 96 Kanjokya Street, Kamwokya | AI30: Box 29836
A31: ACORD-UG | B31: AGENCY FOR COOPERATION AND RESEARCH IN DEVELOPMENT | C31: Agency for Cooperation and Research in Development (ACORD) was formed by insurance carriers and agents focused on building efficiencies in the united states property casualty insurance market. Originally named agent Company Operations Research and Development (ACORD), the organization's initial goal was to standardize the many proprietary forms being used by carriers for new business and claims submission. ACORD is widely known across the industry for the publication and maintenance of an extensive archive of standardized forms. Acord has also developed a comprehensive library of electronic data standards with more than 1200 standardized transaction types to support exchange of insurance data between trading partners. | D31: http://www.acordinternational.org/ | E31: NGO | F31: Global / Multi-country / Foreign | G31: Human Rights/Legal | H31: Cash Transfer Programming/Social Protection/Financial Inclusion | I31: Monitoring Evaluation Accountability and Learning (MEAL) | L31: Human Rights/Legal, Cash Transfer Programming/Social Protection/Financial Inclusion, Monitoring Evaluation Accountability and Learning (MEAL), , | M31: Implementer | N31: INGO | O31: =COUNTIFS(Conveners!$B$2:$B$1798,"="&A31,Conveners!$AA$2:$AA$1798,">0") -> 0 | P31: =COUNTIFS(Challenges!$H$2:$H$982,"="&A31,Challenges!$H$2:$H$982,"<>") -> 0 | Q31: =COUNTIFS(Innovations!$C$2:$F$1628,"="&A31, Innovations!$C$2:$F$1628,"<>") -> 0 | R31: =COUNTIFS(Referrals!B31:'Referrals'!H2008,"="&A31, Referrals!B31:'Referrals'!H2008,"<>") -> 0 | S31: =COUNTIFS(Matchmaker!$B$2:$B$999,"="&A31,Matchmaker!$H$2:$H$999,"<>") -> 0 | T31: =COUNTIFS(Matchmaker!$B$2:$B$999,"="&A31,Matchmaker!$J$2:$J$999,"<>") -> 0 | U31: =COUNTIFS(Support!$C$2:$C$973,"="&A31,Support!$C$2:$C$973,"<>") -> 0 | V31: 0 | Z31: Catherine Odenyo Ndekera | AA31: Country Director | AB31: catherine.ndekera@acordinternational.org | AE31: Dennis Nduhura-Country Director-dennis.nduhura@acordinternational.org
A32: ACR-UG | B32: ADVOCACY FOR CHILD RELIEF | C32: Advocacy for Child Relief (ACR) is an independent, nonpartisan, founded by a group of young Ugandan children wellness activists and professionals in response to the ever-increasing vulnerability and poverty in children and families they live in. ACR is an organisation that passionately believes that every child has the right to survival, protection, education, and a right to have their voice heard so that they can live a meaningful and purposeful life. | D32: https://acrug.org/ | E32: NGO | F32: National | G32: Youth | H32: Protection | L32: Youth, Protection, , , | M32: Implementer | N32: LNGO | O32: =COUNTIFS(Conveners!$B$2:$B$1798,"="&A32,Conveners!$AA$2:$AA$1798,">0") -> 1 | P32: =COUNTIFS(Challenges!$H$2:$H$982,"="&A32,Challenges!$H$2:$H$982,"<>") -> 0 | Q32: =COUNTIFS(Innovations!$C$2:$F$1628,"="&A32, Innovations!$C$2:$F$1628,"<>") -> 0 | R32: =COUNTIFS(Referrals!B32:'Referrals'!H2009,"="&A32, Referrals!B32:'Referrals'!H2009,"<>") -> 0 | S32: =COUNTIFS(Matchmaker!$B$2:$B$999,"="&A32,Matchmaker!$H$2:$H$999,"<>") -> 0 | T32: =COUNTIFS(Matchmaker!$B$2:$B$999,"="&A32,Matchmaker!$J$2:$J$999,"<>") -> 0 | U32: =COUNTIFS(Support!$C$2:$C$973,"="&A32,Support!$C$2:$C$973,"<>") -> 0 | V32: 1 | Z32: FRANK KIYINGI | AA32: Executive Director | AB32: info@acrug.org | AD32: (+256) 779860083 | AF32: 1st Floor, Kabaka Anjagala Road, Nkumba University Building
A33: ACSA-UG | B33: ADVOCACY COALITION FOR SUSTAINABLE AGRICULTURE | C33: Advocacy Coalition for Sustainable Agriculture (ACSA) is legally registered network of Civil Society organizations (CSOs), which works with smallholder farmers and promote Sustainable Agriculture, Agricultural market development, research and advocacy | D33: https://acsa-ug.org/about/ | E33: NGO | F33: National | G33: Food Security and Agriculture | L33: Food Security and Agriculture, , , , | M33: Implementer | N33: Social Enterprise | O33: =COUNTIFS(Conveners!$B$2:$B$1798,"="&A33,Conveners!$AA$2:$AA$1798,">0") -> 0 | P33: =COUNTIFS(Challenges!$H$2:$H$982,"="&A33,Challenges!$H$2:$H$982,"<>") -> 0 | Q33: =COUNTIFS(Innovations!$C$2:$F$1628,"="&A33, Innovations!$C$2:$F$1628,"<>") -> 0 | R33: =COUNTIFS(Referrals!B1753:'Referrals'!H3742,"="&A33, Referrals!B1753:'Referrals'!H3742,"<>") -> 0 | S33: =COUNTIFS(Matchmaker!$B$2:$B$999,"="&A33,Matchmaker!$H$2:$H$999,"<>") -> 0 | T33: =COUNTIFS(Matchmaker!$B$2:$B$999,"="&A33,Matchmaker!$J$2:$J$999,"<>") -> 0 | U33: =COUNTIFS(Support!$D$2:$D$973,"="&A33,Support!$D$2:$D$973,"<>") -> 0 | V33: 0 | Z33: Ms. Joan Lule | AA33: Administrative Assistant | AB33: info@acsa-ug.org | AD33: 0772 463220 | AE33: Plot 272, Nsambya Estate | AF33: Kampala, Nsambya | AM33: Active
A34: ACTED-UG | B34: AGENCY FOR TECHNICAL COOPERATION AND DEVELOPMENT | C34: Agency for Technical Cooperation and Development (ACTED) is a non-political and non-confessional international NGO Food Security and Agriculture, health promotion, economic development, education, microfinance, institutional support and regional founded in 1993 and headquartered in Paris, France. ACTi's vocation is to save lives, assist vulnerable dialogue as well as cultural promotion. For its programs in northern Uganda, Karamoja and Kampala, acted is looking populations and bring hope to those in need for a better future. Acted’s mission is to save lives and support people in meeting their needs in hard to reach areas. ACTED develops and implements programs that target the most vulnerable amongst populations that have suffered from conflict, natural disaster, or socio-economic hardship. | D34: https://www.acted.org/en/ | E34: NGO | F34: Global / Multi-country / Foreign | G34: Protection | H34: Livelihoods / (social) Entrepreneurship | I34: Cash Transfer Programming/Social Protection/Financial Inclusion | L34: Protection, Livelihoods / (social) Entrepreneurship, Cash Transfer Programming/Social Protection/Financial Inclusion, , | M34: Implementer | N34: INGO | O34: =COUNTIFS(Conveners!$B$2:$B$1798,"="&A34,Conveners!$AA$2:$AA$1798,">0") -> 0 | P34: =COUNTIFS(Challenges!$H$2:$H$982,"="&A34,Challenges!$H$2:$H$982,"<>") -> 0 | Q34: =COUNTIFS(Innovations!$C$2:$F$1628,"="&A34, Innovations!$C$2:$F$1628,"<>") -> 0 | R34: =COUNTIFS(Referrals!B33:'Referrals'!H2010,"="&A34, Referrals!B33:'Referrals'!H2010,"<>") -> 0 | S34: =COUNTIFS(Matchmaker!$B$2:$B$999,"="&A34,Matchmaker!$H$2:$H$999,"<>") -> 0 | T34: =COUNTIFS(Matchmaker!$B$2:$B$999,"="&A34,Matchmaker!$J$2:$J$999,"<>") -> 0 | U34: =COUNTIFS(Support!$C$2:$C$973,"="&A34,Support!$C$2:$C$973,"<>") -> 0 | V34: =SUM(O34:U34) -> 0 | Z34: Rosselle Lombardi | AA34: Program Director | AB34: kampala@acted.org | AD34: 757717186 | AE34: uganda@acted.org | AF34: P.O. Box 37665 | AI34: Plot 1102 Nsambya Road Kampala. | AK34: Acted’s approach looks beyond the imMedia/Communicationte emergency towards opportunities for longer term Livelihoods / (social) Entrepreneurship reconstruction and sustainable development.
A35: ACTIVSPACES-UG | B35: AFRICAN CENTER FOR TECHNOLOGY INNOVATION AND VENTURES SPACES | C35: ACTIVSPACES was created to help increase the odds of success for these young innovators by creating favorable environments that will serve as catalysts permitting their technology innovations to thrive by bringing together tech communities and create spaces where techies and tech entrepreneurs come to learn, work and bring ideas alive. | D35: https://www.activspaces.com | E35: NGO | F35: Global / Multi-country / Foreign | G35: Institutional Capacity Development/Ecosystem Support | H35: Engineering/Infrastructure | I35: Livelihoods / (social) Entrepreneurship | L35: Institutional Capacity Development/Ecosystem Support, Engineering/Infrastructure, Livelihoods / (social) Entrepreneurship, , | M35: Innovation Support | N35: Network | O35: =COUNTIFS(Conveners!$B$2:$B$1798,"="&A35,Conveners!$AA$2:$AA$1798,">0") -> 0 | P35: =COUNTIFS(Challenges!$H$2:$H$982,"="&A35,Challenges!$H$2:$H$982,"<>") -> 0 | Q35: =COUNTIFS(Innovations!$C$2:$F$1628,"="&A35, Innovations!$C$2:$F$1628,"<>") -> 0 | R35: =COUNTIFS(Referrals!#REF!:'Referrals'!H2011,"="&A35, Referrals!#REF!:'Referrals'!H2011,"<>") ->  | S35: =COUNTIFS(Matchmaker!$B$2:$B$999,"="&A35,Matchmaker!$H$2:$H$999,"<>") -> 0 | T35: =COUNTIFS(Matchmaker!$B$2:$B$999,"="&A35,Matchmaker!$J$2:$J$999,"<>") -> 0 | U35: =COUNTIFS(Support!$C$2:$C$973,"="&A35,Support!$C$2:$C$973,"<>") -> 0 | Z35: Rebecca Enonchong | AA35: Cofounder, Board Chair | AB35: gloriapnky@yahoo.com | AD35: (+237) 233 32 24 89 | AE35: 1st Trust Building, Great Soppo, Buea, Cameroon P.O Box 198 Buea Tel.: (+237) 233 32 24 49 / 678 94 92 41 Email: buea@activspaces.com Web: www.activspaces.com/about/hubs/buea | AK35: ActivSpaces's mission is to collect, train, encourage, support and delight young Cameroonian innovators into becoming world class entrepreneurs or technology adopters capable of building successful technology enterprises.
A36: ACTTOGETHER-UG | B36: ACT TOGETHER FOR THE VULNERABLE CHILD AND WOMEN | C36: Act Together for the Vulnerable Child and Women advocates human rights for the refugees and gives entrepreneurship training to women and vulnerable children. The organisations also practice farm as a group as well and get the harvests and then sell as a group. | D36: NA | E36: NGO | F36: Subnational and settlement-level | G36: Livelihoods / (social) Entrepreneurship | H36: Human Rights/Legal | I36: Gender | L36: Livelihoods / (social) Entrepreneurship, Human Rights/Legal, Gender, , | M36: Implementer | N36: LNGO | O36: =COUNTIFS(Conveners!$B$2:$B$1798,"="&A36,Conveners!$AA$2:$AA$1798,">0") -> 1 | P36: =COUNTIFS(Challenges!$H$2:$H$982,"="&A36,Challenges!$H$2:$H$982,"<>") -> 0 | Q36: =COUNTIFS(Innovations!$C$2:$F$1628,"="&A36, Innovations!$C$2:$F$1628,"<>") -> 0 | R36: =COUNTIFS(Referrals!B34:'Referrals'!H2012,"="&A36, Referrals!B34:'Referrals'!H2012,"<>") -> 0 | S36: =COUNTIFS(Matchmaker!$B$2:$B$999,"="&A36,Matchmaker!$H$2:$H$999,"<>") -> 0 | T36: =COUNTIFS(Matchmaker!$B$2:$B$999,"="&A36,Matchmaker!$J$2:$J$999,"<>") -> 0 | U36: =COUNTIFS(Support!$C$2:$C$973,"="&A36,Support!$C$2:$C$973,"<>") -> 0 | V36: 1 | W36: Refugee-Led Organisation | Z36: Demoul Mulongecha | AA36: Field officer | AD36: 773177216 | AF36: Adjumani town council | AG36: Isingiro | AH36: Nakivale | AI36: CBO | AJ36: Isingiro | AK36: ULEARN STAKEHOLDERS MAPPING EXERCISE (Fri 3/26/2021) WOMEN LED | AL36: ULEARN | AM36: Active
A37: ACUMEN-UG | B37: ACUMEN FUND | C37: Acumen Fund is an impact investment fund which has been investing in East Africa since 2001, and the East African portfolio is one of its largest under management. Their investments span across several sectors, and across East African countries. Acumen raises charitable donations to invest in companies, leaders, and ideas who tackle poverty in developing countries. The fund operates like a venture capital fund for the poor, supported by a global community of philanthropists willing to take a bet on a new approach. Donors are called “partners” and treated like investors. The fund invests in companies leading innovations in hand-held solar power, cook stoves, off-grid generation, home systems, bio-gasification systems, and s. | D37: https://acumen.org/east-africa/ | E37: Donor | F37: Global / Multi-country / Foreign | G37: Institutional Capacity Development/Ecosystem Support | H37: Economic Development | I37: Livelihoods / (social) Entrepreneurship | L37: Institutional Capacity Development/Ecosystem Support, Economic Development, Livelihoods / (social) Entrepreneurship, , | M37: Finance | N37: Fund | O37: =COUNTIFS(Conveners!$B$2:$B$1798,"="&A37,Conveners!$AA$2:$AA$1798,">0") -> 0 | P37: =COUNTIFS(Challenges!$H$2:$H$982,"="&A37,Challenges!$H$2:$H$982,"<>") -> 0 | Q37: =COUNTIFS(Innovations!$C$2:$F$1628,"="&A37, Innovations!$C$2:$F$1628,"<>") -> 0 | R37: =COUNTIFS(Referrals!B35:'Referrals'!H2013,"="&A37, Referrals!B35:'Referrals'!H2013,"<>") -> 0 | S37: =COUNTIFS(Matchmaker!$B$2:$B$999,"="&A37,Matchmaker!$H$2:$H$999,"<>") -> 0 | T37: =COUNTIFS(Matchmaker!$B$2:$B$999,"="&A37,Matchmaker!$J$2:$J$999,"<>") -> 0 | U37: =COUNTIFS(Support!$C$2:$C$973,"="&A37,Support!$C$2:$C$973,"<>") -> 0 | V37: 0 | Z37: Patrick Oketa | AA37: Contact person | AD37: 254 703 663 868 | AE37: Acumen Fund is a non-profit organization that focuses on poverty eradication established in 2001 and based in New York, New York. The firm raises charitable donations to make patient long-term debt or equity investments in early-stage companies providing reliable and affordable access to agricultural inputs, quality education, clean energy, healthcare services, formal housing, and safe drinking water to low-income customers. Founded in 2001, the firm is based in New York, New York and operates in Karachi, London, Mumbai, Nairobi, San Francisco, Accra and Bogota among locations. | AF37: P.O. Box 101883-00101 Jamia Nairobi, Kenya | AI37: 1st Floor, Cape Office Park Opposite Yaya Centre, Ring Road, Kilimani
A38: ADAPT-UG | B38: ADAPT PLUS | C38: Adapt + is a green social enterprise company incorporated in Uganda with a mission to provide appropriate technological and innovative solutions in the areas of energy and Food Security and Agriculture among smallholder farmers in Uganda. The company proposes to setup production of multi-fuel efficient stove “nyota” to address the core problem in energy-insecure situations especially the refugee settlements to help low-income beneficiaries to effectively use what is available around them to meet the pressing energy needs. The stove focuses on the biomass that is not targeted by most energy solutions – loose biomass, twigs, agricultural residues, dung etc., but can also efficiently use traditional fuels like firewood, charcoal and briquettes and adapt+ will train the community in fabrication rather than distribute stoves. | D38: https://www.npfug.com/index.php/adapt-plus | E38: For-profit | F38: National | G38: Energy/Environment | H38: Livelihoods / (social) Entrepreneurship | I38: Livelihoods / (social) Entrepreneurship | L38: Energy/Environment, Livelihoods / (social) Entrepreneurship, Livelihoods / (social) Entrepreneurship, , | M38: Private Sector | N38: Energy | O38: =COUNTIFS(Conveners!$B$2:$B$1798,"="&A38,Conveners!$AA$2:$AA$1798,">0") -> 0 | P38: =COUNTIFS(Challenges!$H$2:$H$982,"="&A38,Challenges!$H$2:$H$982,"<>") -> 0 | Q38: =COUNTIFS(Innovations!$C$2:$F$1628,"="&A38, Innovations!$C$2:$F$1628,"<>") -> 1 | R38: =COUNTIFS(Referrals!B36:'Referrals'!H2014,"="&A38, Referrals!B36:'Referrals'!H2014,"<>") -> 0 | S38: =COUNTIFS(Matchmaker!$B$2:$B$999,"="&A38,Matchmaker!$H$2:$H$999,"<>") -> 0 | T38: =COUNTIFS(Matchmaker!$B$2:$B$999,"="&A38,Matchmaker!$J$2:$J$999,"<>") -> 0 | U38: =COUNTIFS(Support!$C$2:$C$973,"="&A38,Support!$C$2:$C$973,"<>") -> 0 | V38: 1 | Z38: David Kintu Nkwanga | AA38: CEO | AB38: adaptplus@gmail.com | AD38: 392966008 | AE38: www.adaotplus.npfug.net | AF38: Katende-Kasanje Rd, Off Kampala Masaka Rd P.O. Box 29455 | AI38: Bukere, Kyaka II Refugee Settlement, 041256 | AJ38: Kyegegwa, Kyenjojo, Uganda | AL38: GREEN INNOVATION
A39: ADAS-UG | B39: AFRICA DIGITAL ADRESS SYSTEM | C39: Africa Digital Address System is a digital address system that enables you to transform any location into a digital address. By use of geocoding technology, the platform can transform any location on the face of the earth into an easy and memorable digital address. | D39: https://adas.app/ | E39: Social enterprise | F39: National | G39: Disaster Risk Reduction/Emergency Logistics/Early Warning Systems | H39: Media/Communication | I39: IT/Digital/ICT4D | J39: Multi-sectoral | L39: Disaster Risk Reduction/Emergency Logistics/Early Warning Systems, Media/Communication, IT/Digital/ICT4D, Multi-sectoral, | M39: Private Sector | N39: Startup | O39: =COUNTIFS(Conveners!$B$2:$B$1798,"="&A39,Conveners!$AA$2:$AA$1798,">0") -> 0 | P39: =COUNTIFS(Challenges!$H$2:$H$982,"="&A39,Challenges!$H$2:$H$982,"<>") -> 0 | Q39: =COUNTIFS(Innovations!$C$2:$F$1628,"="&A39, Innovations!$C$2:$F$1628,"<>") -> 1 | R39: =COUNTIFS(Referrals!#REF!:'Referrals'!H2015,"="&A39, Referrals!#REF!:'Referrals'!H2015,"<>") ->  | S39: =COUNTIFS(Matchmaker!$B$2:$B$999,"="&A39,Matchmaker!$H$2:$H$999,"<>") -> 0 | T39: =COUNTIFS(Matchmaker!$B$2:$B$999,"="&A39,Matchmaker!$J$2:$J$999,"<>") -> 0 | U39: =COUNTIFS(Support!$C$2:$C$973,"="&A39,Support!$C$2:$C$973,"<>") -> 0 | Z39: Yusuf Kayiwa | AA39: Lead developer | AB39: info@adas.africa | AD39: 256 393 208830
A40: ADB-UG | B40: AFRICAN DEVELOPMENT BANK | C40: Africa Development Bank (AFDB) is a multilateral development finance institution. The AFDB was founded in 1964 and comprises three entities: the African Development Bank, the African Development Fund and the Nigeria Trust Fund. The AFBD's mission is to fight poverty and improve living conditions on the continent through promoting the investment of public and private capital in projects and programs that are likely to contribute to the economic and social development of the region. | D40: https://www.afdb.org/en | E40: Donor | F40: Global / Multi-country / Foreign | G40: Institutional Capacity Development/Ecosystem Support | H40: Economic Development | I40: Livelihoods / (social) Entrepreneurship | L40: Institutional Capacity Development/Ecosystem Support, Economic Development, Livelihoods / (social) Entrepreneurship, , | M40: Finance | N40: Banking | O40: =COUNTIFS(Conveners!$B$2:$B$1798,"="&A40,Conveners!$AA$2:$AA$1798,">0") -> 0 | P40: =COUNTIFS(Challenges!$H$2:$H$982,"="&A40,Challenges!$H$2:$H$982,"<>") -> 0 | Q40: =COUNTIFS(Innovations!$C$2:$F$1628,"="&A40, Innovations!$C$2:$F$1628,"<>") -> 0 | R40: =COUNTIFS(Referrals!B37:'Referrals'!H2016,"="&A40, Referrals!B37:'Referrals'!H2016,"<>") -> 1 | S40: =COUNTIFS(Matchmaker!$B$2:$B$999,"="&A40,Matchmaker!$H$2:$H$999,"<>") -> 0 | T40: =COUNTIFS(Matchmaker!$B$2:$B$999,"="&A40,Matchmaker!$J$2:$J$999,"<>") -> 0 | U40: =COUNTIFS(Support!$C$2:$C$973,"="&A40,Support!$C$2:$C$973,"<>") -> 0 | V40: 1 | Z40: Mr. Kennedy MBEKEANI | AA40: Uganda Country Manager | AB40: K.MBEKEANI@AFDB.ORG | AD40: 256) 414 236 166/7 | AF40: African Development Bank Group 14th Floor, Crested Towers Building | AI40: Plot 17/22 Hannington Road P.O. Box 28509
A41: ADC-UG | B41: AFRICAN DEVELOPMENT CORPS | C41: Africa Development Corps (ADC), formerly known as Visions In Action (VIA), was founded by Shaun Skelton, Andre Iecann and Charles Mutisya in 1989. While lecturing on management at the university of Nairobi during the 1988-89 school year, shaun discovered that nonprofit organizations in Kenya had a great need for different types of volunteers; ones who worked in an urban setting, at a computer in an office, designing brochures and writing funding proposals, as opposed to the more traditional rural field work. There was a need for volunteers in nontraditional sectors of development, such as human rights, democratization and journalism. For 25 years Africa development corps has fulfilled this need by sending volunteers to the developing world to work for grassroots organizations working in these sectors. | D41: http://www.africadevcorps.org/ | E41: NGO | F41: Global / Multi-country / Foreign | G41: Institutional Capacity Development/Ecosystem Support | H41: Education | I41: Livelihoods / (social) Entrepreneurship | L41: Institutional Capacity Development/Ecosystem Support, Education, Livelihoods / (social) Entrepreneurship, , | M41: Implementer | N41: INGO | O41: =COUNTIFS(Conveners!$B$2:$B$1798,"="&A41,Conveners!$AA$2:$AA$1798,">0") -> 0 | P41: =COUNTIFS(Challenges!$H$2:$H$982,"="&A41,Challenges!$H$2:$H$982,"<>") -> 0 | Q41: =COUNTIFS(Innovations!$C$2:$F$1628,"="&A41, Innovations!$C$2:$F$1628,"<>") -> 0 | R41: =COUNTIFS(Referrals!B38:'Referrals'!H2017,"="&A41, Referrals!B38:'Referrals'!H2017,"<>") -> 0 | S41: =COUNTIFS(Matchmaker!$B$2:$B$999,"="&A41,Matchmaker!$H$2:$H$999,"<>") -> 0 | T41: =COUNTIFS(Matchmaker!$B$2:$B$999,"="&A41,Matchmaker!$J$2:$J$999,"<>") -> 0 | U41: =COUNTIFS(Support!$C$2:$C$973,"="&A41,Support!$C$2:$C$973,"<>") -> 0 | V41: 0 | Z41: Jane Angom | AA41: Country Manager | AB41: ed@dowafa.org | AE41: jangom@africadevcorps.org
A42: ADDA-UG | B42: AMURIA DISTRICT DEVELOPMENT AGENCY | C42: Amuria District Development Agency (MDDA) is an independent, non – profit local non-governmental organization established in 2006. It’s committed to complement government efforts to rejuvenate socio-economic status of communities through community based interventions. Addax is legally registered with NGO board, with a national mandate, incorporated as a company limited by guarantee without share capital. The goal of addax is to improve living conditions and welfare of people by creating a socio-economically, politically vibrant and healthy society. | D42: http://amuriadda.org/ | E42: NGO | F42: Subnational and settlement-level | G42: Human Rights/Legal | H42: Food Security and Agriculture | I42: Health | L42: Human Rights/Legal, Food Security and Agriculture, Health, , | M42: Implementer | N42: LNGO | O42: =COUNTIFS(Conveners!$B$2:$B$1798,"="&A42,Conveners!$AA$2:$AA$1798,">0") -> 1 | P42: =COUNTIFS(Challenges!$H$2:$H$982,"="&A42,Challenges!$H$2:$H$982,"<>") -> 0 | Q42: =COUNTIFS(Innovations!$C$2:$F$1628,"="&A42, Innovations!$C$2:$F$1628,"<>") -> 0 | R42: =COUNTIFS(Referrals!B39:'Referrals'!H2018,"="&A42, Referrals!B39:'Referrals'!H2018,"<>") -> 0 | S42: =COUNTIFS(Matchmaker!$B$2:$B$999,"="&A42,Matchmaker!$H$2:$H$999,"<>") -> 0 | T42: =COUNTIFS(Matchmaker!$B$2:$B$999,"="&A42,Matchmaker!$J$2:$J$999,"<>") -> 0 | U42: =COUNTIFS(Support!$C$2:$C$973,"="&A42,Support!$C$2:$C$973,"<>") -> 0 | V42: 1 | Z42: Ebiru Nathan | AA42: Executive Director | AB42: derick@cafcot.org | AD42: 774053972 | AE42: 0392003518 0774053972 | AF42: Plot 26, Orungo Road, Amuria Town Council | AI42: P.O. Box 26 Amuria | AK42: The overall goal of the ADDA is to improve the living conditions and welfare of the people and envisioned at attaining culturally, socially, politically, economically vibrant, Healthy and free society. ADDA focuses at providing purposeful, coordinated, charitable and community based services in order to promote sustainable socio-economic, cultural and political development.
A43: ADDRESSYA-UG | B43: ADDRESSYA | C43: Addressya is an android app and a solution that allows everyone to create a complete, precise and easy to use address and then share with people and businesses with full control over their personal data. Registering an address is easy as all anyone needs is a smartphone with a GPS chip and a data plan/ wi-fi access. The addressya account will contain the exact location of the place and address data from online services. The user can add pictures and directions to make it more useful. The user is always in charge and decides who to share their personal information with and for how long. Without a user’s explicit permission no one can access their personal data. | D43: https://addressya.com/ | E43: For-profit | F43: Global / Multi-country / Foreign | G43: Media/Communication | H43: Displacement (refugees and IDPs) | I43: IT/Digital/ICT4D | L43: Media/Communication, Displacement (refugees and IDPs), IT/Digital/ICT4D, , | M43: Implementer | N43: INGO | O43: =COUNTIFS(Conveners!$B$2:$B$1798,"="&A43,Conveners!$AA$2:$AA$1798,">0") -> 0 | P43: =COUNTIFS(Challenges!$H$2:$H$982,"="&A43,Challenges!$H$2:$H$982,"<>") -> 0 | Q43: =COUNTIFS(Innovations!$C$2:$F$1628,"="&A43, Innovations!$C$2:$F$1628,"<>") -> 1 | R43: =COUNTIFS(Referrals!B40:'Referrals'!H2019,"="&A43, Referrals!B40:'Referrals'!H2019,"<>") -> 0 | S43: =COUNTIFS(Matchmaker!$B$2:$B$999,"="&A43,Matchmaker!$H$2:$H$999,"<>") -> 0 | T43: =COUNTIFS(Matchmaker!$B$2:$B$999,"="&A43,Matchmaker!$J$2:$J$999,"<>") -> 0 | U43: =COUNTIFS(Support!$C$2:$C$973,"="&A43,Support!$C$2:$C$973,"<>") -> 0 | V43: 1 | Z43: Karoline Beronius | AA43: CEO & Founder | AB43: hello@addressya.com | AD43: 46 76 070 89 16 | AF43: Regeringsgatan 82 11139 Stockholm, Sweden
A44: ADD-UG | B44: ACTION ON DISABILITY/INCLUSIVITY/INCLUSIVITY& DEVELOPMENT INTERNATIONAL | C44: Action on disability and Development International (ADD) is a rights-based international development agency. It was started in the UK in 1985 to support people with disabilities in their effort for equalization of opportunities. The add programme has grown in size and scope. ADD aims to maintain low administrative overheads yet deliver quality services to disabled people. | D44: https://add.org.uk/countries/uganda | E44: NGO | F44: Global / Multi-country / Foreign | G44: Disability/Inclusivity | H44: Human Rights/Legal | I44: Multi-sectoral | L44: Disability/Inclusivity, Human Rights/Legal, Multi-sectoral, , | M44: Implementer | N44: INGO | O44: =COUNTIFS(Conveners!$B$2:$B$1798,"="&A44,Conveners!$AA$2:$AA$1798,">0") -> 0 | P44: =COUNTIFS(Challenges!$H$2:$H$982,"="&A44,Challenges!$H$2:$H$982,"<>") -> 0 | Q44: =COUNTIFS(Innovations!$C$2:$F$1628,"="&A44, Innovations!$C$2:$F$1628,"<>") -> 0 | R44: =COUNTIFS(Referrals!B41:'Referrals'!H2020,"="&A44, Referrals!B41:'Referrals'!H2020,"<>") -> 0 | S44: =COUNTIFS(Matchmaker!$B$2:$B$999,"="&A44,Matchmaker!$H$2:$H$999,"<>") -> 0 | T44: =COUNTIFS(Matchmaker!$B$2:$B$999,"="&A44,Matchmaker!$J$2:$J$999,"<>") -> 0 | U44: =COUNTIFS(Support!$C$2:$C$973,"="&A44,Support!$C$2:$C$973,"<>") -> 0 | V44: 0 | Z44: Joseph Walugembe | AA44: Programme Director | AB44: supportercare@add.org.uk | AC44: Joseph.walugembe@add-Uganda.org | AD44: 0414 531 446 | AE44: info@add-uganda.org | AF44: P.O Box 340, Kampala. | AI44: Plot 81, Bukoto Street, Kamwokya., Kampala
A45: ADEFO-UG | B45: ADJUMANI DISTRICT ELDERS FORUM | C45: ADEFO provide traditional justice by resolving conflicts between the refugees and the host community. We invite the refugees leaders through the OPM and leaders from the host community for a dialogue to discuss issues that are raised by both parties. We always document refugees experiences and filed in the district library for easy access. We run weekly radio talk shows on peace building programs. We always sensitize community on the importance of taking issues to traditional cultural leaders than crashing with issues to court. We also focused on gender equality and women empowerment by giving girls and women equal rights to access and own property. | D45: https://www.acordinternational.org/our-work/where/uganda/inter--tribal-conflict-among-refugees-the-case-of-south-sudanese-refugees-in-boroli-refugee-settlement--adjumani-district-northern-uganda/ | E45: NGO | F45: Subnational and settlement-level | G45: Social Behavioral Change Communication/Community Mobilization | I45: Peacebuilding / Security | L45: Social Behavioral Change Communication/Community Mobilization, , Peacebuilding / Security, , | M45: Implementer | N45: LNGO | O45: =COUNTIFS(Conveners!$B$2:$B$1798,"="&A45,Conveners!$AA$2:$AA$1798,">0") -> 0 | P45: =COUNTIFS(Challenges!$H$2:$H$982,"="&A45,Challenges!$H$2:$H$982,"<>") -> 0 | Q45: =COUNTIFS(Innovations!$C$2:$F$1628,"="&A45, Innovations!$C$2:$F$1628,"<>") -> 0 | R45: =COUNTIFS(Referrals!B42:'Referrals'!H2021,"="&A45, Referrals!B42:'Referrals'!H2021,"<>") -> 0 | S45: =COUNTIFS(Matchmaker!$B$2:$B$999,"="&A45,Matchmaker!$H$2:$H$999,"<>") -> 0 | T45: =COUNTIFS(Matchmaker!$B$2:$B$999,"="&A45,Matchmaker!$J$2:$J$999,"<>") -> 0 | U45: =COUNTIFS(Support!$C$2:$C$973,"="&A45,Support!$C$2:$C$973,"<>") -> 0 | V45: 0 | Z45: Paulino Vusso | AA45: Team Leader | AB45: evaeliya1@gmail.com | AD45: 781752191 | AF45: Nakivale | AG45: Adjumani | AH45: Adjumani | AI45: Not for Profit | AJ45: Adjumani Obongi | AK45: ULEARN STAKEHOLDERS MAPPING EXERCISE (Fri 3/26/2021) | AL45: ULEARN
A46: ADIT-UG | B46: ADIT FOUNDATION UGANDA | C46: ADIT Foundation Uganda is a nonprofit humanitarian and developmental refugee led organization created in Ramanuja refugee settlement, Kamwenge district with the objectives of: uniting all members and sensitize them on life/skills development and entrepreneurship; empowering the community against Gender Based Violence (GBV) and human rights; empowering the community to care most on elders and children by providing psychosocial support; empowering poor and vulnerable communities with livelihood skills, provision of educational support to children and youth from poor economic background amongst. | D46: https://www.reframe.network/profile.php?org=ADIT%20FOUNDATION%20UGANDA | E46: NGO | F46: Subnational and settlement-level | G46: Displacement (refugees and IDPs) | H46: Gender | I46: Education | L46: Displacement (refugees and IDPs), Gender, Education, , | M46: Implementer | N46: LNGO | O46: =COUNTIFS(Conveners!$B$2:$B$1798,"="&A46,Conveners!$AA$2:$AA$1798,">0") -> 0 | P46: =COUNTIFS(Challenges!$H$2:$H$982,"="&A46,Challenges!$H$2:$H$982,"<>") -> 0 | Q46: =COUNTIFS(Innovations!$C$2:$F$1628,"="&A46, Innovations!$C$2:$F$1628,"<>") -> 0 | R46: =COUNTIFS(Referrals!B43:'Referrals'!H2022,"="&A46, Referrals!B43:'Referrals'!H2022,"<>") -> 0 | S46: =COUNTIFS(Matchmaker!$B$2:$B$999,"="&A46,Matchmaker!$H$2:$H$999,"<>") -> 0 | T46: =COUNTIFS(Matchmaker!$B$2:$B$999,"="&A46,Matchmaker!$J$2:$J$999,"<>") -> 0 | U46: =COUNTIFS(Support!$C$2:$C$973,"="&A46,Support!$C$2:$C$973,"<>") -> 0 | V46: 0 | W46: Refugee-Led Organisation | AB46: aditfug@gmail.com | AG46: Kamwenge | AH46: Rwamwanja
A47: ADJUMANISACCO | B47: ADJUMANI TOWN COUNCIL CO-OPERATIVE SAVING AND CREDIT SOCIETY LIMITED | C47: Adjumani Town Council SACCO offers saving products and loan products to both the refugees and the host community. We provide services like mobile transaction, free pre- disbursement training to any loan acquired, business skills training to community, technical agricultural advisory services to farmers. | D47: https://www.amfiu.org.ug/membership/current-members/ordinary/om-saccos | E47: For-profit | F47: Subnational and settlement-level | G47: Cash Transfer Programming/Social Protection/Financial Inclusion | I47: Education | L47: Cash Transfer Programming/Social Protection/Financial Inclusion, , Education, , | M47: Finance | N47: Micro Finance | O47: =COUNTIFS(Conveners!$B$2:$B$1798,"="&A47,Conveners!$AA$2:$AA$1798,">0") -> 0 | P47: =COUNTIFS(Challenges!$H$2:$H$982,"="&A47,Challenges!$H$2:$H$982,"<>") -> 0 | Q47: =COUNTIFS(Innovations!$C$2:$F$1628,"="&A47, Innovations!$C$2:$F$1628,"<>") -> 0 | R47: =COUNTIFS(Referrals!B44:'Referrals'!H2023,"="&A47, Referrals!B44:'Referrals'!H2023,"<>") -> 0 | S47: =COUNTIFS(Matchmaker!$B$2:$B$999,"="&A47,Matchmaker!$H$2:$H$999,"<>") -> 0 | T47: =COUNTIFS(Matchmaker!$B$2:$B$999,"="&A47,Matchmaker!$J$2:$J$999,"<>") -> 0 | U47: =COUNTIFS(Support!$C$2:$C$973,"="&A47,Support!$C$2:$C$973,"<>") -> 0 | V47: 0 | W47: Private Sector | Z47: Patrick Maku | AA47: Manager | AB47: atcsaco@yahoo.com | AC47: Winstonobeka@gmail.com | AD47: 776628481 | AE47: atcsacco@yahoo.com | AF47: Kampala | AG47: Adjumani | AH47: Adjumani | AI47: Adjumani town council | AJ47: Adjumani | AK47: ULEARN STAKEHOLDERS MAPPING EXERCISE (Fri 3/26/2021) We provide community with affordable financial services on a sustainable basis. We offer loans to refugees who are members of the SACOO only. | AL47: ULEARN
A48: ADOL-UG | B48: ACTION FOR DEVELOPMENT OF LOCAL COMMUNITIES | C48: Action for Development of Local Communities (ADOL) is a grassroots self-help, non-profit, Community Based Organization and aim is to support the integration, inclusion, involvement and empowerment of the underprivileged, vulnerable, under-served and disadvantaged groups of people in communities into the development paradigm shift and give everyone a choice for access to – and utilization of available resources. | D48: https://oboreadol.wixsite.com/adol | E48: NGO | F48: National | G48: Cash Transfer Programming/Social Protection/Financial Inclusion | H48: Disability/Inclusivity | L48: Cash Transfer Programming/Social Protection/Financial Inclusion, Disability/Inclusivity, , , | M48: Implementer | N48: LNGO | O48: =COUNTIFS(Conveners!$B$2:$B$1798,"="&A48,Conveners!$AA$2:$AA$1798,">0") -> 1 | P48: =COUNTIFS(Challenges!$H$2:$H$982,"="&A48,Challenges!$H$2:$H$982,"<>") -> 0 | Q48: =COUNTIFS(Innovations!$C$2:$F$1628,"="&A48, Innovations!$C$2:$F$1628,"<>") -> 0 | R48: =COUNTIFS(Referrals!B45:'Referrals'!H2024,"="&A48, Referrals!B45:'Referrals'!H2024,"<>") -> 0 | S48: =COUNTIFS(Matchmaker!$B$2:$B$999,"="&A48,Matchmaker!$H$2:$H$999,"<>") -> 0 | T48: =COUNTIFS(Matchmaker!$B$2:$B$999,"="&A48,Matchmaker!$J$2:$J$999,"<>") -> 0 | U48: =COUNTIFS(Support!$C$2:$C$973,"="&A48,Support!$C$2:$C$973,"<>") -> 0 | V48: 1 | Z48: Joseph Obore | AA48: Co-Founder | AB48: obore.adol@gmail.com | AL48: LINS
A49: ADRA-UG | B49: ADVENTIST DEVELOPMENT AND RELIEF AGENCY | C49: The Adventist Development and Relief Agency (ADRA) is the international humanitarian arm of the seventh-day adventist church serving in 118 countries. Its work empowers communities and changes lives around the globe by providing sustainable community development and disaster relief. ADRA’s purpose is to serve humanity so all may live as god intended. | D49: https://adra.org/ | E49: Donor | F49: Global / Multi-country / Foreign | G49: Cash Transfer Programming/Social Protection/Financial Inclusion | H49: Education | I49: Water Sanitation and Hygiene (WASH) | L49: Cash Transfer Programming/Social Protection/Financial Inclusion, Education, Water Sanitation and Hygiene (WASH), , | M49: Implementer | N49: INGO | O49: =COUNTIFS(Conveners!$B$2:$B$1798,"="&A49,Conveners!$AA$2:$AA$1798,">0") -> 0 | P49: =COUNTIFS(Challenges!$H$2:$H$982,"="&A49,Challenges!$H$2:$H$982,"<>") -> 0 | Q49: =COUNTIFS(Innovations!$C$2:$F$1628,"="&A49, Innovations!$C$2:$F$1628,"<>") -> 0 | R49: =COUNTIFS(Referrals!B46:'Referrals'!H2025,"="&A49, Referrals!B46:'Referrals'!H2025,"<>") -> 0 | S49: =COUNTIFS(Matchmaker!$B$2:$B$999,"="&A49,Matchmaker!$H$2:$H$999,"<>") -> 0 | T49: =COUNTIFS(Matchmaker!$B$2:$B$999,"="&A49,Matchmaker!$J$2:$J$999,"<>") -> 0 | U49: =COUNTIFS(Support!$C$2:$C$973,"="&A49,Support!$C$2:$C$973,"<>") -> 0 | V49: 0 | W49: Faith Based Organisation | Z49: Thore Karlsson | AA49: Country Director | AB49: josephndemere@gmail.com | AE49: thore.karlsson@adrauganda.org | AL49: LINS | AM49: Active
A50: AECF-UG | B50: AECF AFRICA | C50: The AECF is a development institution which supports businesses to innovate, create jobs, leverage investments and markets in an effort to create resilience and sustainable incomes in rural and marginalized communities in Africa. | D50: https://www.aecfafrica.org// | E50: Donor | F50: Global / Multi-country / Foreign | G50: Food Security and Agriculture | H50: Energy/Environment | I50: Economic Development | L50: Food Security and Agriculture, Energy/Environment, Economic Development, , | M50: Finance | N50: Investment Platform | O50: =COUNTIFS(Conveners!$B$2:$B$1798,"="&A50,Conveners!$AA$2:$AA$1798,">0") -> 0 | P50: =COUNTIFS(Challenges!$H$2:$H$982,"="&A50,Challenges!$H$2:$H$982,"<>") -> 0 | Q50: =COUNTIFS(Innovations!$C$2:$F$1628,"="&A50, Innovations!$C$2:$F$1628,"<>") -> 0 | R50: =COUNTIFS(Referrals!B47:'Referrals'!H2026,"="&A50, Referrals!B47:'Referrals'!H2026,"<>") -> 0 | S50: =COUNTIFS(Matchmaker!$B$2:$B$999,"="&A50,Matchmaker!$H$2:$H$999,"<>") -> 0 | T50: =COUNTIFS(Matchmaker!$B$2:$B$999,"="&A50,Matchmaker!$J$2:$J$999,"<>") -> 0 | U50: =COUNTIFS(Support!$C$2:$C$973,"="&A50,Support!$C$2:$C$973,"<>") -> 0 | V50: 0 | Z50: Victoria Sabula | AA50: Chief Executive Officer | AB50: info@aecfafrica.org | AD50: +254 111 035 000 | AF50: The AECF West End Towers, Kanjata Road Off Muthangari Drive / Waiyaki Way
A51: AEJNGI-UG | B51: AEJ NEXTGEN INNOVATIONS | C51: AEJ NextGen Innovations (AEJNGI) is an interdisciplinary research and training orientated startup NGO whose main objective to create and establish fruitful cooperation between culturally-diverse public entities for coordinating the efforts in spreading the research, innovations and technologies wide implementation and use. | D51: https://www.facebook.com/aejngi/ | E51: NGO | F51: National | G51: Monitoring Evaluation Accountability and Learning (MEAL) | H51: Livelihoods / (social) Entrepreneurship | I51: Institutional Capacity Development/Ecosystem Support | L51: Monitoring Evaluation Accountability and Learning (MEAL), Livelihoods / (social) Entrepreneurship, Institutional Capacity Development/Ecosystem Support, , | M51: Implementer | N51: INGO | O51: =COUNTIFS(Conveners!$B$2:$B$1798,"="&A51,Conveners!$AA$2:$AA$1798,">0") -> 0 | P51: =COUNTIFS(Challenges!$H$2:$H$982,"="&A51,Challenges!$H$2:$H$982,"<>") -> 0 | Q51: =COUNTIFS(Innovations!$C$2:$F$1628,"="&A51, Innovations!$C$2:$F$1628,"<>") -> 0 | R51: =COUNTIFS(Referrals!B48:'Referrals'!H2027,"="&A51, Referrals!B48:'Referrals'!H2027,"<>") -> 0 | S51: =COUNTIFS(Matchmaker!$B$2:$B$999,"="&A51,Matchmaker!$H$2:$H$999,"<>") -> 0 | T51: =COUNTIFS(Matchmaker!$B$2:$B$999,"="&A51,Matchmaker!$J$2:$J$999,"<>") -> 0 | U51: =COUNTIFS(Support!$C$2:$C$973,"="&A51,Support!$C$2:$C$973,"<>") -> 0 | V51: 0 | Z51: Andrew Ebotu Junior | AB51: aenetxgen@gmail.com | AC51: aejnextgen@gmail.com | AL51: LINS
A52: AEK-UG | B52: AFRICA EARTH KEEPERS | C52: Africa Earth Keepers is active in innovating, designing, manufacturing, and distributing highly efficient, and clean improved stoves to suit any cooking style that is integrated with solar home systems to promote sustainable, cost effective, independent, and reliable energy supplies. We support environmental stewardship to ensure reduction in deaths and tackle climate change to limit global warming and poverty alleviation, local environmental protection, and energy security to achieve share of zero‐ low‐carbon energy sources. | D52: https://www.cleancookingalliance.org/partners/item/999/2703 | E52: Social enterprise | F52: National | G52: Energy/Environment | I52: Energy/Environment | L52: Energy/Environment, , Energy/Environment, , | M52: Private Sector | N52: Energy | O52: =COUNTIFS(Conveners!$B$2:$B$1798,"="&A52,Conveners!$AA$2:$AA$1798,">0") -> 0 | P52: =COUNTIFS(Challenges!$H$2:$H$982,"="&A52,Challenges!$H$2:$H$982,"<>") -> 0 | Q52: =COUNTIFS(Innovations!$C$2:$F$1628,"="&A52, Innovations!$C$2:$F$1628,"<>") -> 1 | R52: =COUNTIFS(Referrals!#REF!:'Referrals'!H2028,"="&A52, Referrals!#REF!:'Referrals'!H2028,"<>") ->  | S52: =COUNTIFS(Matchmaker!$B$2:$B$999,"="&A52,Matchmaker!$H$2:$H$999,"<>") -> 0 | T52: =COUNTIFS(Matchmaker!$B$2:$B$999,"="&A52,Matchmaker!$J$2:$J$999,"<>") -> 0 | U52: =COUNTIFS(Support!$C$2:$C$973,"="&A52,Support!$C$2:$C$973,"<>") -> 0 | Z52: Mr. Debeesai Ghebrehiwet | AA52: Member | AB52: info@africaearthkeepers.com | AC52: debaigs9@gmail.com | AD52: 256775000000 | AE52: 256775000000 | AF52: Kabusu-Kampala | AK52: The organization’s interest is decidedly to deal with the promotion of efficient, clean, and improved stove that originate from Eritrea and East Africa. We would gradually like to expand to the entire African continent to meet the needs of people who suffer from using inefficient cookstoves.
A53: AEST-UG | B53: APPROPRIATE ENERGY SAVING TECHNOLOGIES | C53: Appropriate Energy Saving Technologies (AEST) Ltd is woman-led social enterprise that creates livelihood opportunities for women in the cook stove and fuel value chain in eastern Uganda. It was founded in june 2012 in response to the increasing scarcity of firewood and wood charcoal in Uganda, and the need for clean sustainable alternative sources of cooking fuel. The enterprise aims to eradicate over dependence on wood fuel in Uganda by making organic charcoal for cooking from agricultural waste as an alternative to wood fuel among households and institutions in urban and peri urban areas in eastern Uganda. | D53: https://aestug.com/ | E53: Social enterprise | F53: National | G53: Energy/Environment | H53: Livelihoods / (social) Entrepreneurship | I53: Gender | L53: Energy/Environment, Livelihoods / (social) Entrepreneurship, Gender, , | M53: Private Sector | N53: Social Enterprise | O53: =COUNTIFS(Conveners!$B$2:$B$1798,"="&A53,Conveners!$AA$2:$AA$1798,">0") -> 0 | P53: =COUNTIFS(Challenges!$H$2:$H$982,"="&A53,Challenges!$H$2:$H$982,"<>") -> 0 | Q53: =COUNTIFS(Innovations!$C$2:$F$1628,"="&A53, Innovations!$C$2:$F$1628,"<>") -> 1 | R53: =COUNTIFS(Referrals!#REF!:'Referrals'!H2029,"="&A53, Referrals!#REF!:'Referrals'!H2029,"<>") ->  | S53: =COUNTIFS(Matchmaker!$B$2:$B$999,"="&A53,Matchmaker!$H$2:$H$999,"<>") -> 0 | T53: =COUNTIFS(Matchmaker!$B$2:$B$999,"="&A53,Matchmaker!$J$2:$J$999,"<>") -> 0 | U53: =COUNTIFS(Support!$C$2:$C$973,"="&A53,Support!$C$2:$C$973,"<>") -> 0 | Z53: Betty Ikalany | AA53: Founder | AB53: ikalanybetty@yahoo.com | AD53: 256 701290433 | AF53: Plot 11 Einau Road, Camp Swahili. P.O.Box 834 | AI53: Soroti | AJ53: North Eastern Uganda | AK53: Activities We make biomass charcoal briquettes from agricultural waste using cassa as a binder. The briquettes are smokeless, Healthier, have no soot and have long burning capacity. We also make and sale clean cookstoves with metal and clay lining . This save a lot of energy. | AL53: WOMEN LED ORG
A54: AFAAS-UG | B54: AFRICAN FORUM FOR AGRICULTURAL ADVISORY SERVICES | C54: African Forum for Agricultural Advisory Services (AFAAS) is the umbrella organization for agricultural advisory services in Africa strengthening national agricultural advisory services through interactive learning and improved knowledge exchange. AFAAS’ goal is to enhance utilization of improved knowledge and innovations for improving productivity oriented towards individual and national development objectives. | D54: http://www.afaas-africa.org/ | E54: NGO | F54: Global / Multi-country / Foreign | G54: Monitoring Evaluation Accountability and Learning (MEAL) | H54: Food Security and Agriculture | I54: Economic Development | L54: Monitoring Evaluation Accountability and Learning (MEAL), Food Security and Agriculture, Economic Development, , | M54: Implementer | N54: INGO | O54: =COUNTIFS(Conveners!$B$2:$B$1798,"="&A54,Conveners!$AA$2:$AA$1798,">0") -> 0 | P54: =COUNTIFS(Challenges!$H$2:$H$982,"="&A54,Challenges!$H$2:$H$982,"<>") -> 0 | Q54: =COUNTIFS(Innovations!$C$2:$F$1628,"="&A54, Innovations!$C$2:$F$1628,"<>") -> 0 | R54: =COUNTIFS(Referrals!B49:'Referrals'!H2030,"="&A54, Referrals!B49:'Referrals'!H2030,"<>") -> 0 | S54: =COUNTIFS(Matchmaker!$B$2:$B$999,"="&A54,Matchmaker!$H$2:$H$999,"<>") -> 0 | T54: =COUNTIFS(Matchmaker!$B$2:$B$999,"="&A54,Matchmaker!$J$2:$J$999,"<>") -> 0 | U54: =COUNTIFS(Support!$C$2:$C$973,"="&A54,Support!$C$2:$C$973,"<>") -> 0 | V54: 0 | Z54: Dr Silim M. Nahdy | AA54: Executive Director | AB54: info@afaas-africa.org | AD54: +256 312 313400 | AF54: House No. 26, Kigobe Road, | AJ54: Minister’s Village-Ntinda
A55: AFARD-UG | B55: AGENCY FOR ACCELERATED REGIONAL DEVELOPMENT | C55: Agency for Accelerated Regional Development works in West Nile region, Uganda with poor, rural, and marginalized community groups composed of women, men, youth, fisher forks, and persons living with HIV/AIDS. | D55: https://www.afard.net/ | E55: NGO | F55: Subnational and settlement-level | G55: Social Behavioral Change Communication/Community Mobilization | H55: Livelihoods / (social) Entrepreneurship | L55: Social Behavioral Change Communication/Community Mobilization, Livelihoods / (social) Entrepreneurship, , , | M55: Implementer | N55: LNGO | O55: =COUNTIFS(Conveners!$B$2:$B$1798,"="&A55,Conveners!$AA$2:$AA$1798,">0") -> 0 | P55: =COUNTIFS(Challenges!$H$2:$H$982,"="&A55,Challenges!$H$2:$H$982,"<>") -> 0 | Q55: =COUNTIFS(Innovations!$C$2:$F$1628,"="&A55, Innovations!$C$2:$F$1628,"<>") -> 0 | R55: =COUNTIFS(Referrals!B50:'Referrals'!H2031,"="&A55, Referrals!B50:'Referrals'!H2031,"<>") -> 0 | S55: =COUNTIFS(Matchmaker!$B$2:$B$999,"="&A55,Matchmaker!$H$2:$H$999,"<>") -> 0 | T55: =COUNTIFS(Matchmaker!$B$2:$B$999,"="&A55,Matchmaker!$J$2:$J$999,"<>") -> 0 | U55: =COUNTIFS(Support!$C$2:$C$973,"="&A55,Support!$C$2:$C$973,"<>") -> 0 | V55: 0 | AB55: afrad@afard.net | AC55: afard@afard.net | AD55: 256 (772) 437 175 | AE55: 256 (782) 400 856 | AF55: Plot 3-5 Butime Rd. | AI55: P.O. Box 80, Nebbi Nebbi Town Council Uganda
A56: AFDA-UG | B56: AFRICA DIABETES ALLIANCE | C56: Africa Diabetes Alliance focuses on creating awareness on diabetes in Africa so as to end its reign of terror against the children of Africa that is aided by the mystery, fear and invisibility surrounding it. It's a patient led organisation seeking to change the status-quo by adding voice and contribution to the complex problem that is diabetes in the developing world through patient education and psychosocial support. | D56: https://africadiabetesalliance.org/ | E56: NGO | F56: National | G56: Health | H56: Social Behavioral Change Communication/Community Mobilization | I56: Education | L56: Health, Social Behavioral Change Communication/Community Mobilization, Education, , | M56: Knowledge | N56: Advocacy | O56: =COUNTIFS(Conveners!$B$2:$B$1798,"="&A56,Conveners!$AA$2:$AA$1798,">0") -> 0 | P56: =COUNTIFS(Challenges!$H$2:$H$982,"="&A56,Challenges!$H$2:$H$982,"<>") -> 0 | Q56: =COUNTIFS(Innovations!$C$2:$F$1628,"="&A56, Innovations!$C$2:$F$1628,"<>") -> 0 | R56: =COUNTIFS(Referrals!B51:'Referrals'!H2032,"="&A56, Referrals!B51:'Referrals'!H2032,"<>") -> 0 | S56: =COUNTIFS(Matchmaker!$B$2:$B$999,"="&A56,Matchmaker!$H$2:$H$999,"<>") -> 0 | T56: =COUNTIFS(Matchmaker!$B$2:$B$999,"="&A56,Matchmaker!$J$2:$J$999,"<>") -> 0 | U56: =COUNTIFS(Support!$C$2:$C$973,"="&A56,Support!$C$2:$C$973,"<>") -> 0 | V56: 0 | Z56: Edith Mukantwari | AA56: Founder | AB56: info@africadiabetesalliance.org | AD56: +256 752621779 | AF56: Plot 2, Sports lane, Naguru | AG56: Kampala | AM56: Inactive
A57: AFEMA-UG | B57: AFEMA VENTURES | C57: Afema Ventures is a private Ugandan enterprise engaged in the sustainable production of affordable nutritious foods and improving the nutritional value of existing products for BoP markets by developing resilient supply chains. | D57: https://afema.co.ug/ | E57: Social enterprise | F57: Subnational and settlement-level | G57: Nutrition | H57: Food Security and Agriculture | I57: Livelihoods / (social) Entrepreneurship | L57: Nutrition, Food Security and Agriculture, Livelihoods / (social) Entrepreneurship, , | M57: Private Sector | N57: Social Enterprise | O57: =COUNTIFS(Conveners!$B$2:$B$1798,"="&A57,Conveners!$AA$2:$AA$1798,">0") -> 0 | P57: =COUNTIFS(Challenges!$H$2:$H$982,"="&A57,Challenges!$H$2:$H$982,"<>") -> 0 | Q57: =COUNTIFS(Innovations!$C$2:$F$1628,"="&A57, Innovations!$C$2:$F$1628,"<>") -> 1 | R57: =COUNTIFS(Referrals!B52:'Referrals'!H2033,"="&A57, Referrals!B52:'Referrals'!H2033,"<>") -> 0 | S57: =COUNTIFS(Matchmaker!$B$2:$B$999,"="&A57,Matchmaker!$H$2:$H$999,"<>") -> 0 | T57: =COUNTIFS(Matchmaker!$B$2:$B$999,"="&A57,Matchmaker!$J$2:$J$999,"<>") -> 0 | U57: =COUNTIFS(Support!$C$2:$C$973,"="&A57,Support!$C$2:$C$973,"<>") -> 1 | V57: 2 | Z57: Deogratious Afimani | AB57: info@afema.co.ug | AC57: deo@afema.co.ug | AF57: Arua
A58: AFERDOC-UG | B58: AFERDOC LTD | C58: AFERDOC is an online medical consultation platform that enables you to consult doctors, HIV counselors and nutritionists through chat, phone call and video. | D58: https://www.facebook.com/aferdoc/?comment_id=y29tbwvuddoxotcwmziznty5njc2mjqxxze5nza0mdgwotmwmdexmji%3d | E58: For-profit | F58: National | G58: Health | H58: Nutrition | I58: Cash Transfer Programming/Social Protection/Financial Inclusion | L58: Health, Nutrition, Cash Transfer Programming/Social Protection/Financial Inclusion, , | M58: Private Sector | N58: Social Enterprise | O58: =COUNTIFS(Conveners!$B$2:$B$1798,"="&A58,Conveners!$AA$2:$AA$1798,">0") -> 0 | P58: =COUNTIFS(Challenges!$H$2:$H$982,"="&A58,Challenges!$H$2:$H$982,"<>") -> 0 | Q58: =COUNTIFS(Innovations!$C$2:$F$1628,"="&A58, Innovations!$C$2:$F$1628,"<>") -> 1 | R58: =COUNTIFS(Referrals!B53:'Referrals'!H2034,"="&A58, Referrals!B53:'Referrals'!H2034,"<>") -> 0 | S58: =COUNTIFS(Matchmaker!$B$2:$B$999,"="&A58,Matchmaker!$H$2:$H$999,"<>") -> 0 | T58: =COUNTIFS(Matchmaker!$B$2:$B$999,"="&A58,Matchmaker!$J$2:$J$999,"<>") -> 0 | U58: =COUNTIFS(Support!$C$2:$C$973,"="&A58,Support!$C$2:$C$973,"<>") -> 0 | V58: 1 | Z58: Samuel Kagamba | AA58: Doctor | AB58: kagsam332@outlook.com | AC58: contact@aferdoc.com | AD58: 0704268556 | AE58: kagsam332@outlook.com
A59: AFID-UG | B59: ALL FOR INTEGRAL DEVELOPMENT | C59: All for Integral Development (AFID), is a non-profit and community based organization located at Ramanuja Refugee settlement in Kamwenge district in Uganda. AFID was founded to address the most urgent and pressing needs of the refugee population and the host surrounding community. AFID has been carrying a range of interventions in the areas of environment and sustainable agriculture, education, youth & women empowerment, Assistance and Psychosocial support to persons with special need. The type of activities undertaken by the organization range from advocacy, capacity building to service delivery, with special focus on the deprived and marginalized segments of the refugee community. | D59: https://www.reframe.network/AFID-UG | E59: NGO | F59: Subnational and settlement-level | G59: Displacement (refugees and IDPs) | H59: Education | I59: Gender | L59: Displacement (refugees and IDPs), Education, Gender, , | M59: Implementer | N59: LNGO | O59: =COUNTIFS(Conveners!$B$2:$B$1798,"="&A59,Conveners!$AA$2:$AA$1798,">0") -> 0 | P59: =COUNTIFS(Challenges!$H$2:$H$982,"="&A59,Challenges!$H$2:$H$982,"<>") -> 0 | Q59: =COUNTIFS(Innovations!$C$2:$F$1628,"="&A59, Innovations!$C$2:$F$1628,"<>") -> 0 | R59: =COUNTIFS(Referrals!B54:'Referrals'!H2035,"="&A59, Referrals!B54:'Referrals'!H2035,"<>") -> 0 | S59: =COUNTIFS(Matchmaker!$B$2:$B$999,"="&A59,Matchmaker!$H$2:$H$999,"<>") -> 0 | T59: =COUNTIFS(Matchmaker!$B$2:$B$999,"="&A59,Matchmaker!$J$2:$J$999,"<>") -> 0 | U59: =COUNTIFS(Support!$C$2:$C$973,"="&A59,Support!$C$2:$C$973,"<>") -> 0 | V59: 0 | W59: Refugee-Led Organisation | AB59: morrisbukn1990@gmail.com | AG59: Kamwenge | AH59: Rwamwanja
A60: AFI-UG | B60: ANDRE FOODS INTERNATIONAL | C60: Andre Foods International (AFI) is a registered national NGO with a broad-based approach to different scientific and humanitarian challenges. AFI provides multi-dimensional solutions to particularly food processing, Food Security and Agriculture, nutrition, health, wash, environmental protection and research. The organization has been involved in partnerships with government, industrialists, local clients, as well humanitarian work for international non-governmental organizations and the UN agencies. | D60: http://www.andrefoodsinternational.org/ | E60: NGO | F60: National | G60: Nutrition | H60: Food Security and Agriculture | I60: Energy/Environment | J60: Water Sanitation and Hygiene (WASH) | L60: Nutrition, Food Security and Agriculture, Energy/Environment, Water Sanitation and Hygiene (WASH), | M60: Implementer | N60: LNGO | O60: =COUNTIFS(Conveners!$B$2:$B$1798,"="&A60,Conveners!$AA$2:$AA$1798,">0") -> 0 | P60: =COUNTIFS(Challenges!$H$2:$H$982,"="&A60,Challenges!$H$2:$H$982,"<>") -> 0 | Q60: =COUNTIFS(Innovations!$C$2:$F$1628,"="&A60, Innovations!$C$2:$F$1628,"<>") -> 0 | R60: =COUNTIFS(Referrals!B55:'Referrals'!H2036,"="&A60, Referrals!B55:'Referrals'!H2036,"<>") -> 0 | S60: =COUNTIFS(Matchmaker!$B$2:$B$999,"="&A60,Matchmaker!$H$2:$H$999,"<>") -> 0 | T60: =COUNTIFS(Matchmaker!$B$2:$B$999,"="&A60,Matchmaker!$J$2:$J$999,"<>") -> 0 | U60: =COUNTIFS(Support!$C$2:$C$973,"="&A60,Support!$C$2:$C$973,"<>") -> 0 | V60: 0 | W60: Multilateral Organisations | Z60: Dr. Andrew Kiri Amegovu | AA60: Executive Director | AB60: info@andrefoodsinternational.org | AD60: 256 393240766 | AF60: Spring Rd Bugolobi
A61: AFL-UG | B61: AFRICA LEADERSHIP INSTITUTE (AFLI) | C61: AFLI is unique among leadership initiatives in that it focuses on building the capacity and capability of visionary and strategic leadership across the continent. AFLI aims to enhance the democratization process in Uganda through facilitating "active and informed citizenry to demand for accountable and responsive leadership". This will be achieved through generating performance of MPS (parliamentary scorecard) and engaging the public with elected leaders. | D61: www.aflinstitute.net | E61: NGO | F61: National | G61: Protection | H61: Human Rights/Legal | I61: Monitoring Evaluation Accountability and Learning (MEAL) | L61: Protection, Human Rights/Legal, Monitoring Evaluation Accountability and Learning (MEAL), , | M61: Implementer | N61: Project | O61: =COUNTIFS(Conveners!$B$2:$B$1798,"="&A61,Conveners!$AA$2:$AA$1798,">0") -> 1 | P61: =COUNTIFS(Challenges!$H$2:$H$982,"="&A61,Challenges!$H$2:$H$982,"<>") -> 0 | Q61: =COUNTIFS(Innovations!$C$2:$F$1628,"="&A61, Innovations!$C$2:$F$1628,"<>") -> 0 | R61: =COUNTIFS(Referrals!B56:'Referrals'!H2037,"="&A61, Referrals!B56:'Referrals'!H2037,"<>") -> 0 | S61: =COUNTIFS(Matchmaker!$B$2:$B$999,"="&A61,Matchmaker!$H$2:$H$999,"<>") -> 0 | T61: =COUNTIFS(Matchmaker!$B$2:$B$999,"="&A61,Matchmaker!$J$2:$J$999,"<>") -> 0 | U61: =COUNTIFS(Support!$C$2:$C$973,"="&A61,Support!$C$2:$C$973,"<>") -> 0 | V61: 1 | Z61: David Pulkol | AA61: Executive Director | AB61: mzeedpb@gmail.com | AE61: info@aflinstitute.net | AL61: DIF APPLICANT
A62: AFNA-UG | B62: AFRICAN NUTRITION AGENCY | C62: African Nutrition Agency (AFNA) is a humanitarian organization that operates in a systematic and highly dignified manner to identify world problems, analyze and provide long lasting sustainable solutions for best quality of life. AFNA's mission is to promote Food Security and Agriculture, nutrition and health by connecting people, ideas, research and resources through equality. | D62: http://afnaug.org/ | E62: NGO | F62: Subnational and settlement-level | G62: Nutrition | H62: Food Security and Agriculture | I62: Health | L62: Nutrition, Food Security and Agriculture, Health, , | M62: Implementer | N62: LNGO | O62: =COUNTIFS(Conveners!$B$2:$B$1798,"="&A62,Conveners!$AA$2:$AA$1798,">0") -> 0 | P62: =COUNTIFS(Challenges!$H$2:$H$982,"="&A62,Challenges!$H$2:$H$982,"<>") -> 0 | Q62: =COUNTIFS(Innovations!$C$2:$F$1628,"="&A62, Innovations!$C$2:$F$1628,"<>") -> 0 | R62: =COUNTIFS(Referrals!A57:'Referrals'!H2038,"="&A62, Referrals!A57:'Referrals'!H2038,"<>") -> 0 | S62: =COUNTIFS(Matchmaker!$B$2:$B$999,"="&A62,Matchmaker!$H$2:$H$999,"<>") -> 0 | T62: =COUNTIFS(Matchmaker!$B$2:$B$999,"="&A62,Matchmaker!$J$2:$J$999,"<>") -> 0 | U62: =COUNTIFS(Support!$C$2:$C$973,"="&A62,Support!$C$2:$C$973,"<>") -> 0 | V62: 0 | Z62: Olowo James | AB62: webmaster@afnaug.org | AC62: olowojames83@gmail.com
A63: AFNS-UG | B63: AFRICAN NUTRITION SOCIETY | C63: African Nutrition Society (ANS) is a registered scientific professional body, a learned society formed by nutritional scientists, food scientists and health professionals working in, and with an interest in the nutrition agenda for Africa. ANS was established as an umbrella organization to develop and promote the nutrition profession in Africa and to oversee the Africa nutritional Epidemiology conferences (ANEC). | D63: https://www.ansnet.org/ | E63: NGO | F63: Global / Multi-country / Foreign | G63: Nutrition | H63: Health | I63: Monitoring Evaluation Accountability and Learning (MEAL) | L63: Nutrition, Health, Monitoring Evaluation Accountability and Learning (MEAL), , | M63: Implementer | N63: Coordination | O63: =COUNTIFS(Conveners!$B$2:$B$1798,"="&A63,Conveners!$AA$2:$AA$1798,">0") -> 1 | P63: =COUNTIFS(Challenges!$H$2:$H$982,"="&A63,Challenges!$H$2:$H$982,"<>") -> 0 | Q63: =COUNTIFS(Innovations!$C$2:$F$1628,"="&A63, Innovations!$C$2:$F$1628,"<>") -> 0 | R63: =COUNTIFS(Referrals!A58:'Referrals'!H2039,"="&A63, Referrals!A58:'Referrals'!H2039,"<>") -> 0 | S63: =COUNTIFS(Matchmaker!$B$2:$B$999,"="&A63,Matchmaker!$H$2:$H$999,"<>") -> 0 | T63: =COUNTIFS(Matchmaker!$B$2:$B$999,"="&A63,Matchmaker!$J$2:$J$999,"<>") -> 0 | U63: =COUNTIFS(Support!$C$2:$C$973,"="&A63,Support!$C$2:$C$973,"<>") -> 0 | V63: 1 | Z63: Dr Namukolo Covic | AA63: President | AB63: info@ansnet.org | AD63: +233 244186867 | AF63: Accra - Ghana
A64: AFOD-UG | B64: ALLIANCE FORUM FOR DEVELOPMENT(AFOD) UGANDA | C64: AFOD Uganda is a non-government organization that works with rural poor, marginalized and vulnerable communities to improve their social economic status and quality of life. | D64: https://uganda.afodi.org | E64: NGO | F64: National | G64: Cash Transfer Programming/Social Protection/Financial Inclusion | H64: Multi-sectoral | I64: Nutrition | J64: Food Security and Agriculture | L64: Cash Transfer Programming/Social Protection/Financial Inclusion, Multi-sectoral, Nutrition, Food Security and Agriculture, | M64: Implementer | N64: LNGO | O64: =COUNTIFS(Conveners!$B$2:$B$1798,"="&A64,Conveners!$AA$2:$AA$1798,">0") -> 1 | P64: =COUNTIFS(Challenges!$H$2:$H$982,"="&A64,Challenges!$H$2:$H$982,"<>") -> 0 | Q64: =COUNTIFS(Innovations!$C$2:$F$1628,"="&A64, Innovations!$C$2:$F$1628,"<>") -> 0 | R64: =COUNTIFS(Referrals!A59:'Referrals'!H2040,"="&A64, Referrals!A59:'Referrals'!H2040,"<>") -> 0 | S64: =COUNTIFS(Matchmaker!$B$2:$B$999,"="&A64,Matchmaker!$H$2:$H$999,"<>") -> 0 | T64: =COUNTIFS(Matchmaker!$B$2:$B$999,"="&A64,Matchmaker!$J$2:$J$999,"<>") -> 0 | U64: =COUNTIFS(Support!$C$2:$C$973,"="&A64,Support!$C$2:$C$973,"<>") -> 0 | V64: 1 | AB64: ug@afodi.org | AC64: info_u@afodi.org | AD64: +256 39 2001694 | AF64: Plot 17 Charles Lwanga Rd, Kampala | AG64: Adjumani | AH64: Adjumani | AI64: 31.71394 | AJ64: 3.609834 | AK64: ULEARN STAKEHOLDERS MAPPING EXERCISE (Fri 3/26/2021) TO PROVIDE ESSENTIAL HEALTH AND NUTRITION SERVICES AND FIGHT HIV/ AIDS
A65: AFP-UG | B65: AFRICA FOOD PRIZE | C65: The Africa Food Prize is the preeminent award recognizing an outstanding individual or institution that is leading the effort to change the reality of farming in Africa—from a struggle to survive to a business that thrives. The US $100,000 prize celebrates Africans who are taking control of Africa’s agriculture agenda. It puts a spotlight on bold initiatives and technical innovations that can be replicated across the continent to create a new era of Food Security and Agriculture and economic opportunity for all Africans. | D65: https://africafoodprize.org/ | E65: Donor | F65: Global / Multi-country / Foreign | G65: Food Security and Agriculture | H65: Nutrition | I65: Livelihoods / (social) Entrepreneurship | J65: Youth | K65: Multi-sectoral | L65: Food Security and Agriculture, Nutrition, Livelihoods / (social) Entrepreneurship, Youth, Multi-sectoral | M65: Finance | N65: Donor | O65: =COUNTIFS(Conveners!$B$2:$B$1798,"="&A65,Conveners!$AA$2:$AA$1798,">0") -> 0 | P65: =COUNTIFS(Challenges!$H$2:$H$982,"="&A65,Challenges!$H$2:$H$982,"<>") -> 0 | Q65: =COUNTIFS(Innovations!$C$2:$F$1628,"="&A65, Innovations!$C$2:$F$1628,"<>") -> 0 | R65: =COUNTIFS(Referrals!A60:'Referrals'!H2041,"="&A65, Referrals!A60:'Referrals'!H2041,"<>") -> 0 | S65: =COUNTIFS(Matchmaker!$B$2:$B$999,"="&A65,Matchmaker!$H$2:$H$999,"<>") -> 0 | T65: =COUNTIFS(Matchmaker!$B$2:$B$999,"="&A65,Matchmaker!$J$2:$J$999,"<>") -> 0 | U65: =COUNTIFS(Support!$C$2:$C$973,"="&A65,Support!$C$2:$C$973,"<>") -> 0 | V65: 0 | Z65: Olusegun Obasanjo | AA65: Chairman | AB65: info@africafoodprize.org | AD65: +254 20 3675 000 | AF65: West End Towers, 4th Floor Kanjata Road, off Muthangari Drive, Off Waiyaki Way, Nairobi, Kenya
A66: AFRA-UG | B66: AFRAH DEVELOPMENT AND RELIEF AGENCY | C66: Afrah Relief and Development Agency is dedicated to empowering the disadvantaged people of the world and is empowering the disadvantaged people of Uganda through participatory development and relief programs based on human dignity, self-reliance and social justice. | D66: https://afrahug.org/ | E66: NGO | F66: National | G66: Water Sanitation and Hygiene (WASH) | H66: Education | I66: Energy/Environment | L66: =G66&", "&H66&", "&I66&", "&J66&", "&K66 -> Water Sanitation and Hygiene (WASH), Education, Energy/Environment, , | M66: Implementer | N66: INGO | O66: =COUNTIFS(Conveners!$B$2:$B$1798,"="&A66,Conveners!$AA$2:$AA$1798,">0") -> 0 | P66: =COUNTIFS(Challenges!$H$2:$H$982,"="&A66,Challenges!$H$2:$H$982,"<>") -> 0 | Q66: =COUNTIFS(Innovations!$C$2:$F$1628,"="&A66, Innovations!$C$2:$F$1628,"<>") -> 0 | R66: =COUNTIFS(Referrals!A61:'Referrals'!H2042,"="&A66, Referrals!A61:'Referrals'!H2042,"<>") -> 0 | S66: =COUNTIFS(Matchmaker!$B$2:$B$999,"="&A66,Matchmaker!$H$2:$H$999,"<>") -> 0 | T66: =COUNTIFS(Matchmaker!$B$2:$B$999,"="&A66,Matchmaker!$J$2:$J$999,"<>") -> 0 | U66: =COUNTIFS(Support!$C$2:$C$973,"="&A66,Support!$C$2:$C$973,"<>") -> 0 | V66: =SUM(O66:U66) -> 0 | Z66: Haruna Kazibwe. | AA66: Executive Director | AB66: info@afrahug.org | AD66: 0752 502164 | AI66: Address: Plot 205, Hills House, Entebbe Rd, Kampala
A67: AFRC-UG | B67: AFRICA RICE CENTER | C67: The Africa Rice Center (AfricaRice) is a pan-African Center of Excellence for rice research, development and capacity building. It contributes to reducing poverty, achieving food and nutrition security and improving livelihoods of farmers and rice value-chain actors in Africa by increasing the productivity and profitability of rice-based agri-food systems, while ensuring the sustainability of natural resources. | D67: https://www.africarice.org/ | E67: NGO | F67: Global / Multi-country / Foreign | G67: Food Security and Agriculture | H67: Nutrition | I67: Livelihoods / (social) Entrepreneurship | J67: Youth | K67: Gender | L67: Food Security and Agriculture, Nutrition, Livelihoods / (social) Entrepreneurship, Youth, Gender | M67: Implementer | N67: Multilateral | O67: =COUNTIFS(Conveners!$B$2:$B$1798,"="&A67,Conveners!$AA$2:$AA$1798,">0") -> 0 | P67: =COUNTIFS(Challenges!$H$2:$H$982,"="&A67,Challenges!$H$2:$H$982,"<>") -> 0 | Q67: =COUNTIFS(Innovations!$C$2:$F$1628,"="&A67, Innovations!$C$2:$F$1628,"<>") -> 0 | R67: =COUNTIFS(Referrals!A62:'Referrals'!H2043,"="&A67, Referrals!A62:'Referrals'!H2043,"<>") -> 0 | S67: =COUNTIFS(Matchmaker!$B$2:$B$999,"="&A67,Matchmaker!$H$2:$H$999,"<>") -> 0 | T67: =COUNTIFS(Matchmaker!$B$2:$B$999,"="&A67,Matchmaker!$J$2:$J$999,"<>") -> 0 | U67: =COUNTIFS(Support!$C$2:$C$973,"="&A67,Support!$C$2:$C$973,"<>") -> 0 | V67: 0 | Z67: Harold Roy-Macauley | AA67: Director General | AB67: E.Twine@cgiar.org | AC67: AfricaRice@cgiar.org | AD67: +225 27 22 48 09 10 | AF67: Cocody, Abidjan 01, Côte d'Ivoire
A68: AFRICAHUMANITARIANACTION-UG | B68: AFRICA HUMANITARIAN ACTION | C68: Africa Humanitarian Action (AHA) is a pan-African international non-governmental organization that provides effective relief, development and advocacy services. At the heart of AHA’s work is a firm commitment to reducing poverty through addressing crisis-related suffering and laying the foundations for recovery and sustainable development. Aha works in partnership with local populations, listening and responding to people’s needs and empowering them to make lasting differences to their own lives. | D68: https://www.humanitarianresponse.info/ | E68: Donor | F68: Global / Multi-country / Foreign | G68: Multi-sectoral | H68: Economic Development | I68: Livelihoods / (social) Entrepreneurship | L68: Multi-sectoral, Economic Development, Livelihoods / (social) Entrepreneurship, , | M68: Implementer | N68: INGO | O68: =COUNTIFS(Conveners!$B$2:$B$1798,"="&A68,Conveners!$AA$2:$AA$1798,">0") -> 1 | P68: =COUNTIFS(Challenges!$H$2:$H$982,"="&A68,Challenges!$H$2:$H$982,"<>") -> 0 | Q68: =COUNTIFS(Innovations!$C$2:$F$1628,"="&A68, Innovations!$C$2:$F$1628,"<>") -> 0 | R68: =COUNTIFS(Referrals!A63:'Referrals'!H2044,"="&A68, Referrals!A63:'Referrals'!H2044,"<>") -> 0 | S68: =COUNTIFS(Matchmaker!$B$2:$B$999,"="&A68,Matchmaker!$H$2:$H$999,"<>") -> 0 | T68: =COUNTIFS(Matchmaker!$B$2:$B$999,"="&A68,Matchmaker!$J$2:$J$999,"<>") -> 0 | U68: =COUNTIFS(Support!$C$2:$C$973,"="&A68,Support!$C$2:$C$973,"<>") -> 0 | V68: 1 | W68: Refugee-Led Organisation | Z68: Wossen Taye | AA68: Country Representative | AB68: info@africahumanitarian.org | AK68: Aha believes that it is only through building on the capacities existent within communities and giving people ownership of their future, that sustainable change can be achieved. Complementary to the assistance aha provides is its work in international advocacy, bringing a much needed southern perspective to the global humanitarian arena. Since inception, aha has striven to empower african civil society organizations and communities to ensure that they have the opportunity, confidence and space to generate meaningful contributions to humanitarianism. The strength of aha is in its african roots and reach. It attempts to deliver sound programs and results. Aha is inclusive and makes use of the diversity and resources of the people it works with. Aha embraces change and innovation, at the same time as it seeks results that last.
A69: AFRICAINNOVATIONSLINST-UG | B69: AFRICA INNOVATIONS INSTITUTE | C69: AFRII is a not-for-profit, non-governmental center of excellence in agricultural innovations. Established in 2005, AFRII undertakes research and innovations development on agriculture and food systems to ensure sustainable increase in smallholder farmers’ income, food and nutrition security as well as environmental sustainability in eastern and central Africa. The institute brings together leading experts in agriculture, nutrition, and food systems; networks and forges smart partnerships with many African, European and American institutions in implementing its programs; and works with public, private, civil society, philanthropic and funding organizations. | D69: https://www.afrii.org | E69: NGO | F69: Global / Multi-country / Foreign | G69: Food Security and Agriculture | H69: Livelihoods / (social) Entrepreneurship | L69: Food Security and Agriculture, Livelihoods / (social) Entrepreneurship, , , | M69: Implementer | N69: LNGO | O69: =COUNTIFS(Conveners!$B$2:$B$1798,"="&A69,Conveners!$AA$2:$AA$1798,">0") -> 0 | P69: =COUNTIFS(Challenges!$H$2:$H$982,"="&A69,Challenges!$H$2:$H$982,"<>") -> 0 | Q69: =COUNTIFS(Innovations!$C$2:$F$1628,"="&A69, Innovations!$C$2:$F$1628,"<>") -> 0 | R69: =COUNTIFS(Referrals!A64:'Referrals'!H2045,"="&A69, Referrals!A64:'Referrals'!H2045,"<>") -> 0 | S69: =COUNTIFS(Matchmaker!$B$2:$B$999,"="&A69,Matchmaker!$H$2:$H$999,"<>") -> 0 | T69: =COUNTIFS(Matchmaker!$B$2:$B$999,"="&A69,Matchmaker!$J$2:$J$999,"<>") -> 0 | U69: =COUNTIFS(Support!$C$2:$C$973,"="&A69,Support!$C$2:$C$973,"<>") -> 0 | V69: 0 | AB69: info@afrii.org | AD69: 041 4699080 | AF69: Plot 1544, Koire Close, | AI69: Off Old Kiira Road, Bukoto | AL69: LINS
A70: AFRICATREEFINDER-UG | B70: AFRICA TREE FINDER | C70: This easy-to-use app shows you data on the distribution of indigenous tree species in different natural vegetation types, combined with information on the products and services that the tree species can provide. It arms you – local community members, government agencies, private sector owners, and land managers – with the information you need to select the best tree species for your landscape restoration or agroforestry effort. | D70: http://vegetationmap4africa.org/home.html | E70: NGO | F70: Global / Multi-country / Foreign | G70: Energy/Environment | H70: Shelter and NFIs | I70: Monitoring Evaluation Accountability and Learning (MEAL) | L70: Energy/Environment, Shelter and NFIs, Monitoring Evaluation Accountability and Learning (MEAL), , | M70: Knowledge | N70: Data Analytics | O70: =COUNTIFS(Conveners!$B$2:$B$1798,"="&A70,Conveners!$AA$2:$AA$1798,">0") -> 0 | P70: =COUNTIFS(Challenges!$H$2:$H$982,"="&A70,Challenges!$H$2:$H$982,"<>") -> 0 | Q70: =COUNTIFS(Innovations!$C$2:$F$1628,"="&A70, Innovations!$C$2:$F$1628,"<>") -> 0 | R70: =COUNTIFS(Referrals!A65:'Referrals'!H2046,"="&A70, Referrals!A65:'Referrals'!H2046,"<>") -> 0 | S70: =COUNTIFS(Matchmaker!$B$2:$B$999,"="&A70,Matchmaker!$H$2:$H$999,"<>") -> 0 | T70: =COUNTIFS(Matchmaker!$B$2:$B$999,"="&A70,Matchmaker!$J$2:$J$999,"<>") -> 0 | U70: =COUNTIFS(Support!$C$2:$C$973,"="&A70,Support!$C$2:$C$973,"<>") -> 0 | V70: 0 | AE70: http://vegetationmap4africa.org/Home.html
A71: AFRICEL-UG | B71: AFRICELL UGANDA LIMITED | C71: Africell Uganda, whose full legal name is Africell Uganda Limited, is an information and communication technology network company in Uganda the headquarters and main office of aul are located in the Africell office building, at 28 - 30 clement hill road, on Nakasero hill in the central division of Kampala, the capital and largest city in the country. | D71: http://africell.ug/ | E71: For-profit | F71: Global / Multi-country / Foreign | G71: Media/Communication | I71: IT/Digital/ICT4D | L71: Media/Communication, , IT/Digital/ICT4D, , | M71: Private Sector | N71: Telecom | O71: =COUNTIFS(Conveners!$B$2:$B$1798,"="&A71,Conveners!$AA$2:$AA$1798,">0") -> 0 | P71: =COUNTIFS(Challenges!$H$2:$H$982,"="&A71,Challenges!$H$2:$H$982,"<>") -> 0 | Q71: =COUNTIFS(Innovations!$C$2:$F$1628,"="&A71, Innovations!$C$2:$F$1628,"<>") -> 0 | R71: =COUNTIFS(Referrals!A66:'Referrals'!H2047,"="&A71, Referrals!A66:'Referrals'!H2047,"<>") -> 0 | S71: =COUNTIFS(Matchmaker!$B$2:$B$999,"="&A71,Matchmaker!$H$2:$H$999,"<>") -> 0 | T71: =COUNTIFS(Matchmaker!$B$2:$B$999,"="&A71,Matchmaker!$J$2:$J$999,"<>") -> 0 | U71: =COUNTIFS(Support!$C$2:$C$973,"="&A71,Support!$C$2:$C$973,"<>") -> 0 | V71: 0 | Z71: Hussein Samanya | AA71: Head of Africell Money | AB71: hussein.samaya@africell.ug | AE71: www.africell.ug | AM71: Inactive
A72: AFRIC-UG | B72: AFRICA FREEDOM OF INFORMATION CENTER (AFIC) | C72: Africa Freedom of Information Centre (AFRIC) is a pan-African civil society organization and resource center that strives to become a reliable, dependable and all-round freedom of information support center on the African continent. Since 2008, AFRIC has been raising awareness and promoting the anti legal standard and framework at regional and national level through comparative research, coordinating regional advocacy, facilitating information-sharing and capacity-building, to empower civil society and citizens to use the anti laws, open contracting initiatives and anti-corruption mechanisms. | D72: www.africafoicentre.org | E72: NGO | F72: Global / Multi-country / Foreign | G72: Media/Communication | H72: Media/Communication | I72: Cash Transfer Programming/Social Protection/Financial Inclusion | L72: Media/Communication, Media/Communication, Cash Transfer Programming/Social Protection/Financial Inclusion, , | M72: Knowledge | N72: Media | O72: =COUNTIFS(Conveners!$B$2:$B$1798,"="&A72,Conveners!$AA$2:$AA$1798,">0") -> 0 | P72: =COUNTIFS(Challenges!$H$2:$H$982,"="&A72,Challenges!$H$2:$H$982,"<>") -> 0 | Q72: =COUNTIFS(Innovations!$C$2:$F$1628,"="&A72, Innovations!$C$2:$F$1628,"<>") -> 0 | R72: =COUNTIFS(Referrals!A67:'Referrals'!H2048,"="&A72, Referrals!A67:'Referrals'!H2048,"<>") -> 0 | S72: =COUNTIFS(Matchmaker!$B$2:$B$999,"="&A72,Matchmaker!$H$2:$H$999,"<>") -> 0 | T72: =COUNTIFS(Matchmaker!$B$2:$B$999,"="&A72,Matchmaker!$J$2:$J$999,"<>") -> 0 | U72: =COUNTIFS(Support!$C$2:$C$973,"="&A72,Support!$C$2:$C$973,"<>") -> 0 | V72: 0 | Z72: Gilbert Sendugwa | AA72: Coordinator & Head of Secretariat | AB72: info@africafoicenter.org | AD72: 0 414 533 554 | AE72: info@africafoicentre.org | AK72: AFIC has engaged national anti-corruption mechanisms and public servants to promote the institutionalization and the use of ATI in public entities as well as improve investigation methodologies regarding citizen engagement.
A73: AFRILABS-UG | B73: AFRILABS | C73: Afrilabs is pan-African group of technology and innovation hubs promoting the growth and development of the African technology sector. The aerials network is comprised of 26 hubs and labs across the African continent. Afrilabs was founded in 2011 to build a community around rapidly emerging tech hubs―innovation spaces that serve as meeting points and communities for developers, entrepreneurs, and investors. We believe that supporting the development of the African technology and innovation ecosystem enables Africa to participate in the global knowledge and innovation market place thereby stimulating economic growth. | D73: https://www.afrilabs.com/ | E73: Donor | F73: Global / Multi-country / Foreign | G73: Economic Development | H73: Livelihoods / (social) Entrepreneurship | L73: Economic Development, Livelihoods / (social) Entrepreneurship, , , | M73: Innovation Support | N73: Network | O73: =COUNTIFS(Conveners!$B$2:$B$1798,"="&A73,Conveners!$AA$2:$AA$1798,">0") -> 0 | P73: =COUNTIFS(Challenges!$H$2:$H$982,"="&A73,Challenges!$H$2:$H$982,"<>") -> 0 | Q73: =COUNTIFS(Innovations!$C$2:$F$1628,"="&A73, Innovations!$C$2:$F$1628,"<>") -> 0 | R73: =COUNTIFS(Referrals!A68:'Referrals'!H2049,"="&A73, Referrals!A68:'Referrals'!H2049,"<>") -> 0 | S73: =COUNTIFS(Matchmaker!$B$2:$B$999,"="&A73,Matchmaker!$H$2:$H$999,"<>") -> 0 | T73: =COUNTIFS(Matchmaker!$B$2:$B$999,"="&A73,Matchmaker!$J$2:$J$999,"<>") -> 0 | U73: =COUNTIFS(Support!$C$2:$C$973,"="&A73,Support!$C$2:$C$973,"<>") -> 0 | V73: 0 | Z73: Patrick Ashu | AA73: Programmes Manager | AB73: secretariat@afrilabs.com | AC73: patrick@afrilabs.com | AD73: 2348150000000 | AE73: For PR & Media/Communication partnerships - Media/Communication@afrilabs.com For Community Engagement & Membership - kene@afrilabs.com | AI73: No. 17 Inuwa Wada Crescent, Utako, Abuja - Nigeria. | AL73: COVIDCONVENE | AM73: Active
A74: AFRIPADS-UG | B74: AFRIPADS | C74: Afripads is an organization that understands that menstrual hygiene management requires more than just pads and to support the partners to deliver holistic programming, they provide a suite of free education materials including a three hour long curriculum on menstruation, a period story book and a data collection tool. The reusable sanitary pads are designed to provide superior feminine hygiene protection and comfort. Afripads menstrual kits are made from high-performance textiles and provide effective protection for 12+ months of use. Afripads are ultra-absorbent, natural, and eco-friendly. | D74: https://www.afripads.com | E74: NGO | F74: National | G74: Health | H74: Water Sanitation and Hygiene (WASH) | I74: Education | L74: Health, Water Sanitation and Hygiene (WASH), Education, , | M74: Private Sector | N74: Startup | O74: =COUNTIFS(Conveners!$B$2:$B$1798,"="&A74,Conveners!$AA$2:$AA$1798,">0") -> 0 | P74: =COUNTIFS(Challenges!$H$2:$H$982,"="&A74,Challenges!$H$2:$H$982,"<>") -> 0 | Q74: =COUNTIFS(Innovations!$C$2:$F$1628,"="&A74, Innovations!$C$2:$F$1628,"<>") -> 1 | R74: =COUNTIFS(Referrals!A69:'Referrals'!H2050,"="&A74, Referrals!A69:'Referrals'!H2050,"<>") -> 0 | S74: =COUNTIFS(Matchmaker!$B$2:$B$999,"="&A74,Matchmaker!$H$2:$H$999,"<>") -> 0 | T74: =COUNTIFS(Matchmaker!$B$2:$B$999,"="&A74,Matchmaker!$J$2:$J$999,"<>") -> 0 | U74: =COUNTIFS(Support!$C$2:$C$973,"="&A74,Support!$C$2:$C$973,"<>") -> 0 | V74: 1 | Z74: GEOFREY BUSINGE | AA74: Regional Partnerships and Business Development Manager | AB74: info@afripads.com | AD74: 256 (0) 392 174 561 | AE74: Sophia Grinvalds Co-Founder & Director
A75: AFRIQLOUD-UG | B75: AFRIQLOUD | C75: AfriQloud is an African company which offers a white-labelled cloud computing solution to telecom operators, internet service providers, system integrators and managed IT service providers. This solution allows these channel partners to offer their own branded cloud environment to their customers. | D75: https://afriqloud.com/ | E75: For-profit | F75: Global / Multi-country / Foreign | G75: IT/Digital/ICT4D | H75: Engineering/Infrastructure | L75: IT/Digital/ICT4D, Engineering/Infrastructure, , , | M75: Private Sector | N75: Telecom | O75: =COUNTIFS(Conveners!$B$2:$B$1798,"="&A75,Conveners!$AA$2:$AA$1798,">0") -> 0 | P75: =COUNTIFS(Challenges!$H$2:$H$982,"="&A75,Challenges!$H$2:$H$982,"<>") -> 0 | Q75: =COUNTIFS(Innovations!$C$2:$F$1628,"="&A75, Innovations!$C$2:$F$1628,"<>") -> 1 | R75: =COUNTIFS(Referrals!A70:'Referrals'!H2051,"="&A75, Referrals!A70:'Referrals'!H2051,"<>") -> 0 | S75: =COUNTIFS(Matchmaker!$B$2:$B$999,"="&A75,Matchmaker!$H$2:$H$999,"<>") -> 0 | T75: =COUNTIFS(Matchmaker!$B$2:$B$999,"="&A75,Matchmaker!$J$2:$J$999,"<>") -> 0 | U75: =COUNTIFS(Support!$C$2:$C$973,"="&A75,Support!$C$2:$C$973,"<>") -> 0 | V75: 1 | AB75: connect@afriqloud.com
A76: AFRISA-UG | B76: AFRICA INSTITUTE FOR STRATEGIC ANIMAL RESOURCE SERVICES AND DEVELOPMENT (AFRISA) | C76: AFRISA programmes were developed by Makerere University and the government of Uganda through the Ministry of Education and Sports to address a gap in job creation in the animal resource sector. The programmes focus on commodity value chains e.g. dairy, meat, leather, poultry, pig, bees, fish. | D76: https://afrisa.org/ | E76: Academic | F76: National | G76: Livelihoods / (social) Entrepreneurship | H76: Livelihoods / (social) Entrepreneurship | I76: Multi-sectoral | L76: Livelihoods / (social) Entrepreneurship, Livelihoods / (social) Entrepreneurship, Multi-sectoral, , | M76: Knowledge | N76: Technical Expertise | O76: =COUNTIFS(Conveners!$B$2:$B$1798,"="&A76,Conveners!$AA$2:$AA$1798,">0") -> 0 | P76: =COUNTIFS(Challenges!$H$2:$H$982,"="&A76,Challenges!$H$2:$H$982,"<>") -> 0 | Q76: =COUNTIFS(Innovations!$C$2:$F$1628,"="&A76, Innovations!$C$2:$F$1628,"<>") -> 0 | R76: =COUNTIFS(Referrals!A71:'Referrals'!H2052,"="&A76, Referrals!A71:'Referrals'!H2052,"<>") -> 0 | S76: =COUNTIFS(Matchmaker!$B$2:$B$999,"="&A76,Matchmaker!$H$2:$H$999,"<>") -> 0 | T76: =COUNTIFS(Matchmaker!$B$2:$B$999,"="&A76,Matchmaker!$J$2:$J$999,"<>") -> 0 | U76: =COUNTIFS(Support!$C$2:$C$973,"="&A76,Support!$C$2:$C$973,"<>") -> 0 | V76: 0 | Z76: Mr. Kirangwa Peter | AA76: Member | AB76: info@afrisa.org | AC76: peter@afrisa-africa.org | AD76: 256-312-514068 | AE76: info@afrisa.org | AF76: P. O. Box: 7062 Kampala Uganda
A77: AFR-UG | B77: AFRICAN FOOD REVOLUTION | C77: African Food Revolution (AFR) is an UBUNTU initiative focusing on food development in Africa. African Food Revolution is helping build the most efficient, environmentally sustainable and futuristic agricultural platforms in Africa. The mission is to use scientific, technological and human determinism to amplify food production units from the African village through sustainable production systems from the village to the hand which consumes. | D77: https://africanfoodrevolution.com/ | E77: NGO | F77: Global / Multi-country / Foreign | G77: Food Security and Agriculture | H77: Nutrition | I77: Energy/Environment | J77: Cash Transfer Programming/Social Protection/Financial Inclusion | L77: Food Security and Agriculture, Nutrition, Energy/Environment, Cash Transfer Programming/Social Protection/Financial Inclusion, | M77: Implementer | N77: Coordination | O77: =COUNTIFS(Conveners!$B$2:$B$1798,"="&A77,Conveners!$AA$2:$AA$1798,">0") -> 0 | P77: =COUNTIFS(Challenges!$H$2:$H$982,"="&A77,Challenges!$H$2:$H$982,"<>") -> 0 | Q77: =COUNTIFS(Innovations!$C$2:$F$1628,"="&A77, Innovations!$C$2:$F$1628,"<>") -> 0 | R77: =COUNTIFS(Referrals!A72:'Referrals'!H2053,"="&A77, Referrals!A72:'Referrals'!H2053,"<>") -> 0 | S77: =COUNTIFS(Matchmaker!$B$2:$B$999,"="&A77,Matchmaker!$H$2:$H$999,"<>") -> 0 | T77: =COUNTIFS(Matchmaker!$B$2:$B$999,"="&A77,Matchmaker!$J$2:$J$999,"<>") -> 0 | U77: =COUNTIFS(Support!$C$2:$C$973,"="&A77,Support!$C$2:$C$973,"<>") -> 0 | V77: 0 | Z77: Makhosi Mahlangu | AA77: Chief Operations Ofiicer | AB77: info@africanfoodrevolution.com | AC77: africanfoodrevolution@gmail.com | AD77: +39 389 497 0236 | AE77: makhosimahlangu@gmail.com | AF77: Lupane, Zimbabwe
A78: AFSA-UG | B78: ALLIANCE FOR FOOD SOVEREIGNTY IN AFRICA | C78: The Alliance for Food Sovereignty in Africa (AFSA) is a broad alliance of different civil society actors that are part of the struggle for food sovereignty and agroecology in Africa. AFSA brings together small-scale farmers, pastoralists, fishers, indigenous peoples, faith communities, consumers, women, and young people from across Africa to create a united and loud voice for food sovereignty. AFSA aims to be a strong voice that shapes policy on the continent in the area of community rights, family farming, promotion of traditional knowledge and knowledge systems, the environment and natural resource management. | D78: https://afsafrica.org/ | E78: NGO | F78: Global / Multi-country / Foreign | G78: Food Security and Agriculture | H78: Social Behavioral Change Communication/Community Mobilization | I78: Youth | J78: Multi-sectoral | L78: Food Security and Agriculture, Social Behavioral Change Communication/Community Mobilization, Youth, Multi-sectoral, | M78: Knowledge | N78: Advocacy | O78: =COUNTIFS(Conveners!$B$2:$B$1798,"="&A78,Conveners!$AA$2:$AA$1798,">0") -> 0 | P78: =COUNTIFS(Challenges!$H$2:$H$982,"="&A78,Challenges!$H$2:$H$982,"<>") -> 0 | Q78: =COUNTIFS(Innovations!$C$2:$F$1628,"="&A78, Innovations!$C$2:$F$1628,"<>") -> 0 | R78: =COUNTIFS(Referrals!A73:'Referrals'!H2054,"="&A78, Referrals!A73:'Referrals'!H2054,"<>") -> 0 | S78: =COUNTIFS(Matchmaker!$B$2:$B$999,"="&A78,Matchmaker!$H$2:$H$999,"<>") -> 0 | T78: =COUNTIFS(Matchmaker!$B$2:$B$999,"="&A78,Matchmaker!$J$2:$J$999,"<>") -> 0 | U78: =COUNTIFS(Support!$C$2:$C$973,"="&A78,Support!$C$2:$C$973,"<>") -> 0 | V78: 0 | Z78: BRIDGET MUGAMBE | AA78: PROGRAM COORDINATOR | AB78: afsa@afsafrica.org | AC78: bridget.mugambe@afsafrica.org | AE78: afsa@afsafrica.org | AG78: Kampala
A79: AGAPEIN-UG | B79: AGAPE INNOVATIONS | C79: Agape Innovations Limited is a youth-led Agric-ICT company in Uganda with a mandate of solving agriculture problems by sourcing out scientific interventions, technological developments and forms of new agricultural innovations, then localize and tailor them for our farmers. | D79: https://www.agapeinnovations.com/ | E79: For-profit | F79: National | G79: Youth | H79: IT/Digital/ICT4D | L79: Youth, IT/Digital/ICT4D, , , | M79: Private Sector | N79: Retailer | O79: =COUNTIFS(Conveners!$B$2:$B$1798,"="&A79,Conveners!$AA$2:$AA$1798,">0") -> 0 | P79: =COUNTIFS(Challenges!$H$2:$H$982,"="&A79,Challenges!$H$2:$H$982,"<>") -> 0 | Q79: =COUNTIFS(Innovations!$C$2:$F$1628,"="&A79, Innovations!$C$2:$F$1628,"<>") -> 0 | R79: =COUNTIFS(Referrals!A74:'Referrals'!H2055,"="&A79, Referrals!A74:'Referrals'!H2055,"<>") -> 0 | S79: =COUNTIFS(Matchmaker!$B$2:$B$999,"="&A79,Matchmaker!$H$2:$H$999,"<>") -> 0 | T79: =COUNTIFS(Matchmaker!$B$2:$B$999,"="&A79,Matchmaker!$J$2:$J$999,"<>") -> 0 | U79: =COUNTIFS(Support!$C$2:$C$973,"="&A79,Support!$C$2:$C$973,"<>") -> 0 | V79: 0 | Z79: Mugisha Paul | AA79: Co-Founder | AB79: info@agapeinnovations.com | AC79: mugishapaulmugisha@gmail.com | AD79: +256 784 313072 | AF79: Kampala
A80: AGAPE-UG | B80: AGAPEWO MINISTRY UGANDA | C80: Agapewo Ministry Uganda is a community based charity ministry founded by a group of concerned citizens. They had a strong desire to empower communities, strengthen capacities of member organizations/ministries in support to their development investments, provision of entrepreneurship skills, promotion of literacy programmes in improving health care diseases and poverty and to advocate for gender equality. In 2006, a program aimed at fighting HIV/AIDS was developed by the members of the ministry to add on the initiatives of the government and organizations/ministries in the fight against the killer disease. | D80: www.agapewoministriesUganda.webs.com | E80: NGO | F80: National | G80: Disability/Inclusivity | H80: Livelihoods / (social) Entrepreneurship | I80: Water Sanitation and Hygiene (WASH) | L80: Disability/Inclusivity, Livelihoods / (social) Entrepreneurship, Water Sanitation and Hygiene (WASH), , | M80: Implementer | N80: LNGO | O80: =COUNTIFS(Conveners!$B$2:$B$1798,"="&A80,Conveners!$AA$2:$AA$1798,">0") -> 1 | P80: =COUNTIFS(Challenges!$H$2:$H$982,"="&A80,Challenges!$H$2:$H$982,"<>") -> 0 | Q80: =COUNTIFS(Innovations!$C$2:$F$1628,"="&A80, Innovations!$C$2:$F$1628,"<>") -> 0 | R80: =COUNTIFS(Referrals!A75:'Referrals'!H2056,"="&A80, Referrals!A75:'Referrals'!H2056,"<>") -> 0 | S80: =COUNTIFS(Matchmaker!$B$2:$B$999,"="&A80,Matchmaker!$H$2:$H$999,"<>") -> 0 | T80: =COUNTIFS(Matchmaker!$B$2:$B$999,"="&A80,Matchmaker!$J$2:$J$999,"<>") -> 0 | U80: =COUNTIFS(Support!$C$2:$C$973,"="&A80,Support!$C$2:$C$973,"<>") -> 0 | V80: 1 | Z80: Musobya Moses | AA80: Contact Person | AB80: agapewom3@gmail.com | AC80: agapewom@yahoo.com | AD80: 0752 105 307 | AE80: agapewom3@gmail.com | AF80: P.O Box 5342, Jinja, | AI80: 21 A Lubas Road, Jinja, Jinja
A81: AGCY-UG | B81: AGRICYCLE GLOBAL | C81: Agricycle Global closes the gap between smallholders in developing economies and global markets by democratizing access to agricultural value chain through our distributed network of producers and portfolio of upcycled ingredients. | D81: https://agricycleglobal.com/ | E81: For-profit | F81: Global / Multi-country / Foreign | G81: Nutrition | H81: Energy/Environment | I81: Livelihoods / (social) Entrepreneurship | J81: Engineering/Infrastructure | L81: Nutrition, Energy/Environment, Livelihoods / (social) Entrepreneurship, Engineering/Infrastructure, | M81: Private Sector | N81: Industry | O81: =COUNTIFS(Conveners!$B$2:$B$1798,"="&A81,Conveners!$AA$2:$AA$1798,">0") -> 0 | P81: =COUNTIFS(Challenges!$H$2:$H$982,"="&A81,Challenges!$H$2:$H$982,"<>") -> 0 | Q81: =COUNTIFS(Innovations!$C$2:$F$1628,"="&A81, Innovations!$C$2:$F$1628,"<>") -> 1 | R81: =COUNTIFS(Referrals!A76:'Referrals'!H2057,"="&A81, Referrals!A76:'Referrals'!H2057,"<>") -> 0 | S81: =COUNTIFS(Matchmaker!$B$2:$B$999,"="&A81,Matchmaker!$H$2:$H$999,"<>") -> 0 | T81: =COUNTIFS(Matchmaker!$B$2:$B$999,"="&A81,Matchmaker!$J$2:$J$999,"<>") -> 0 | U81: =COUNTIFS(Support!$C$2:$C$973,"="&A81,Support!$C$2:$C$973,"<>") -> 0 | V81: 1 | Z81: Josh Shefner | AA81: Chief Executive Officer | AB81: contact@agricycleglobal.com | AF81: Milwaukee, Wisconsin
A82: AGRA-UG | B82: AGRA-GROWING AFRICA'S AGRICULTURE | C82: AGRA-Growing Africa's Agriculture (AGRA) is an alliance led by Africans with roots in farming communities across the continent. AGRA has worked with its partners across Africa to deliver a set of proven solutions to smallholder farmers and thousands of indigenous African agriculture enterprises. The alliance has built the systems and tools for Africa’s agriculture; high quality seeds, better soil health, access to markets and credit, and coupled by stronger farmer organizations and agriculture policies. | D82: https://agra.org/ | E82: NGO | F82: Global / Multi-country / Foreign | G82: Food Security and Agriculture | H82: Nutrition | I82: Multi-sectoral | L82: Food Security and Agriculture, Nutrition, Multi-sectoral, , | M82: Implementer | N82: Coordination | O82: =COUNTIFS(Conveners!$B$2:$B$1798,"="&A82,Conveners!$AA$2:$AA$1798,">0") -> 0 | P82: =COUNTIFS(Challenges!$H$2:$H$982,"="&A82,Challenges!$H$2:$H$982,"<>") -> 0 | Q82: =COUNTIFS(Innovations!$C$2:$F$1628,"="&A82, Innovations!$C$2:$F$1628,"<>") -> 0 | R82: =COUNTIFS(Referrals!A77:'Referrals'!H2058,"="&A82, Referrals!A77:'Referrals'!H2058,"<>") -> 0 | S82: =COUNTIFS(Matchmaker!$B$2:$B$999,"="&A82,Matchmaker!$H$2:$H$999,"<>") -> 0 | T82: =COUNTIFS(Matchmaker!$B$2:$B$999,"="&A82,Matchmaker!$J$2:$J$999,"<>") -> 0 | U82: =COUNTIFS(Support!$C$2:$C$973,"="&A82,Support!$C$2:$C$973,"<>") -> 0 | V82: 0 | Z82: Dr. Agnes Kalibata | AA82: President | AB82: info@agra.org | AD82: +254 703 033000 | AF82: Nairobi, Kenya
A83: AGRAW-UG | B83: AGRARIAN WORLD | C83: Agrarian World is aiming at sustaining Food Security and Agriculture and support to national economy, making agriculture cost effective and knowledge based, with emphasis on farmer’s welfare and maintenance of the yield potentials. . | D83: http://www.agrarianworld.com/ | E83: NGO | F83: Global / Multi-country / Foreign | G83: Food Security and Agriculture | H83: Economic Development | I83: Nutrition | J83: Cash Transfer Programming/Social Protection/Financial Inclusion | L83: Food Security and Agriculture, Economic Development, Nutrition, Cash Transfer Programming/Social Protection/Financial Inclusion, | M83: Implementer | N83: INGO | O83: =COUNTIFS(Conveners!$B$2:$B$1798,"="&A83,Conveners!$AA$2:$AA$1798,">0") -> 0 | P83: =COUNTIFS(Challenges!$H$2:$H$982,"="&A83,Challenges!$H$2:$H$982,"<>") -> 0 | Q83: =COUNTIFS(Innovations!$C$2:$F$1628,"="&A83, Innovations!$C$2:$F$1628,"<>") -> 0 | R83: =COUNTIFS(Referrals!A78:'Referrals'!H2059,"="&A83, Referrals!A78:'Referrals'!H2059,"<>") -> 0 | S83: =COUNTIFS(Matchmaker!$B$2:$B$999,"="&A83,Matchmaker!$H$2:$H$999,"<>") -> 0 | T83: =COUNTIFS(Matchmaker!$B$2:$B$999,"="&A83,Matchmaker!$J$2:$J$999,"<>") -> 0 | U83: =COUNTIFS(Support!$C$2:$C$973,"="&A83,Support!$C$2:$C$973,"<>") -> 0 | V83: 0
A84: AGRF-UG | B84: AFRICAN GREEN REVOLUTION FORUM | C84: African Green Revolution Forum (AGRF) is the world’s premier forum for African agriculture, bringing together stakeholders in the agricultural landscape to take practical actions and share lessons that will move African agriculture forward. AGRF is designed to energize political will and advance the policies, programs and investments required to achieve an inclusive and sustainable agricultural transformation. | D84: https://agrf.org/ | E84: NGO | F84: Global / Multi-country / Foreign | G84: Food Security and Agriculture | H84: Gender | I84: Monitoring Evaluation Accountability and Learning (MEAL) | L84: Food Security and Agriculture, Gender, Monitoring Evaluation Accountability and Learning (MEAL), , | M84: Implementer | N84: INGO | O84: =COUNTIFS(Conveners!$B$2:$B$1798,"="&A84,Conveners!$AA$2:$AA$1798,">0") -> 0 | P84: =COUNTIFS(Challenges!$H$2:$H$982,"="&A84,Challenges!$H$2:$H$982,"<>") -> 0 | Q84: =COUNTIFS(Innovations!$C$2:$F$1628,"="&A84, Innovations!$C$2:$F$1628,"<>") -> 0 | R84: =COUNTIFS(Referrals!A79:'Referrals'!H2060,"="&A84, Referrals!A79:'Referrals'!H2060,"<>") -> 0 | S84: =COUNTIFS(Matchmaker!$B$2:$B$999,"="&A84,Matchmaker!$H$2:$H$999,"<>") -> 0 | T84: =COUNTIFS(Matchmaker!$B$2:$B$999,"="&A84,Matchmaker!$J$2:$J$999,"<>") -> 0 | U84: =COUNTIFS(Support!$C$2:$C$973,"="&A84,Support!$C$2:$C$973,"<>") -> 0 | V84: 0 | AB84: secretariat@agrf.org | AF84: Kigali, Rwanda
A85: AGRICART-UG | B85: AGRIC ART | C85: Farmers have limited access to capital (loans), weather information, opportunities and lack of market. Agricart will help with farmer profiling, market links and prices, farming and record management through the ledger data. This will help farmers manage their records and help them acquire loans. | D85: https://www.agricart.africa/ | E85: For-profit | F85: Global / Multi-country / Foreign | G85: Food Security and Agriculture | H85: IT/Digital/ICT4D | I85: Livelihoods / (social) Entrepreneurship | L85: Food Security and Agriculture, IT/Digital/ICT4D, Livelihoods / (social) Entrepreneurship, , | M85: Private Sector | N85: Startup | O85: =COUNTIFS(Conveners!$B$2:$B$1798,"="&A85,Conveners!$AA$2:$AA$1798,">0") -> 0 | P85: =COUNTIFS(Challenges!$H$2:$H$982,"="&A85,Challenges!$H$2:$H$982,"<>") -> 0 | Q85: =COUNTIFS(Innovations!$C$2:$F$1628,"="&A85, Innovations!$C$2:$F$1628,"<>") -> 1 | R85: =COUNTIFS(Referrals!A80:'Referrals'!H2061,"="&A85, Referrals!A80:'Referrals'!H2061,"<>") -> 0 | S85: =COUNTIFS(Matchmaker!$B$2:$B$999,"="&A85,Matchmaker!$H$2:$H$999,"<>") -> 0 | T85: =COUNTIFS(Matchmaker!$B$2:$B$999,"="&A85,Matchmaker!$J$2:$J$999,"<>") -> 0 | U85: =COUNTIFS(Support!$C$2:$C$973,"="&A85,Support!$C$2:$C$973,"<>") -> 0 | V85: 1 | AB85: info@coredevsug.com | AD85: 0787 431452 | AE85: 0700 134235 | AF85: NTINDA COMPLEX, Kampala | AI85: Ntinda Complex , Innovation Village. +256 704 680 789 , +256 700 134 235 | AL85: LINS
A86: AGRIDECO-UG | B86: AGRIDECO LIMITED | C86: The AGRIDECO mission is to clean the air by replacing charcoal stoves with clean cookstoves that use ethanol and by replacing kerosene/diesel lamps with solar home systems through a project known as limpar air. By using modern technology in the production of ethanol which enables the production of several products from one feed stock, and by selling carbon credits, the limpar air project will distribute clean cook stoves to low income earners free of cost and sell to them denatured ethanol at a record low price of us cents 25 only. | D86: https://www.cleancookingalliance.org/partners/item/999/2869 | E86: Social enterprise | F86: National | G86: Energy/Environment | H86: Engineering/Infrastructure | I86: Energy/Environment | L86: Energy/Environment, Engineering/Infrastructure, Energy/Environment, , | M86: Private Sector | N86: Energy | O86: =COUNTIFS(Conveners!$B$2:$B$1798,"="&A86,Conveners!$AA$2:$AA$1798,">0") -> 0 | P86: =COUNTIFS(Challenges!$H$2:$H$982,"="&A86,Challenges!$H$2:$H$982,"<>") -> 0 | Q86: =COUNTIFS(Innovations!$C$2:$F$1628,"="&A86, Innovations!$C$2:$F$1628,"<>") -> 1 | R86: =COUNTIFS(Referrals!A81:'Referrals'!H2062,"="&A86, Referrals!A81:'Referrals'!H2062,"<>") -> 0 | S86: =COUNTIFS(Matchmaker!$B$2:$B$999,"="&A86,Matchmaker!$H$2:$H$999,"<>") -> 0 | T86: =COUNTIFS(Matchmaker!$B$2:$B$999,"="&A86,Matchmaker!$J$2:$J$999,"<>") -> 0 | U86: =COUNTIFS(Support!$C$2:$C$973,"="&A86,Support!$C$2:$C$973,"<>") -> 0 | V86: 1 | Z86: James Balyejusa | AA86: Team Member | AB86: jb@etatsug.com | AD86: 25670299687 | AE86: Ms. Catherine Nabirye Email ccnabirye@gmail.com Phone +256773537079 | AF86: Plot 23, Radio Road, Jinja. | AI86: P.O. Box 1304, Jinja. | AK86: The Project plans to subsidize the cost of ethanol by selling carbon generated by the stoves and solar lamps and by using ethanol in road construction machinery that will construct dustless gravel and concrete roads.
A87: AGRI-FINMOBILE-UG | B87: AGRI-FIN MOBILE | C87: Agri-Fin aims to enhance productivity and incomes of smallholder farmers, addressing food insecurity and poverty through facilitating partnerships between mobile network operators, financial institutions, and agricultural advisory service providers to offer much-needed mobile services at affordable rates. Potential bundled services will include farm and crop management tools, financing, micro-insurance, and access to markets for smallholder products. | D87: https://www.mercycorps.org/research/agri-fin-mobile | E87: NGO | F87: Global / Multi-country / Foreign | G87: Food Security and Agriculture | I87: Livelihoods / (social) Entrepreneurship | L87: Food Security and Agriculture, , Livelihoods / (social) Entrepreneurship, , | M87: Private Sector | N87: Social Enterprise | O87: =COUNTIFS(Conveners!$B$2:$B$1798,"="&A87,Conveners!$AA$2:$AA$1798,">0") -> 0 | P87: =COUNTIFS(Challenges!$H$2:$H$982,"="&A87,Challenges!$H$2:$H$982,"<>") -> 0 | Q87: =COUNTIFS(Innovations!$C$2:$F$1628,"="&A87, Innovations!$C$2:$F$1628,"<>") -> 1 | R87: =COUNTIFS(Referrals!A82:'Referrals'!H2063,"="&A87, Referrals!A82:'Referrals'!H2063,"<>") -> 0 | S87: =COUNTIFS(Matchmaker!$B$2:$B$999,"="&A87,Matchmaker!$H$2:$H$999,"<>") -> 0 | T87: =COUNTIFS(Matchmaker!$B$2:$B$999,"="&A87,Matchmaker!$J$2:$J$999,"<>") -> 0 | U87: =COUNTIFS(Support!$C$2:$C$973,"="&A87,Support!$C$2:$C$973,"<>") -> 0 | V87: 1 | Z87: Carol K. Kakooza | AA87: Program Director | AB87: agrifingroup@gmail.com | AC87: ckakooza@ug.mercycorps.org | AE87: https://www.mercycorps.org/research/agri-fin-mobile | AL87: LINS
A88: AGRINVESTMENTKIBBUTZ-UG | B88: AGRINVESTMENT KIBBUTZ | C88: Agri Vestment Club (Kibbutz)'s main objective is to sharetheir knowledge with the local communities besides developing their own enterprises. The initiative is being done in partnership with an Israeli farm based in Gayaza in Wakiso district. | D88: https://www.facebook.com/agrinvestment/ | E88: NGO | F88: National | G88: Food Security and Agriculture | H88: Livelihoods / (social) Entrepreneurship | I88: Livelihoods / (social) Entrepreneurship | L88: Food Security and Agriculture, Livelihoods / (social) Entrepreneurship, Livelihoods / (social) Entrepreneurship, , | M88: Knowledge | N88: Training | O88: =COUNTIFS(Conveners!$B$2:$B$1798,"="&A88,Conveners!$AA$2:$AA$1798,">0") -> 0 | P88: =COUNTIFS(Challenges!$H$2:$H$982,"="&A88,Challenges!$H$2:$H$982,"<>") -> 0 | Q88: =COUNTIFS(Innovations!$C$2:$F$1628,"="&A88, Innovations!$C$2:$F$1628,"<>") -> 0 | R88: =COUNTIFS(Referrals!A83:'Referrals'!H2064,"="&A88, Referrals!A83:'Referrals'!H2064,"<>") -> 0 | S88: =COUNTIFS(Matchmaker!$B$2:$B$999,"="&A88,Matchmaker!$H$2:$H$999,"<>") -> 0 | T88: =COUNTIFS(Matchmaker!$B$2:$B$999,"="&A88,Matchmaker!$J$2:$J$999,"<>") -> 0 | U88: =COUNTIFS(Support!$C$2:$C$973,"="&A88,Support!$C$2:$C$973,"<>") -> 0 | V88: 0 | Z88: Remmy Ssekitto | AA88: Managing Director | AB88: agrinvestmentkibbutz.org@gmail.com | AL88: LINS
A89: AGRISHARE-UG | B89: AGRISHARE UGANDA | C89: AgriShare Uganda is a tech start-up hiring and renting agricultural resources to farmers in a shared economy model. Farmers can rent or hire: irrigation equipment, land, labor, truck, processing equipment, and tractor. | D89: http://www.agrishare.app | E89: Social enterprise | F89: National | G89: Food Security and Agriculture | H89: Nutrition | L89: Food Security and Agriculture, Nutrition, , , | M89: Private Sector | N89: Startup | O89: =COUNTIFS(Conveners!$B$2:$B$1798,"="&A89,Conveners!$AA$2:$AA$1798,">0") -> 0 | P89: =COUNTIFS(Challenges!$H$2:$H$982,"="&A89,Challenges!$H$2:$H$982,"<>") -> 0 | Q89: =COUNTIFS(Innovations!$C$2:$F$1628,"="&A89, Innovations!$C$2:$F$1628,"<>") -> 1 | R89: =COUNTIFS(Referrals!A84:'Referrals'!H2065,"="&A89, Referrals!A84:'Referrals'!H2065,"<>") -> 0 | S89: =COUNTIFS(Matchmaker!$B$2:$B$999,"="&A89,Matchmaker!$H$2:$H$999,"<>") -> 0 | T89: =COUNTIFS(Matchmaker!$B$2:$B$999,"="&A89,Matchmaker!$J$2:$J$999,"<>") -> 0 | U89: =COUNTIFS(Support!$C$2:$C$973,"="&A89,Support!$C$2:$C$973,"<>") -> 0 | V89: 1 | AB89: info@agrishare.co.ug
A90: AGRITAB-UG | B90: AGRITAB CARTALOGUE | C90: Agritabcart is a web-based E-commerce that links farmers to quality agricultural inputs, work tirelessly to bring the agricultural input shops or their products closer to the mobile device thus saving the time taken by the farmer in searching for good inputs. By doing this they provide the farmers with sufficient knowledge about the products, & also giving them an opportunity to place orders at the comfort of their homes or offices and have them (products) delivered by her staff. Agritab Catalogue strives to identify and provide high quality agricultural inputs and information to Ugandan farmers in a timely manner to facilitate their farming needs. | D90: http://www.agritabcart.com/ | E90: For-profit | F90: National | G90: Food Security and Agriculture | L90: Food Security and Agriculture, , , , | M90: Private Sector | N90: Retailer | O90: =COUNTIFS(Conveners!$B$2:$B$1798,"="&A90,Conveners!$AA$2:$AA$1798,">0") -> 0 | P90: =COUNTIFS(Challenges!$H$2:$H$982,"="&A90,Challenges!$H$2:$H$982,"<>") -> 0 | Q90: =COUNTIFS(Innovations!$C$2:$F$1628,"="&A90, Innovations!$C$2:$F$1628,"<>") -> 1 | R90: =COUNTIFS(Referrals!A85:'Referrals'!H2066,"="&A90, Referrals!A85:'Referrals'!H2066,"<>") -> 0 | S90: =COUNTIFS(Matchmaker!$B$2:$B$999,"="&A90,Matchmaker!$H$2:$H$999,"<>") -> 0 | T90: =COUNTIFS(Matchmaker!$B$2:$B$999,"="&A90,Matchmaker!$J$2:$J$999,"<>") -> 0 | U90: =COUNTIFS(Support!$C$2:$C$973,"="&A90,Support!$C$2:$C$973,"<>") -> 0 | V90: 1 | Z90: NICHOLAS M A | AA90: Chief Executive Officer | AB90: agritabug@gmail.com | AD90: +256 773 751507 | AE90: sales@agritabcart.com
A91: AGRITEC-UG | B91: AGRITECHENTINC (FARMER UG) | C91: AGRITECHENTINC (Farmer Ug) initiative is a recently registered private company with the main objective of providing agro technological support, enterprise. Agritechentinc offer two modes of agricultural technologies and enterprise incubation (agribusiness incubation) that is actuarial and in the long run virtual incubation when it has fully established. . | D91: https://farmer-ug-agritechentic.business.site/ | E91: For-profit | F91: National | G91: Nutrition | H91: Food Security and Agriculture | I91: Livelihoods / (social) Entrepreneurship | L91: Nutrition, Food Security and Agriculture, Livelihoods / (social) Entrepreneurship, , | M91: Private Sector | N91: Social Enterprise | O91: =COUNTIFS(Conveners!$B$2:$B$1798,"="&A91,Conveners!$AA$2:$AA$1798,">0") -> 1 | P91: =COUNTIFS(Challenges!$H$2:$H$982,"="&A91,Challenges!$H$2:$H$982,"<>") -> 0 | Q91: =COUNTIFS(Innovations!$C$2:$F$1628,"="&A91, Innovations!$C$2:$F$1628,"<>") -> 1 | R91: =COUNTIFS(Referrals!A86:'Referrals'!H2067,"="&A91, Referrals!A86:'Referrals'!H2067,"<>") -> 0 | S91: =COUNTIFS(Matchmaker!$B$2:$B$999,"="&A91,Matchmaker!$H$2:$H$999,"<>") -> 0 | T91: =COUNTIFS(Matchmaker!$B$2:$B$999,"="&A91,Matchmaker!$J$2:$J$999,"<>") -> 0 | U91: =COUNTIFS(Support!$C$2:$C$973,"="&A91,Support!$C$2:$C$973,"<>") -> 0 | V91: 2 | Z91: Mbuza Francis | AA91: Managing Director | AB91: info@agritechetinc.com | AD91: +256 772410197 | AF91: Kisimbili, Wakiso
A92: AGRODUUKA-UG | B92: AGRODUUKA UGANDA LIMITED | C92: AgroDuuka is a robust agricultural produce supply chain management software, supported by the Global System for Mobile communication that directly connects smallholder rural farmers to buyers in the market at a low cost via SMS and the internet, before and after harvest. | D92: https://www.facebook.com/agroduuka/ | E92: For-profit | F92: National | G92: Food Security and Agriculture | H92: IT/Digital/ICT4D | L92: Food Security and Agriculture, IT/Digital/ICT4D, , , | M92: Private Sector | N92: Startup | O92: =COUNTIFS(Conveners!$B$2:$B$1798,"="&A92,Conveners!$AA$2:$AA$1798,">0") -> 0 | P92: =COUNTIFS(Challenges!$H$2:$H$982,"="&A92,Challenges!$H$2:$H$982,"<>") -> 0 | Q92: =COUNTIFS(Innovations!$C$2:$F$1628,"="&A92, Innovations!$C$2:$F$1628,"<>") -> 1 | R92: =COUNTIFS(Referrals!A87:'Referrals'!H2068,"="&A92, Referrals!A87:'Referrals'!H2068,"<>") -> 0 | S92: =COUNTIFS(Matchmaker!$B$2:$B$999,"="&A92,Matchmaker!$H$2:$H$999,"<>") -> 0 | T92: =COUNTIFS(Matchmaker!$B$2:$B$999,"="&A92,Matchmaker!$J$2:$J$999,"<>") -> 0 | U92: =COUNTIFS(Support!$C$2:$C$973,"="&A92,Support!$C$2:$C$973,"<>") -> 0 | V92: 1 | Z92: Bazil Mwotta | AA92: Founder | AB92: mwotteax@gmail.com | AC92: agroduuka@gmail.com | AD92: 0705 236369 | AE92: Rita Sheila Kobusingye, Accounting Officer, mwotteax@gmail.com | AL92: LINS
A93: AGROEF-UG | B93: AGROECOLOGY FUND | C93: The AgroEcology Fund (AEF) is a multi-donor fund supporting agroecological practices and policies. The Fund aims to support viable food systems, promote the economic well-being and human rights of small farmers and their communities, and mitigate climate change through low input agriculture featuring sustainable soil and water use. It links organizations and movements that advance agroecological solutions locally, regionally and globally. | D93: https://www.agroecologyfund.org/ | E93: Donor | F93: Global / Multi-country / Foreign | G93: Food Security and Agriculture | H93: Livelihoods / (social) Entrepreneurship | I93: Energy/Environment | J93: Human Rights/Legal | L93: Food Security and Agriculture, Livelihoods / (social) Entrepreneurship, Energy/Environment, Human Rights/Legal, | M93: Finance | N93: Fund | O93: =COUNTIFS(Conveners!$B$2:$B$1798,"="&A93,Conveners!$AA$2:$AA$1798,">0") -> 0 | P93: =COUNTIFS(Challenges!$H$2:$H$982,"="&A93,Challenges!$H$2:$H$982,"<>") -> 0 | Q93: =COUNTIFS(Innovations!$C$2:$F$1628,"="&A93, Innovations!$C$2:$F$1628,"<>") -> 0 | R93: =COUNTIFS(Referrals!A88:'Referrals'!H2069,"="&A93, Referrals!A88:'Referrals'!H2069,"<>") -> 0 | S93: =COUNTIFS(Matchmaker!$B$2:$B$999,"="&A93,Matchmaker!$H$2:$H$999,"<>") -> 0 | T93: =COUNTIFS(Matchmaker!$B$2:$B$999,"="&A93,Matchmaker!$J$2:$J$999,"<>") -> 0 | U93: =COUNTIFS(Support!$C$2:$C$973,"="&A93,Support!$C$2:$C$973,"<>") -> 0 | V93: 0 | Z93: Daniel Moss | AA93: Co-Director | AB93: daniel@agroecologyfund.org
A94: AGROMARKETDAY-UG | B94: AGRO MARKET DAY | C94: Agro Market Day app enables farmers to sell their agricultural produce and to get information about agricultural markets, market days, modern farming methods and tools in the different districts in Uganda. | D94: http://www.agromarketday.com/ | E94: Social enterprise | F94: National | G94: Food Security and Agriculture | H94: IT/Digital/ICT4D | I94: Nutrition | L94: Food Security and Agriculture, IT/Digital/ICT4D, Nutrition, , | M94: Private Sector | N94: Social Enterprise | O94: =COUNTIFS(Conveners!$B$2:$B$1798,"="&A94,Conveners!$AA$2:$AA$1798,">0") -> 0 | P94: =COUNTIFS(Challenges!$H$2:$H$982,"="&A94,Challenges!$H$2:$H$982,"<>") -> 0 | Q94: =COUNTIFS(Innovations!$C$2:$F$1628,"="&A94, Innovations!$C$2:$F$1628,"<>") -> 1 | R94: =COUNTIFS(Referrals!A89:'Referrals'!H2070,"="&A94, Referrals!A89:'Referrals'!H2070,"<>") -> 0 | S94: =COUNTIFS(Matchmaker!$B$2:$B$999,"="&A94,Matchmaker!$H$2:$H$999,"<>") -> 0 | T94: =COUNTIFS(Matchmaker!$B$2:$B$999,"="&A94,Matchmaker!$J$2:$J$999,"<>") -> 0 | U94: =COUNTIFS(Support!$C$2:$C$973,"="&A94,Support!$C$2:$C$973,"<>") -> 0 | V94: 1 | Z94: Lisa Katusiime | AB94: info@agro-preneur.org | AC94: info@agromarketday.com | AE94: Isaac Omiat | AL94: LINS
A95: AGROPRENEURINTIAATIVE-UG | B95: AGROPRENEUR INITIATIVE LIMITED | C95: Agropreneur Initiative is a social enterprise striving to empower untapped, local potential to affect lasting change in diverse communities of Africa. Agropreneur's mission is to improve smallholder farmers’ livelihoods through affordable finance. Our solution is designed to bridge the gap of in Medias fund access for rural based small holder farmers with limited access to formal credit. | D95: https://agro-preneur.org/ | E95: Social enterprise | F95: National | G95: Livelihoods / (social) Entrepreneurship | I95: Food Security and Agriculture | L95: Livelihoods / (social) Entrepreneurship, , Food Security and Agriculture, , | M95: Private Sector | N95: Social Enterprise | O95: =COUNTIFS(Conveners!$B$2:$B$1798,"="&A95,Conveners!$AA$2:$AA$1798,">0") -> 0 | P95: =COUNTIFS(Challenges!$H$2:$H$982,"="&A95,Challenges!$H$2:$H$982,"<>") -> 0 | Q95: =COUNTIFS(Innovations!$C$2:$F$1628,"="&A95, Innovations!$C$2:$F$1628,"<>") -> 1 | R95: =COUNTIFS(Referrals!#REF!:'Referrals'!H2071,"="&A95, Referrals!#REF!:'Referrals'!H2071,"<>") ->  | S95: =COUNTIFS(Matchmaker!$B$2:$B$999,"="&A95,Matchmaker!$H$2:$H$999,"<>") -> 0 | T95: =COUNTIFS(Matchmaker!$B$2:$B$999,"="&A95,Matchmaker!$J$2:$J$999,"<>") -> 0 | U95: =COUNTIFS(Support!$C$2:$C$973,"="&A95,Support!$C$2:$C$973,"<>") -> 0 | Z95: Brian Mangeni | AA95: Founder | AB95: info@agro-preneur.org | AD95: (256) 393-241 411 | AF95: Address: Suite 272 & 273, Tirupati Mazima Mall, Gaba Road, Nsambya | AL95: LINS
A96: AGROSUPPLY-UG | B96: AGRO SUPPLY UGANDA LIMITED | C96: Agro supply limited developed a digital platform that connects farmers with financial management system for agricultural inputs, thereby increasing the farmers’ income. The mobile platform assists farmers to access innovative financing mechanisms for the purchase of essential agricultural inputs which improve their yields, while shielding them from debt since they used to seek loans from lenders such as microfinance institutions and village savings and loan associations (vela's). The platform offers a layaway mechanism that allows farmers to save in the way they are comfortable with, without charging any fee as many corporate savings products do. | D96: www.agrosupplyltd.com | E96: For-profit | F96: Global / Multi-country / Foreign | G96: Food Security and Agriculture | H96: Livelihoods / (social) Entrepreneurship | I96: Livelihoods / (social) Entrepreneurship | L96: Food Security and Agriculture, Livelihoods / (social) Entrepreneurship, Livelihoods / (social) Entrepreneurship, , | M96: Finance | N96: Micro Finance | O96: =COUNTIFS(Conveners!$B$2:$B$1798,"="&A96,Conveners!$AA$2:$AA$1798,">0") -> 0 | P96: =COUNTIFS(Challenges!$H$2:$H$982,"="&A96,Challenges!$H$2:$H$982,"<>") -> 0 | Q96: =COUNTIFS(Innovations!$C$2:$F$1628,"="&A96, Innovations!$C$2:$F$1628,"<>") -> 1 | R96: =COUNTIFS(Referrals!A90:'Referrals'!H2072,"="&A96, Referrals!A90:'Referrals'!H2072,"<>") -> 0 | S96: =COUNTIFS(Matchmaker!$B$2:$B$999,"="&A96,Matchmaker!$H$2:$H$999,"<>") -> 0 | T96: =COUNTIFS(Matchmaker!$B$2:$B$999,"="&A96,Matchmaker!$J$2:$J$999,"<>") -> 0 | U96: =COUNTIFS(Support!$C$2:$C$973,"="&A96,Support!$C$2:$C$973,"<>") -> 0 | V96: 1 | Z96: Ogwal Joseph | AA96: Managing Director | AB96: info@agrosupplyltd.com | AE96: Developer and provider of an agricultural mobile layaway system and extension services intended to transform the agricultural value chain in Uganda. The company's solution combines a saving, inputs supply and training mechanism wherein farmers buy scratch cards as a micro saving scheme and agricultural inputs such as fertilizer and seeds paid from the savings are delivered them, along with training services, enabling farmers to reduce costs and boost agricultural yield. | AF96: PO Box 768 Lira Uganda | AK96: Ogwal Joseph Co-Founder, Chief Executive Officer & Executive Director Brandon Chase Co-Founder & Chief Financial Officer | AL96: LINS
A97: AGROTA-UG | B97: AGRO TOURISM ASSOCIATION | C97: Agro-Tourism Association is an agribusiness and agribusiness development organisation that has been at the forefront of promoting agribusiness entities as tourism attraction centers to increment on the incomes of farmers. The association offers a wide range of services, such as value chain analysis and development, agricultural marketing, agronomic principles and practices, agribusiness research, agribusiness development services such as financial inclusion, business plan development, value addition and processing, farmer institutional development (FID), and higher level farmer organization (HLFO). | D97: https://agro-tourism.wixsite.com/ | E97: NGO | F97: National | G97: Food Security and Agriculture | H97: Youth | I97: Gender | J97: Energy/Environment | L97: Food Security and Agriculture, Youth, Gender, Energy/Environment, | M97: Implementer | N97: LNGO | O97: =COUNTIFS(Conveners!$B$2:$B$1798,"="&A97,Conveners!$AA$2:$AA$1798,">0") -> 0 | P97: =COUNTIFS(Challenges!$H$2:$H$982,"="&A97,Challenges!$H$2:$H$982,"<>") -> 0 | Q97: =COUNTIFS(Innovations!$C$2:$F$1628,"="&A97, Innovations!$C$2:$F$1628,"<>") -> 0 | R97: =COUNTIFS(Referrals!#REF!:'Referrals'!H2073,"="&A97, Referrals!#REF!:'Referrals'!H2073,"<>") ->  | S97: =COUNTIFS(Matchmaker!$B$2:$B$999,"="&A97,Matchmaker!$H$2:$H$999,"<>") -> 0 | T97: =COUNTIFS(Matchmaker!$B$2:$B$999,"="&A97,Matchmaker!$J$2:$J$999,"<>") -> 0 | U97: =COUNTIFS(Support!$C$2:$C$973,"="&A97,Support!$C$2:$C$973,"<>") -> 0 | Z97: Ruhakana Joseph Taremwa | AA97: Chief Executive Officer | AB97: info@agro-tourism.org | AD97: +256 774 084091 | AE97: Plot 328, Kisaasi Road, Sayuni Complex
A98: AGROVCM-UG | B98: AGRO VALUE CHAIN MANAGER MOBILE APP (AGRO VCM) | C98: Agro Value Chain Manager (AGRO VCM) is a mobile application that enables smooth interaction between agricultural value chain players i.e. Farmers, agro-input suppliers, collection centers and agricultural produce consumers through facilitating marketing and trade. | D98: https://agro-vcm.app/ | E98: For-profit | F98: National | G98: Food Security and Agriculture | H98: IT/Digital/ICT4D | I98: Social Behavioral Change Communication/Community Mobilization | L98: Food Security and Agriculture, IT/Digital/ICT4D, Social Behavioral Change Communication/Community Mobilization, , | M98: Private Sector | N98: Social Enterprise | O98: =COUNTIFS(Conveners!$B$2:$B$1798,"="&A98,Conveners!$AA$2:$AA$1798,">0") -> 0 | P98: =COUNTIFS(Challenges!$H$2:$H$982,"="&A98,Challenges!$H$2:$H$982,"<>") -> 0 | Q98: =COUNTIFS(Innovations!$C$2:$F$1628,"="&A98, Innovations!$C$2:$F$1628,"<>") -> 1 | R98: =COUNTIFS(Referrals!B91:'Referrals'!H2074,"="&A98, Referrals!B91:'Referrals'!H2074,"<>") -> 0 | S98: =COUNTIFS(Matchmaker!$B$2:$B$999,"="&A98,Matchmaker!$H$2:$H$999,"<>") -> 0 | T98: =COUNTIFS(Matchmaker!$B$2:$B$999,"="&A98,Matchmaker!$J$2:$J$999,"<>") -> 0 | U98: =COUNTIFS(Support!$C$2:$C$973,"="&A98,Support!$C$2:$C$973,"<>") -> 0 | V98: =SUM(O98:U98) -> 1 | AB98: info@agro-vcm.com | AD98: 256 (0) 703-839528 | AE98: Alt: +256 (0) 779-325568 | AF98: Plot 2479, Kampala | Uganda | AK98: Agro Value Chain Manager (Agro-VCM) is a mobile application that enables smooth interaction between agricultural value chain players i.e. Farmers, Agro-Input Suppliers, Financial Service Providers, Extension Service Providers, Produce Collection Centers, and Agricultural Produce Consumers through facilitating marketing and trade. | AL98: LINS
A99: AHF-UG | B99: AHF-UGANDA CARES | C99: Uganda Cares is a collaboration between the Uganda Ministry of Health and AIDS Healthcare Foundation (AHF) based in Los Angeles, USA that is engaged in HIV service provision and advocacy. AHF-Uganda Cares promotes condom use as a way for people to protect themselves and their partners against HIV and conducts regular HIV testing events. | D99: https://www.aidshealth.org/global/uganda/ | E99: Public sector | F99: Global / Multi-country / Foreign | G99: Health | H99: Youth | L99: Health, Youth, , , | M99: Implementer | N99: LNGO | O99: =COUNTIFS(Conveners!$B$2:$B$1798,"="&A99,Conveners!$AA$2:$AA$1798,">0") -> 0 | P99: =COUNTIFS(Challenges!$H$2:$H$982,"="&A99,Challenges!$H$2:$H$982,"<>") -> 0 | Q99: =COUNTIFS(Innovations!$C$2:$F$1628,"="&A99, Innovations!$C$2:$F$1628,"<>") -> 0 | R99: =COUNTIFS(Referrals!B92:'Referrals'!H2075,"="&A99, Referrals!B92:'Referrals'!H2075,"<>") -> 0 | S99: =COUNTIFS(Matchmaker!$B$2:$B$999,"="&A99,Matchmaker!$H$2:$H$999,"<>") -> 0 | T99: =COUNTIFS(Matchmaker!$B$2:$B$999,"="&A99,Matchmaker!$J$2:$J$999,"<>") -> 0 | U99: =COUNTIFS(Support!$C$2:$C$973,"="&A99,Support!$C$2:$C$973,"<>") -> 0 | V99: 0 | Z99: Henry Magala | AA99: Country Program Director | AB99: Info.Uganda@aidshealth.org | AD99: +256 200506100 | AE99: henry.magala@aidshealth.org | AF99: PLOT 54B KIRA ROAD, P.O. BOX 22914, KAMPALA | AG99: KAMPALA | AI99: 32.59696 | AJ99: 0.315722 | AK99: TO PROVIDE MEDICAL CARE TO HIV/AIDS PATIENTS
A100: AIARD-UG | B100: ASSOCIATION FOR INTERNATIONAL AGRICULTURE AND RURAL DEVELOPMENT | C100: The Association for International Agriculture and Rural Development (AIARD) is an association of professionals and practitioners in international development with experience and intellectual and institutional capabilities to articulate and address broad-based as well as more focused development issues in agriculture and rural development. | D100: http://aiard.org/ | E100: NGO | F100: Global / Multi-country / Foreign | G100: Food Security and Agriculture | H100: Livelihoods / (social) Entrepreneurship | I100: Energy/Environment | L100: Food Security and Agriculture, Livelihoods / (social) Entrepreneurship, Energy/Environment, , | M100: Implementer | N100: INGO | O100: =COUNTIFS(Conveners!$B$2:$B$1798,"="&A100,Conveners!$AA$2:$AA$1798,">0") -> 0 | P100: =COUNTIFS(Challenges!$H$2:$H$982,"="&A100,Challenges!$H$2:$H$982,"<>") -> 0 | Q100: =COUNTIFS(Innovations!$C$2:$F$1628,"="&A100, Innovations!$C$2:$F$1628,"<>") -> 0 | R100: =COUNTIFS(Referrals!#REF!:'Referrals'!H2076,"="&A100, Referrals!#REF!:'Referrals'!H2076,"<>") ->  | S100: =COUNTIFS(Matchmaker!$B$2:$B$999,"="&A100,Matchmaker!$H$2:$H$999,"<>") -> 0 | T100: =COUNTIFS(Matchmaker!$B$2:$B$999,"="&A100,Matchmaker!$J$2:$J$999,"<>") -> 0 | U100: =COUNTIFS(Support!$C$2:$C$973,"="&A100,Support!$C$2:$C$973,"<>") -> 0 | Z100: Dr. Ariel Rivers | AA100: President | AB100: acrump@ucdavis.edu | AF100: Washington, District of Columbia (DC)
A101: AIDFI-UG | B101: ALTERNATIVE INDIGENOUS DEVELOPMENT FOUNDATION, INC. (AIDFI) | C101: Alternative indigenous development foundation, Inc. (AIDFI) is a social enterprise that tackles the problem of rural poverty by designing, fabricating, and promoting environment-friendly technology which is accessible and income augmenting, for the poor in building technology as serving the poor is a major challenge in the world today. Technology's benefits must be brought to people, whatever their status, wherever they are, and in ways they can own and sustain. | D101: https://www.aidfi.org/ | E101: NGO | F101: Global / Multi-country / Foreign | G101: Multi-sectoral | I101: Water Sanitation and Hygiene (WASH) | L101: Multi-sectoral, , Water Sanitation and Hygiene (WASH), , | M101: Private Sector | N101: Social Enterprise | O101: =COUNTIFS(Conveners!$B$2:$B$1798,"="&A101,Conveners!$AA$2:$AA$1798,">0") -> 0 | P101: =COUNTIFS(Challenges!$H$2:$H$982,"="&A101,Challenges!$H$2:$H$982,"<>") -> 0 | Q101: =COUNTIFS(Innovations!$C$2:$F$1628,"="&A101, Innovations!$C$2:$F$1628,"<>") -> 0 | R101: =COUNTIFS(Referrals!B93:'Referrals'!H2077,"="&A101, Referrals!B93:'Referrals'!H2077,"<>") -> 0 | S101: =COUNTIFS(Matchmaker!$B$2:$B$999,"="&A101,Matchmaker!$H$2:$H$999,"<>") -> 0 | T101: =COUNTIFS(Matchmaker!$B$2:$B$999,"="&A101,Matchmaker!$J$2:$J$999,"<>") -> 0 | U101: =COUNTIFS(Support!$C$2:$C$973,"="&A101,Support!$C$2:$C$973,"<>") -> 0 | V101: 0 | AB101: contactus@aidfi.org | AD101: (+63) 034 4463629 | AN101: yes
A102: AIF-UG | B102: AFRICA IMPROVED FOODS | C102: Africa Improved Foods (AIF) is a public-private partnership involving DSM, Government of Rwanda, IFC, CDC Group and FMO. AIF provides a scalable and sustainable solution to malnutrition via local production of highly nutritious foods. AIF is a manufacturer and supplier of high- quality and nutrient-rich complementary foods to combat malnutrition for children and pregnant and breastfeeding women in Rwanda and the East African region. | D102: https://africaimprovedfoods.com/ | E102: Social enterprise | F102: Global / Multi-country / Foreign | G102: Nutrition | H102: Livelihoods / (social) Entrepreneurship | I102: Gender | J102: Food Security and Agriculture | L102: Nutrition, Livelihoods / (social) Entrepreneurship, Gender, Food Security and Agriculture, | M102: Implementer | N102: Consortium | O102: =COUNTIFS(Conveners!$B$2:$B$1798,"="&A102,Conveners!$AA$2:$AA$1798,">0") -> 0 | P102: =COUNTIFS(Challenges!$H$2:$H$982,"="&A102,Challenges!$H$2:$H$982,"<>") -> 0 | Q102: =COUNTIFS(Innovations!$C$2:$F$1628,"="&A102, Innovations!$C$2:$F$1628,"<>") -> 1 | R102: =COUNTIFS(Referrals!B94:'Referrals'!H2078,"="&A102, Referrals!B94:'Referrals'!H2078,"<>") -> 0 | S102: =COUNTIFS(Matchmaker!$B$2:$B$999,"="&A102,Matchmaker!$H$2:$H$999,"<>") -> 0 | T102: =COUNTIFS(Matchmaker!$B$2:$B$999,"="&A102,Matchmaker!$J$2:$J$999,"<>") -> 0 | U102: =COUNTIFS(Support!$C$2:$C$973,"="&A102,Support!$C$2:$C$973,"<>") -> 0 | V102: 1 | Z102: Edouard Spicher | AA102: Chief Executive officer | AB102: info@africaimprovedfoods.com | AD102: +250 788 389516 | AF102: Kigali, Rwanda
A103: AIH-UG | B103: ANZISHA IMPACT HUB (AIH) | C103: Anzisha Impact Hub (AIH) is committed to empowering demeaned youths living in disadvantaged communities through, Entrepreneurship, self-discovery, retooling, Digital inclusion, sustainable agriculture and environmental protection for increased access to quality education, decent work and economic growth. AIH allows refugees and marginalizes youth to make a sustainable living out of what they are passionate about by nurturing job creators and change makers with the ability to turn challenges into solutions. | D103: https://m.facebook.com/Anzisha-Impact-HUB-102571215035984/ | E103: NGO | F103: National | G103: Youth | H103: Social Behavioral Change Communication/Community Mobilization | I103: Economic Development | L103: Youth, Social Behavioral Change Communication/Community Mobilization, Economic Development, , | M103: Knowledge | N103: Training | O103: =COUNTIFS(Conveners!$B$2:$B$1798,"="&A103,Conveners!$AA$2:$AA$1798,">0") -> 0 | P103: =COUNTIFS(Challenges!$H$2:$H$982,"="&A103,Challenges!$H$2:$H$982,"<>") -> 0 | Q103: =COUNTIFS(Innovations!$C$2:$F$1628,"="&A103, Innovations!$C$2:$F$1628,"<>") -> 0 | R103: =COUNTIFS(Referrals!B95:'Referrals'!H2079,"="&A103, Referrals!B95:'Referrals'!H2079,"<>") -> 0 | S103: =COUNTIFS(Matchmaker!$B$2:$B$999,"="&A103,Matchmaker!$H$2:$H$999,"<>") -> 0 | T103: =COUNTIFS(Matchmaker!$B$2:$B$999,"="&A103,Matchmaker!$J$2:$J$999,"<>") -> 0 | U103: =COUNTIFS(Support!$C$2:$C$973,"="&A103,Support!$C$2:$C$973,"<>") -> 0 | V103: 0 | W103: Refugee-Led Organisation | Z103: Zigabe Julien | AA103: CEO | AB103: julienzigabe10@gmail.com | AD103: 0795 156087 | AE103: anzishaimpact12@gmail.com | AF103: Nakivale refugee settlement camp | AI103: Isingiro,district/ Nakivale refugee settlement camp | AK103: ANZISHA IMPACT HUB allows refugees and marginalizes youth to make a sustainable living out of what they are passionate about by nurturing job creators and change makers with the ability to turn challenges into solutions. Through self-organization, freedom and responsibility, the youth transforms their own personal tragedies into social enterprises and tackles the most pressing issues in the community.
A104: AIMS-UG | B104: ACADEMIC INFORMATION MANAGEMENT SYSTEMS (AIMS) | C104: AIMS is an integrated educational management system that automates all the business processes by managing admission, billing and payments, programs and curriculum, payments, human resource and aspects of the education. This system is integrated as it allows for data to be shared with applications that helps it run their processors based on the information needed to perform the functions uniform to all data forms. | D104: http://niisp.ict.go.ug/2018/04/academic-information-management-system/ | E104: For-profit | F104: National | G104: Education | H104: IT/Digital/ICT4D | I104: Cash Transfer Programming/Social Protection/Financial Inclusion | L104: Education, IT/Digital/ICT4D, Cash Transfer Programming/Social Protection/Financial Inclusion, , | M104: Private Sector | N104: Startup | O104: =COUNTIFS(Conveners!$B$2:$B$1798,"="&A104,Conveners!$AA$2:$AA$1798,">0") -> 1 | P104: =COUNTIFS(Challenges!$H$2:$H$982,"="&A104,Challenges!$H$2:$H$982,"<>") -> 0 | Q104: =COUNTIFS(Innovations!$C$2:$F$1628,"="&A104, Innovations!$C$2:$F$1628,"<>") -> 1 | R104: =COUNTIFS(Referrals!B96:'Referrals'!H2080,"="&A104, Referrals!B96:'Referrals'!H2080,"<>") -> 0 | S104: =COUNTIFS(Matchmaker!$B$2:$B$999,"="&A104,Matchmaker!$H$2:$H$999,"<>") -> 0 | T104: =COUNTIFS(Matchmaker!$B$2:$B$999,"="&A104,Matchmaker!$J$2:$J$999,"<>") -> 0 | U104: =COUNTIFS(Support!$C$2:$C$973,"="&A104,Support!$C$2:$C$973,"<>") -> 0 | V104: 2 | Z104: Gareth Hughes | AA104: Team Member | AB104: support@tech101.com.np
A105: AIRD-UG | B105: AFRICA INITIATIVES FOR RELIEF AND DEVELOPMENT | C105: AIRD was founded in 2006 and is a non-political, non-religious and non-profit making international NGO and is currently working in nine sub-Saharan African countries. AIRD's objective is to offer operational support, including but not limited to: supply chain, Early Warning Systems, construction, infrastructure, environment, Livelihoods and WASH in partnership with relief and development organizations that focus on disaster-affected and development oriented areas. | D105: https://airdinternational.org/ | E105: NGO | F105: National | G105: Disaster Risk Reduction/Emergency Logistics/Early Warning Systems | H105: Water Sanitation and Hygiene (WASH) | I105: Energy/Environment | L105: Disaster Risk Reduction/Emergency Logistics/Early Warning Systems, Water Sanitation and Hygiene (WASH), Energy/Environment, , | M105: Implementer | N105: LNGO | O105: =COUNTIFS(Conveners!$B$2:$B$1798,"="&A105,Conveners!$AA$2:$AA$1798,">0") -> 0 | P105: =COUNTIFS(Challenges!$H$2:$H$982,"="&A105,Challenges!$H$2:$H$982,"<>") -> 0 | Q105: =COUNTIFS(Innovations!$C$2:$F$1628,"="&A105, Innovations!$C$2:$F$1628,"<>") -> 0 | R105: =COUNTIFS(Referrals!B97:'Referrals'!H2081,"="&A105, Referrals!B97:'Referrals'!H2081,"<>") -> 0 | S105: =COUNTIFS(Matchmaker!$B$2:$B$999,"="&A105,Matchmaker!$H$2:$H$999,"<>") -> 0 | T105: =COUNTIFS(Matchmaker!$B$2:$B$999,"="&A105,Matchmaker!$J$2:$J$999,"<>") -> 0 | U105: =COUNTIFS(Support!$C$2:$C$973,"="&A105,Support!$C$2:$C$973,"<>") -> 0 | V105: 0 | AB105: info@airdinternational.org
A106: AIRQO-UG | B106: AIRQO | C106: AirQo is an Air Quality Initiative on a mission to contribute to the improvement of urban ambient air quality by providing scientific evidence and low-cost technologies to quantify and inform policy to reduce, contain and better manage air pollution and its associated health risks. The AirQo Initiative has designed and developed portable air quality monitors named AirQo. AirQo devices are designed to withstand the unique challenges and realities of an urban area in a developing country setting The AirQo devices can be mounted on either static locations (e.g., street lights or buildings) or mobile objects (e.g., vehicles and motorcycle taxis – locally known as boda-bodas). | D106: https://www.airqo.net/ | E106: NGO | F106: National | G106: Energy/Environment | H106: Monitoring Evaluation Accountability and Learning (MEAL) | I106: Protection | L106: Energy/Environment, Monitoring Evaluation Accountability and Learning (MEAL), Protection, , | M106: Implementer | N106: Project | O106: =COUNTIFS(Conveners!$B$2:$B$1798,"="&A106,Conveners!$AA$2:$AA$1798,">0") -> 0 | P106: =COUNTIFS(Challenges!$H$2:$H$982,"="&A106,Challenges!$H$2:$H$982,"<>") -> 0 | Q106: =COUNTIFS(Innovations!$C$2:$F$1628,"="&A106, Innovations!$C$2:$F$1628,"<>") -> 1 | R106: =COUNTIFS(Referrals!B98:'Referrals'!H2082,"="&A106, Referrals!B98:'Referrals'!H2082,"<>") -> 0 | S106: =COUNTIFS(Matchmaker!$B$2:$B$999,"="&A106,Matchmaker!$H$2:$H$999,"<>") -> 0 | T106: =COUNTIFS(Matchmaker!$B$2:$B$999,"="&A106,Matchmaker!$J$2:$J$999,"<>") -> 0 | U106: =COUNTIFS(Support!$C$2:$C$973,"="&A106,Support!$C$2:$C$973,"<>") -> 0 | V106: 1 | Z106: Prof. Engineer Martin Baale | AA106: Founder | AB106: info@airqo.net | AD106: 256 786 142 396
A107: AIRSAVE-UG | B107: AIRSAVE Uganda | C107: Airsave is a financial technology company that provides a secure digital financial technological solution to serve the unbanked, sacco groups and banks using a mobile phone as a solution in communities across Uganda in partnership with Telecoms. The service can be accessed by the Unbanked using any type of a mobile phone without using internet anywhere in Uganda by just dialing *270*30# either on Airtel network or MTN network and access Airsave platform. | D107: https://airsaveuganda.com/ | E107: For-profit | F107: National | G107: Cash Transfer Programming/Social Protection/Financial Inclusion | H107: Disability/Inclusivity | I107: Economic Development | L107: Cash Transfer Programming/Social Protection/Financial Inclusion, Disability/Inclusivity, Economic Development, , | M107: Private Sector | N107: Startup | U107: =COUNTIFS(Support!$C$2:$C$973,"="&A107,Support!$C$2:$C$973,"<>") -> 0 | Z107: Henry Damulira | AA107: Chief Executive Officer | AB107: info@airsaveuganda.com | AD107: 256705270511
A108: AIRTEL-UG | B108: AIRTEL UGANDA | C108: Airtel Uganda is a telecommunications company that was launched in 2010 and has been growing since then. In adjutant airtel has 9 distributors shops in the areas near the settlements which can easily be accessed by the refugees. We could not put shops in the settlements since the conditions for one is that there must be a permanent structure in that place and the settlements don't have that. We also have agents that move in the settlements with the sim cards and do registrations for those who may need new sim cards. | D108: www.airteluganda.co.ug | E108: For-profit | F108: Global / Multi-country / Foreign | G108: Multi-sectoral | I108: Media/Communication | L108: Multi-sectoral, , Media/Communication, , | M108: Private Sector | N108: Corporation | O108: =COUNTIFS(Conveners!$B$2:$B$1798,"="&A108,Conveners!$AA$2:$AA$1798,">0") -> 0 | P108: =COUNTIFS(Challenges!$H$2:$H$982,"="&A108,Challenges!$H$2:$H$982,"<>") -> 0 | Q108: =COUNTIFS(Innovations!$C$2:$F$1628,"="&A108, Innovations!$C$2:$F$1628,"<>") -> 0 | R108: =COUNTIFS(Referrals!B99:'Referrals'!H2083,"="&A108, Referrals!B99:'Referrals'!H2083,"<>") -> 0 | S108: =COUNTIFS(Matchmaker!$B$2:$B$999,"="&A108,Matchmaker!$H$2:$H$999,"<>") -> 0 | T108: =COUNTIFS(Matchmaker!$B$2:$B$999,"="&A108,Matchmaker!$J$2:$J$999,"<>") -> 0 | U108: =COUNTIFS(Support!$C$2:$C$973,"="&A108,Support!$C$2:$C$973,"<>") -> 0 | V108: =SUM(O108:U108) -> 0 | Z108: Sandra Kyomukuru | AA108: Managing Director-Adjumani | AB108: itudiria@gmail.com | AD108: 772947095 | AF108: Kampala | AG108: Adjumani | AH108: Adjumani | AI108: Adjumani | AJ108: Adjumani | AK108: ULEARN STAKEHOLDERS MAPPING EXERCISE (Fri 3/26/2021) The major challenges faced is the issue of security, we cannot allow our agents to have alot of money in the field so most times incase someone needs a high amount of money they will have to come up to adjumani | AL108: ULEARN
A109: AIR-UG | B109: MAKERERE ARTIFICIAL INTELLIGENCE (AI) LAB | C109: Makerere Artificial Intelligence (AI) lab is run by an Artificial Intelligence (AI) and data science research group, the make AI lab specializes in application of machine learning, computer vision and predictive analytics (among ai and data science sectors) to challenges in low and middle income countries. The lab has published papers on automated diagnosis of both crop and human diseases, analysis of traffic patterns in busy African cities as well as using telecommand remote sensing data to predict spread of disease outbreaks. | D109: http://air.ug/ | E109: Academic | F109: National | G109: Education | H109: IT/Digital/ICT4D | I109: Monitoring Evaluation Accountability and Learning (MEAL) | L109: Education, IT/Digital/ICT4D, Monitoring Evaluation Accountability and Learning (MEAL), , | M109: Innovation Support | N109: Incubation Lab | O109: =COUNTIFS(Conveners!$B$2:$B$1798,"="&A109,Conveners!$AA$2:$AA$1798,">0") -> 0 | P109: =COUNTIFS(Challenges!$H$2:$H$982,"="&A109,Challenges!$H$2:$H$982,"<>") -> 0 | Q109: =COUNTIFS(Innovations!$C$2:$F$1628,"="&A109, Innovations!$C$2:$F$1628,"<>") -> 0 | R109: =COUNTIFS(Referrals!B100:'Referrals'!H2084,"="&A109, Referrals!B100:'Referrals'!H2084,"<>") -> 0 | S109: =COUNTIFS(Matchmaker!$B$2:$B$999,"="&A109,Matchmaker!$H$2:$H$999,"<>") -> 0 | T109: =COUNTIFS(Matchmaker!$B$2:$B$999,"="&A109,Matchmaker!$J$2:$J$999,"<>") -> 0 | U109: =COUNTIFS(Support!$C$2:$C$973,"="&A109,Support!$C$2:$C$973,"<>") -> 0 | V109: 0 | Z109: ; Mr. Daniel Mutembesa | AA109: Researcher) | AB109: joyce.nabende@mak.ac.ug | AC109: mutembesa.daniel@gmail.com | AD109: 775441448 | AE109: joyce.nabende@mak.ac.ug
A110: AKABOXI-UG | B110: AKABOXI | C110: Akaboxi is a digital financial inclusion system that enables small holder farmers in a community manage, and monitor their savings together. It provides communities with the most secure way of keeping smallholders farmers savings that are kept in boxes to be managed and monitored by use of digitalized financial inclusion system – a new technology that replaces the rudimentary way of keeping money in boxes and in people’s homes to a more secure, reliable and easy to monitor savings and transactions. | D110: https://akaboxi.com/ | E110: Social enterprise | F110: National | G110: Cash Transfer Programming/Social Protection/Financial Inclusion | H110: Economic Development | I110: Livelihoods / (social) Entrepreneurship | J110: Economic Development | L110: Cash Transfer Programming/Social Protection/Financial Inclusion, Economic Development, Livelihoods / (social) Entrepreneurship, Economic Development, | M110: Private Sector | N110: Startup | O110: =COUNTIFS(Conveners!$B$2:$B$1798,"="&A110,Conveners!$AA$2:$AA$1798,">0") -> 1 | P110: =COUNTIFS(Challenges!$H$2:$H$982,"="&A110,Challenges!$H$2:$H$982,"<>") -> 0 | Q110: =COUNTIFS(Innovations!$C$2:$F$1628,"="&A110, Innovations!$C$2:$F$1628,"<>") -> 1 | R110: =COUNTIFS(Referrals!B101:'Referrals'!H2085,"="&A110, Referrals!B101:'Referrals'!H2085,"<>") -> 0 | S110: =COUNTIFS(Matchmaker!$B$2:$B$999,"="&A110,Matchmaker!$H$2:$H$999,"<>") -> 0 | T110: =COUNTIFS(Matchmaker!$B$2:$B$999,"="&A110,Matchmaker!$J$2:$J$999,"<>") -> 0 | U110: =COUNTIFS(Support!$C$2:$C$973,"="&A110,Support!$C$2:$C$973,"<>") -> 1 | V110: 3 | Z110: Businge Joshua Muleesi | AA110: Co-founder & CEO | AB110: info@akaboxii.com | AD110: 701293959 | AE110: www.akaboxi.com | AN110: yes
A111: AKATALE-UG | B111: AKATALE FRESH | C111: Akatale Fresh known more commonly as “Akatale” (translated “the market”) is an app (and website) enabled grocery delivery service that eases purchasing of fresh groceries and food items (e.g. Spices and cereals). The team, led by frank metaremark, were among the second cohort of the National ICT initiatives Support Program innovators assigned to the RAN Lab for incubation, nisin being a program funded by Uganda’s Ministry of ICT and National Guidance. | D111: https://www.akatalefresh.com | E111: For-profit | F111: National | G111: Food Security and Agriculture | H111: Nutrition | J111: Livelihoods / (social) Entrepreneurship | L111: Food Security and Agriculture, Nutrition, , Livelihoods / (social) Entrepreneurship, | M111: Private Sector | N111: Social Enterprise | O111: =COUNTIFS(Conveners!$B$2:$B$1798,"="&A111,Conveners!$AA$2:$AA$1798,">0") -> 0 | P111: =COUNTIFS(Challenges!$H$2:$H$982,"="&A111,Challenges!$H$2:$H$982,"<>") -> 0 | Q111: =COUNTIFS(Innovations!$C$2:$F$1628,"="&A111, Innovations!$C$2:$F$1628,"<>") -> 1 | R111: =COUNTIFS(Referrals!B102:'Referrals'!H2086,"="&A111, Referrals!B102:'Referrals'!H2086,"<>") -> 0 | S111: =COUNTIFS(Matchmaker!$B$2:$B$999,"="&A111,Matchmaker!$H$2:$H$999,"<>") -> 0 | T111: =COUNTIFS(Matchmaker!$B$2:$B$999,"="&A111,Matchmaker!$J$2:$J$999,"<>") -> 0 | U111: =COUNTIFS(Support!$C$2:$C$973,"="&A111,Support!$C$2:$C$973,"<>") -> 0 | V111: 1 | Z111: Frank Mutaremwa | AA111: Team Leader | AB111: care@akatalefresh.com | AC111: customercare@akatalefresh.com | AD111: +256-703-894-958 | AL111: LINS
A112: AKELLOBANKER-UG | B112: AKELLO BANKER | C112: AkelloBanker by quest digital finance limited uses data and mobile tech to enable millions of low-income earners (like farmers and traders) to access really important and sometimes life-saving products & services all on credit. Our data driven and mobile technology allow farmers to access, order for, hire and share farm extension workers, inputs, tools & equipment from verified providers on credit. | D112: http://www.akellobanker.com/ | E112: For-profit | F112: National | G112: Cash Transfer Programming/Social Protection/Financial Inclusion | H112: Economic Development | I112: Livelihoods / (social) Entrepreneurship | J112: Economic Development | L112: Cash Transfer Programming/Social Protection/Financial Inclusion, Economic Development, Livelihoods / (social) Entrepreneurship, Economic Development, | M112: Private Sector | N112: Startup | O112: =COUNTIFS(Conveners!$B$2:$B$1798,"="&A112,Conveners!$AA$2:$AA$1798,">0") -> 0 | P112: =COUNTIFS(Challenges!$H$2:$H$982,"="&A112,Challenges!$H$2:$H$982,"<>") -> 0 | Q112: =COUNTIFS(Innovations!$C$2:$F$1628,"="&A112, Innovations!$C$2:$F$1628,"<>") -> 1 | R112: =COUNTIFS(Referrals!B103:'Referrals'!H2087,"="&A112, Referrals!B103:'Referrals'!H2087,"<>") -> 0 | S112: =COUNTIFS(Matchmaker!$B$2:$B$999,"="&A112,Matchmaker!$H$2:$H$999,"<>") -> 0 | T112: =COUNTIFS(Matchmaker!$B$2:$B$999,"="&A112,Matchmaker!$J$2:$J$999,"<>") -> 0 | U112: =COUNTIFS(Support!$C$2:$C$973,"="&A112,Support!$C$2:$C$973,"<>") -> 0 | V112: 1 | Z112: Jean Anthony Onyait | AA112: CEO/Founder | AB112: info@akellobanker.com | AC112: ask@akellobanker.com | AD112: 256 754 114 004 | AE112: https://twitter.com/akellobanker https://www.facebook.com/MyphoneMybanker | AF112: Plot 1674, Valley Curve, Kiwatule Road Ntinda.
A113: AKF-UG | B113: AGA KHAN FOUNDATION | C113: The Aga Khan Foundation (AKF), in partnership with Dubai cares and the government of Uganda, have delivered a four-year projector transform student learning and teacher professional development through it. Since 2015, AKF has worked with the district governments of Arua, Koboko, and Yumbe as well as Arua and Lodonga core primary teacher training colleges to test and demonstrate the transformative potential of ICT to improve the learning outcomes of boys and girls. | D113: www.akdn.org|www.akdn.org | E113: Donor | F113: Global / Multi-country / Foreign | G113: Education | H113: Monitoring Evaluation Accountability and Learning (MEAL) | I113: IT/Digital/ICT4D | L113: Education, Monitoring Evaluation Accountability and Learning (MEAL), IT/Digital/ICT4D, , | M113: Finance | N113: Donor | O113: =COUNTIFS(Conveners!$B$2:$B$1798,"="&A113,Conveners!$AA$2:$AA$1798,">0") -> 0 | P113: =COUNTIFS(Challenges!$H$2:$H$982,"="&A113,Challenges!$H$2:$H$982,"<>") -> 0 | Q113: =COUNTIFS(Innovations!$C$2:$F$1628,"="&A113, Innovations!$C$2:$F$1628,"<>") -> 0 | R113: =COUNTIFS(Referrals!B104:'Referrals'!H2088,"="&A113, Referrals!B104:'Referrals'!H2088,"<>") -> 0 | S113: =COUNTIFS(Matchmaker!$B$2:$B$999,"="&A113,Matchmaker!$H$2:$H$999,"<>") -> 0 | T113: =COUNTIFS(Matchmaker!$B$2:$B$999,"="&A113,Matchmaker!$J$2:$J$999,"<>") -> 0 | U113: =COUNTIFS(Support!$C$2:$C$973,"="&A113,Support!$C$2:$C$973,"<>") -> 1 | V113: 1 | Z113: His Highness the Aga Khan | AA113: Founder and chairman | AB113: akf.ugamda@akdn.org | AC113: akf.Uganda@akdn.org | AD113: (414) 255884 / 256165 | AF113: Plot 14 Prince Charles Drive, Kololo P.O.Box 5522. Kampala Uganda
A114: AKILI-UG | B114: AKILI FOUNDATION | C114: Akili foundation is a research and evaluation driven organisation est​abilished to provide research services in health, youth empowerment, education, livelihoods and agriculture with a vision to provide a better understanding of health, socio-economic and demography of communities through applied quality research to facilitate evidence based analysis and dissemination of knowledge. | D114: www.akilifoundation.org | E114: For-profit | F114: National | G114: Monitoring Evaluation Accountability and Learning (MEAL) | H114: Multi-sectoral | L114: Monitoring Evaluation Accountability and Learning (MEAL), Multi-sectoral, , , | M114: Implementer | N114: INGO | O114: =COUNTIFS(Conveners!$B$2:$B$1798,"="&A114,Conveners!$AA$2:$AA$1798,">0") -> 1 | P114: =COUNTIFS(Challenges!$H$2:$H$982,"="&A114,Challenges!$H$2:$H$982,"<>") -> 0 | Q114: =COUNTIFS(Innovations!$C$2:$F$1628,"="&A114, Innovations!$C$2:$F$1628,"<>") -> 0 | R114: =COUNTIFS(Referrals!B105:'Referrals'!H2089,"="&A114, Referrals!B105:'Referrals'!H2089,"<>") -> 0 | S114: =COUNTIFS(Matchmaker!$B$2:$B$999,"="&A114,Matchmaker!$H$2:$H$999,"<>") -> 0 | T114: =COUNTIFS(Matchmaker!$B$2:$B$999,"="&A114,Matchmaker!$J$2:$J$999,"<>") -> 0 | U114: =COUNTIFS(Support!$C$2:$C$973,"="&A114,Support!$C$2:$C$973,"<>") -> 0 | V114: 1 | Z114: Annete Nabuduwa | AA114: Executive Director | AB114: info@akilifoundation.org | AD114: +256 414 662848 | AE114: akilifoundation.ug@gmail.com | AF114: Kanyanya Road, Next to GreenFields Gardens, Kanyanya, | AG114: KAMPALA | AI114: 32.59696 | AJ114: 0.315722 | AK114: TO PROVIDE RESEARCH ON HEALTH AND CLINICAL TRIALS
A115: AKORION-UG | B115: AKORION COMPANY LIMITED | C115: Akorion is an agritech company digitizing agricultural value chains to enable smallholder farmers to access high-quality production and marketing services GTECH company digitizes agricultural value chains to enable all commercial farmers and agribusinesses to access high-quality production and marketing services through the flagship platform czaric to bridge the gap of service delivery, ezyagric is supplemented by the E-Vam (electronic village agent model) a service delivery model in which community-based service providers equipped with smartphones who readily deliver services on demand by the farmers. | D115: http://www.akorion.com/ | E115: For-profit | F115: National | G115: Cash Transfer Programming/Social Protection/Financial Inclusion | H115: Economic Development | I115: Livelihoods / (social) Entrepreneurship | J115: Economic Development | L115: Cash Transfer Programming/Social Protection/Financial Inclusion, Economic Development, Livelihoods / (social) Entrepreneurship, Economic Development, | M115: Private Sector | N115: Startup | O115: =COUNTIFS(Conveners!$B$2:$B$1798,"="&A115,Conveners!$AA$2:$AA$1798,">0") -> 0 | P115: =COUNTIFS(Challenges!$H$2:$H$982,"="&A115,Challenges!$H$2:$H$982,"<>") -> 0 | Q115: =COUNTIFS(Innovations!$C$2:$F$1628,"="&A115, Innovations!$C$2:$F$1628,"<>") -> 1 | R115: =COUNTIFS(Referrals!B106:'Referrals'!H2090,"="&A115, Referrals!B106:'Referrals'!H2090,"<>") -> 0 | S115: =COUNTIFS(Matchmaker!$B$2:$B$999,"="&A115,Matchmaker!$H$2:$H$999,"<>") -> 0 | T115: =COUNTIFS(Matchmaker!$B$2:$B$999,"="&A115,Matchmaker!$J$2:$J$999,"<>") -> 0 | U115: =COUNTIFS(Support!$C$2:$C$973,"="&A115,Support!$C$2:$C$973,"<>") -> 0 | V115: 1 | Z115: George William Luyinda | AA115: Founder, CEO | AB115: info@akorion.com | AD115: 039 2000374 | AE115: info@akorion.com
A116: ALEH-UG | B116: ALLIANCE TO END HUNGER | C116: The Alliance to End Hunger develops innovative partnerships among our members; political commitment among our leaders; and global connections among groups working to end hunger worldwide. The Alliance fosters strategic partnerships to overcome hunger in our country and around the world; builds political commitment from our leaders to do what it takes to end hunger; and creates global connections with the UN International Alliance Against Hunger. | D116: https://alliancetoendhunger.org/ | E116: NGO | F116: Global / Multi-country / Foreign | G116: Food Security and Agriculture | H116: Nutrition | I116: Monitoring Evaluation Accountability and Learning (MEAL) | J116: Media/Communication | K116: Multi-sectoral | L116: Food Security and Agriculture, Nutrition, Monitoring Evaluation Accountability and Learning (MEAL), Media/Communication, Multi-sectoral | M116: Implementer | N116: Coordination | O116: =COUNTIFS(Conveners!$B$2:$B$1798,"="&A116,Conveners!$AA$2:$AA$1798,">0") -> 0 | P116: =COUNTIFS(Challenges!$H$2:$H$982,"="&A116,Challenges!$H$2:$H$982,"<>") -> 0 | Q116: =COUNTIFS(Innovations!$C$2:$F$1628,"="&A116, Innovations!$C$2:$F$1628,"<>") -> 0 | R116: =COUNTIFS(Referrals!B107:'Referrals'!H2091,"="&A116, Referrals!B107:'Referrals'!H2091,"<>") -> 0 | S116: =COUNTIFS(Matchmaker!$B$2:$B$999,"="&A116,Matchmaker!$H$2:$H$999,"<>") -> 0 | T116: =COUNTIFS(Matchmaker!$B$2:$B$999,"="&A116,Matchmaker!$J$2:$J$999,"<>") -> 0 | U116: =COUNTIFS(Support!$C$2:$C$973,"="&A116,Support!$C$2:$C$973,"<>") -> 0 | V116: 0 | Z116: Eric Mitchell | AA116: Executive Director | AB116: info@alliancetoendhunger.org | AD116: 202-688-1075 | AF116: Washington, DC 20024
A117: ALGRN-UG | B117: ALPHA GREEN | C117: Alpha green Group is a global acquisition and incubation platform with a health & wellness focus. Alpha green provides a curated portal for leading quality CBD wellness brands. Working closely with established and trustworthy products from around the world, we deliver best results for anxiety, pain, stress, sleep, beauty and overall well-being. | D117: https://alphagreen.io/ | E117: For-profit | F117: Global / Multi-country / Foreign | G117: Nutrition | H117: Health | I117: IT/Digital/ICT4D | L117: Nutrition, Health, IT/Digital/ICT4D, , | M117: Innovation Support | N117: Incubation Lab | O117: =COUNTIFS(Conveners!$B$2:$B$1798,"="&A117,Conveners!$AA$2:$AA$1798,">0") -> 0 | P117: =COUNTIFS(Challenges!$H$2:$H$982,"="&A117,Challenges!$H$2:$H$982,"<>") -> 0 | Q117: =COUNTIFS(Innovations!$C$2:$F$1628,"="&A117, Innovations!$C$2:$F$1628,"<>") -> 0 | R117: =COUNTIFS(Referrals!B108:'Referrals'!H2092,"="&A117, Referrals!B108:'Referrals'!H2092,"<>") -> 0 | S117: =COUNTIFS(Matchmaker!$B$2:$B$999,"="&A117,Matchmaker!$H$2:$H$999,"<>") -> 0 | T117: =COUNTIFS(Matchmaker!$B$2:$B$999,"="&A117,Matchmaker!$J$2:$J$999,"<>") -> 0 | U117: =COUNTIFS(Support!$C$2:$C$973,"="&A117,Support!$C$2:$C$973,"<>") -> 0 | V117: 0 | Z117: Alexej Pikovsky | AA117: Chief Executive Officer | AB117: media@alphagreen.io | AC117: Media/Communication@alphagreen.io | AF117: Covent Garden, London
A118: ALITE-UG | B118: A-LITE UGANDA LIMITED | C118: In Uganda and in many LMICS, more than 80% of the patients admitted into hospital wards need intravenous cannulation to deliver fluids and medications or for withdrawing blood. At a-lite Uganda; we innovate affordable medical technology, offer training and consultancy on the use of technology in health care. We have developed a brand device, the vein locator, made to reduce the time of medication delivery to babies below the age of 5 years in low and middle-income countries. | D118: https://www.aliteuganda.com/ | E118: For-profit | F118: National | G118: Health | H118: Engineering/Infrastructure | I118: IT/Digital/ICT4D | L118: Health, Engineering/Infrastructure, IT/Digital/ICT4D, , | M118: Private Sector | N118: Social Enterprise | O118: =COUNTIFS(Conveners!$B$2:$B$1798,"="&A118,Conveners!$AA$2:$AA$1798,">0") -> 0 | P118: =COUNTIFS(Challenges!$H$2:$H$982,"="&A118,Challenges!$H$2:$H$982,"<>") -> 0 | Q118: =COUNTIFS(Innovations!$C$2:$F$1628,"="&A118, Innovations!$C$2:$F$1628,"<>") -> 1 | R118: =COUNTIFS(Referrals!B109:'Referrals'!H2093,"="&A118, Referrals!B109:'Referrals'!H2093,"<>") -> 0 | S118: =COUNTIFS(Matchmaker!$B$2:$B$999,"="&A118,Matchmaker!$H$2:$H$999,"<>") -> 0 | T118: =COUNTIFS(Matchmaker!$B$2:$B$999,"="&A118,Matchmaker!$J$2:$J$999,"<>") -> 0 | U118: =COUNTIFS(Support!$C$2:$C$973,"="&A118,Support!$C$2:$C$973,"<>") -> 0 | V118: 1 | Z118: Paul Gusimba | AA118: Founder | AB118: info@aliteuganda.com | AC118: emmekah79@gmail.com | AD118: 0779 802617 | AE118: Emmanuel Kamuhire, Data Engineer, +256 779802617 | AF118: Mbarara | AI118: Plot 8 - 18 Mbarara-Kabale Road Get Directions | AJ118: . (323.56 mi) Mbarara 1410 | AK118: In the case of Pediatric patients, older adults, obese patients, patients with low blood pressure and/or dark skinned patients, this procedure is often very difficult and requires complex skill for clinicians to locate a vein beneath the patient’s skin. Failed attempts may result into further complications and In order to ensure safe administration of intravenous fluids and drugs, electronic devices are necessary. | AN118: yes
A119: ALLEOPARAKLETOS-UG | B119: ALLOS PARAKLETOS INITIATIVE | C119: Allos parakletos initiative aims to bring complete wholeness to the hearts and minds of children and has a mission dedicated to the spiritual, emotional and physical needs of children by encouraging healthy relationships while providing a safe harbor for healing and restoration. | D119: https://opencorporates.com/companies/ug/80020000222983 | E119: NGO | F119: Subnational and settlement-level | G119: Livelihoods / (social) Entrepreneurship | H119: Shelter and NFIs | I119: Protection | L119: Livelihoods / (social) Entrepreneurship, Shelter and NFIs, Protection, , | M119: Implementer | N119: Project | O119: =COUNTIFS(Conveners!$B$2:$B$1798,"="&A119,Conveners!$AA$2:$AA$1798,">0") -> 0 | P119: =COUNTIFS(Challenges!$H$2:$H$982,"="&A119,Challenges!$H$2:$H$982,"<>") -> 0 | Q119: =COUNTIFS(Innovations!$C$2:$F$1628,"="&A119, Innovations!$C$2:$F$1628,"<>") -> 0 | R119: =COUNTIFS(Referrals!B111:'Referrals'!H2095,"="&A119, Referrals!B111:'Referrals'!H2095,"<>") -> 0 | S119: =COUNTIFS(Matchmaker!$B$2:$B$999,"="&A119,Matchmaker!$H$2:$H$999,"<>") -> 0 | T119: =COUNTIFS(Matchmaker!$B$2:$B$999,"="&A119,Matchmaker!$J$2:$J$999,"<>") -> 0 | U119: =COUNTIFS(Support!$C$2:$C$973,"="&A119,Support!$C$2:$C$973,"<>") -> 0 | V119: 0 | Z119: ACHOLA SHARON | AA119: Chair Person | AB119: info@apiug.org
A120: ALLIANCEFORUM-UG | B120: ALLIANCE FORUM FOR DEVELOPMENT | C120: It is an organisation that was begun by a group of young professionals who came together to address and champion the voices of the voiceless and the needs of the vulnerable people. Currently AFOD is running different projects in food relief and sexual reproductive health. | D120: www.afodi.org | E120: NGO | F120: National | G120: Health | H120: Livelihoods / (social) Entrepreneurship | I120: Social Behavioral Change Communication/Community Mobilization | L120: Health, Livelihoods / (social) Entrepreneurship, Social Behavioral Change Communication/Community Mobilization, , | M120: Implementer | N120: LNGO | O120: =COUNTIFS(Conveners!$B$2:$B$1798,"="&A120,Conveners!$AA$2:$AA$1798,">0") -> 0 | P120: =COUNTIFS(Challenges!$H$2:$H$982,"="&A120,Challenges!$H$2:$H$982,"<>") -> 0 | Q120: =COUNTIFS(Innovations!$C$2:$F$1628,"="&A120, Innovations!$C$2:$F$1628,"<>") -> 0 | R120: =COUNTIFS(Referrals!B112:'Referrals'!H2096,"="&A120, Referrals!B112:'Referrals'!H2096,"<>") -> 0 | S120: =COUNTIFS(Matchmaker!$B$2:$B$999,"="&A120,Matchmaker!$H$2:$H$999,"<>") -> 0 | T120: =COUNTIFS(Matchmaker!$B$2:$B$999,"="&A120,Matchmaker!$J$2:$J$999,"<>") -> 0 | U120: =COUNTIFS(Support!$C$2:$C$973,"="&A120,Support!$C$2:$C$973,"<>") -> 0 | V120: 0 | Z120: Olga Itudiria | AA120: Area programs manager | AB120: alphaelimu@gmail.com | AD120: 787322865 | AE120: info_u@afodi.org | AF120: Rwamwanja | AI120: Adjumani | AJ120: Adjumani Obongi Koboko Yumbe | AK120: We are soon beginning a project funded by IDI where we shall provide support to HIV clients so that they can access better services | AL120: ULEARN
A121: AMANI-UG | B121: AMANI INITIATIVE | C121: Amani Initiative is a Ugandan Non-Governmental organization founded in 2011 to prevent and respond to teenage pregnancy and child marriage through low-cost high impact community led interventions with a focus on education, child protection, sexual and reproductive health, and social & economic empowerment. | D121: https://www.amaniinitiative.org/ | E121: NGO | F121: National | G121: Social Behavioral Change Communication/Community Mobilization | H121: Gender | I121: Disability/Inclusivity | L121: Social Behavioral Change Communication/Community Mobilization, Gender, Disability/Inclusivity, , | M121: Implementer | N121: LNGO | O121: =COUNTIFS(Conveners!$B$2:$B$1798,"="&A121,Conveners!$AA$2:$AA$1798,">0") -> 1 | P121: =COUNTIFS(Challenges!$H$2:$H$982,"="&A121,Challenges!$H$2:$H$982,"<>") -> 0 | Q121: =COUNTIFS(Innovations!$C$2:$F$1628,"="&A121, Innovations!$C$2:$F$1628,"<>") -> 0 | R121: =COUNTIFS(Referrals!B114:'Referrals'!H2098,"="&A121, Referrals!B114:'Referrals'!H2098,"<>") -> 0 | S121: =COUNTIFS(Matchmaker!$B$2:$B$999,"="&A121,Matchmaker!$H$2:$H$999,"<>") -> 0 | T121: =COUNTIFS(Matchmaker!$B$2:$B$999,"="&A121,Matchmaker!$J$2:$J$999,"<>") -> 0 | U121: =COUNTIFS(Support!$C$2:$C$973,"="&A121,Support!$C$2:$C$973,"<>") -> 0 | V121: 1 | AB121: info@amaniinitiative.org | AC121: info@amaniinitiative.org | AD121: 256785411517 | AE121: 256703154084 | AF121: P.O.Box- 11406, Kampala, Uganda
A122: AMARA-UG | B122: AMARA HUB | C122: Amara Hub is a non-profit, youth-led community based organisation linking underserved communities to skills, capital and markets. Amara Hub is on a mission to create dignified livelihood opportunities for youth, especially young women and girls. We are working alongside educators, community leaders, non-governmental organizations, and local government authorities, to lead and contribute to the development and delivery of solutions to our most pressing skills and socio-economic challenges. | D122: https://www.amarahub.org/ | E122: NGO | F122: Subnational and settlement-level | G122: Gender | H122: Youth | I122: Livelihoods / (social) Entrepreneurship | L122: Gender, Youth, Livelihoods / (social) Entrepreneurship, , | M122: Implementer | N122: LNGO | O122: =COUNTIFS(Conveners!$B$2:$B$1798,"="&A122,Conveners!$AA$2:$AA$1798,">0") -> 0 | P122: =COUNTIFS(Challenges!$H$2:$H$982,"="&A122,Challenges!$H$2:$H$982,"<>") -> 0 | Q122: =COUNTIFS(Innovations!$C$2:$F$1628,"="&A122, Innovations!$C$2:$F$1628,"<>") -> 0 | R122: =COUNTIFS(Referrals!B115:'Referrals'!H2099,"="&A122, Referrals!B115:'Referrals'!H2099,"<>") -> 0 | S122: =COUNTIFS(Matchmaker!$B$2:$B$999,"="&A122,Matchmaker!$H$2:$H$999,"<>") -> 0 | T122: =COUNTIFS(Matchmaker!$B$2:$B$999,"="&A122,Matchmaker!$J$2:$J$999,"<>") -> 0 | U122: =COUNTIFS(Support!$C$2:$C$973,"="&A122,Support!$C$2:$C$973,"<>") -> 1 | V122: 1 | X122: 2021-08-30 | Z122: Bridget Kezaabu | AA122: Executive director | AB122: team@amarahub.org | AD122: +256 414 671886 | AF122: Plot 62, Lira - Gulu Road, Kole District | AL122: WOMEN LED ORG | AM122: Active
A123: AMATHEONAGRI-UG | B123: AMATHEON AGRI HOLDING | C123: Amatheon Agri is a European Agribusiness and food company, headquartered in Berlin and operating in sub-Saharan Africa. Focusing on farming, trading and food processing, Amatheon integrates its activities along the agricultural value chain. As a triple-bottom-line company, Amatheon acts as an anchor investor in rural areas to uplift neighboring communities economically, socially and environmentally. Its combination of international expertise with local Africa know-how, and a long-term vision with a sustainable approach, makes it set to become a leading player in the African Agri sector. | D123: http://www.amatheon-agri.com/ | E123: For-profit | F123: Global / Multi-country / Foreign | G123: Nutrition | H123: Food Security and Agriculture | J123: Economic Development | L123: Nutrition, Food Security and Agriculture, , Economic Development, | M123: Private Sector | N123: Corporation | O123: =COUNTIFS(Conveners!$B$2:$B$1798,"="&A123,Conveners!$AA$2:$AA$1798,">0") -> 0 | P123: =COUNTIFS(Challenges!$H$2:$H$982,"="&A123,Challenges!$H$2:$H$982,"<>") -> 0 | Q123: =COUNTIFS(Innovations!$C$2:$F$1628,"="&A123, Innovations!$C$2:$F$1628,"<>") -> 0 | R123: =COUNTIFS(Referrals!B116:'Referrals'!H2100,"="&A123, Referrals!B116:'Referrals'!H2100,"<>") -> 0 | S123: =COUNTIFS(Matchmaker!$B$2:$B$999,"="&A123,Matchmaker!$H$2:$H$999,"<>") -> 0 | T123: =COUNTIFS(Matchmaker!$B$2:$B$999,"="&A123,Matchmaker!$J$2:$J$999,"<>") -> 0 | U123: =COUNTIFS(Support!$C$2:$C$973,"="&A123,Support!$C$2:$C$973,"<>") -> 0 | V123: 0 | Z123: Prosper Maposa | AA123: Country manager | AB123: info@amatheon-agri.com | AD123: T +49 (0) 30 5300 090 00 | AF123: Amatheon Agri Holding N.V. Friedrichstraße 95 | AI123: 10117 Berlin Germany | AK123: http://www.amatheon-agri.com/what-we-do/farming/farming-in-Uganda
A124: AMFIU-UG | B124: ASSOCIATION OF MICROFINANCE INSTITUTIONS OFUGANDA | C124: Association of Microfinance Institutions of Uganda (AMFIU) is an umbrella organization of microfinance institutions in Uganda. The mission of AMFIU is to “promote a professional, inclusive and responsive microfinance industry that contributes to transformation of livelihoods of Ugandans”. | D124: http://www.amfiu.org.ug/ | E124: Public sector | F124: National | G124: Disability/Inclusivity | H124: Social Behavioral Change Communication/Community Mobilization | L124: Disability/Inclusivity, Social Behavioral Change Communication/Community Mobilization, , , | M124: Implementer | N124: Association | O124: =COUNTIFS(Conveners!$B$2:$B$1798,"="&A124,Conveners!$AA$2:$AA$1798,">0") -> 1 | P124: =COUNTIFS(Challenges!$H$2:$H$982,"="&A124,Challenges!$H$2:$H$982,"<>") -> 0 | Q124: =COUNTIFS(Innovations!$C$2:$F$1628,"="&A124, Innovations!$C$2:$F$1628,"<>") -> 0 | R124: =COUNTIFS(Referrals!B117:'Referrals'!H2101,"="&A124, Referrals!B117:'Referrals'!H2101,"<>") -> 0 | S124: =COUNTIFS(Matchmaker!$B$2:$B$999,"="&A124,Matchmaker!$H$2:$H$999,"<>") -> 0 | T124: =COUNTIFS(Matchmaker!$B$2:$B$999,"="&A124,Matchmaker!$J$2:$J$999,"<>") -> 0 | U124: =COUNTIFS(Support!$C$2:$C$973,"="&A124,Support!$C$2:$C$973,"<>") -> 0 | V124: 1 | Z124: Baguma David | AA124: Executive Director | AB124: amfiu@amfiu.org.ug | AD124: 041 4259176 | AF124: Plot 679, Wamala Road | AI124: Najjanankumbi, 256 Kampala, Uganda
A125: AMKENHUB-UG | B125: AMKENHUB'S ENTREPRENEURSHIP | C125: Amkenhub Entrepreneurship is a private organization founded in 2015 by the refugees, committed to inform the vulnerability of youth (both host community and refugee) are living generally characterized by the poverty, degradation of environment conditions and high rate of school dropout , poor business, youth unemployment and gender balance issues. | D125: https://www.f6s.com/amkenihubsentrepreneurshiprwamwanja | E125: For-profit | F125: Subnational and settlement-level | G125: Youth | H125: Shelter and NFIs | I125: Energy/Environment | L125: Youth, Shelter and NFIs, Energy/Environment, , | M125: Private Sector | N125: Corporation | O125: =COUNTIFS(Conveners!$B$2:$B$1798,"="&A125,Conveners!$AA$2:$AA$1798,">0") -> 0 | P125: =COUNTIFS(Challenges!$H$2:$H$982,"="&A125,Challenges!$H$2:$H$982,"<>") -> 0 | Q125: =COUNTIFS(Innovations!$C$2:$F$1628,"="&A125, Innovations!$C$2:$F$1628,"<>") -> 0 | R125: =COUNTIFS(Referrals!B118:'Referrals'!H2102,"="&A125, Referrals!B118:'Referrals'!H2102,"<>") -> 0 | S125: =COUNTIFS(Matchmaker!$B$2:$B$999,"="&A125,Matchmaker!$H$2:$H$999,"<>") -> 0 | T125: =COUNTIFS(Matchmaker!$B$2:$B$999,"="&A125,Matchmaker!$J$2:$J$999,"<>") -> 0 | U125: =COUNTIFS(Support!$C$2:$C$973,"="&A125,Support!$C$2:$C$973,"<>") -> 0 | V125: 0 | W125: Refugee-Led Organisation | Z125: BWEMA MATATA | AA125: Founder | AF125: https://www.facebook.com/YALS2019/posts/bwema-matata-is-our-country-liaison-for-dr-congo-he-works-with-amkenhubs-entrepr/414221265878196/ | AK125: n organization in Rwamwnaja. He is a Youth ambassador,
A126: AMPERE-UG | B126: ACCESS TO MODERN ENERGY IN HUMANITARIAN SETTING PROJECT | C126: (Access to modern energy in a humanitarian setting) AMPERE project is a consortium led by Mercy Corps in partnership with the Response InnovationLlab, Save the Children and Netherlands Development Organization (SNV) to test, prove and build evidence for quality, affordable, and reliable market-driven energy access solutions for humanitarian response programming in Uganda. | D126: https://www.responseinnovationlab.com/Uganda-access-to-clean-energy-in-refugee-settlements | E126: Donor | F126: Global / Multi-country / Foreign | G126: Energy/Environment | H126: Livelihoods / (social) Entrepreneurship | I126: Monitoring Evaluation Accountability and Learning (MEAL) | L126: Energy/Environment, Livelihoods / (social) Entrepreneurship, Monitoring Evaluation Accountability and Learning (MEAL), , | M126: Implementer | N126: Project | O126: =COUNTIFS(Conveners!$B$2:$B$1798,"="&A126,Conveners!$AA$2:$AA$1798,">0") -> 0 | P126: =COUNTIFS(Challenges!$H$2:$H$982,"="&A126,Challenges!$H$2:$H$982,"<>") -> 0 | Q126: =COUNTIFS(Innovations!$C$2:$F$1628,"="&A126, Innovations!$C$2:$F$1628,"<>") -> 0 | R126: =COUNTIFS(Referrals!B119:'Referrals'!H2103,"="&A126, Referrals!B119:'Referrals'!H2103,"<>") -> 0 | S126: =COUNTIFS(Matchmaker!$B$2:$B$999,"="&A126,Matchmaker!$H$2:$H$999,"<>") -> 0 | T126: =COUNTIFS(Matchmaker!$B$2:$B$999,"="&A126,Matchmaker!$J$2:$J$999,"<>") -> 0 | U126: =COUNTIFS(Support!$C$2:$C$973,"="&A126,Support!$C$2:$C$973,"<>") -> 0 | V126: 0 | X126: 2020-03-02 | Z126: Emmanuel Aziebor | AA126: Country Director | AB126: eaziebor@mercycorps.org | AL126: GREEN INNOVATION
A127: AMREF-UG | B127: AMREF HEALTH AFRICA IN UGANDA | C127: Amref Health Africa (AMREF) was officially founded in 1957 to deliver mobile health services and to provide mission hospitals with surgical support. A medical radio network was developed to coordinate the service, and provide communication. In recent years, Amref Health Africa has highlighted the fact that despite huge investments by donors in health products and delivery of health services, a large percentage of Africans still have limited access to sufficient and quality health care. | D127: http://amref.org/about-us/where-we-are/Uganda/ | E127: Donor | F127: Global / Multi-country / Foreign | G127: Health | H127: Media/Communication | I127: Cash Transfer Programming/Social Protection/Financial Inclusion | L127: Health, Media/Communication, Cash Transfer Programming/Social Protection/Financial Inclusion, , | M127: Implementer | N127: INGO | O127: =COUNTIFS(Conveners!$B$2:$B$1798,"="&A127,Conveners!$AA$2:$AA$1798,">0") -> 0 | P127: =COUNTIFS(Challenges!$H$2:$H$982,"="&A127,Challenges!$H$2:$H$982,"<>") -> 0 | Q127: =COUNTIFS(Innovations!$C$2:$F$1628,"="&A127, Innovations!$C$2:$F$1628,"<>") -> 0 | R127: =COUNTIFS(Referrals!B120:'Referrals'!H2104,"="&A127, Referrals!B120:'Referrals'!H2104,"<>") -> 0 | S127: =COUNTIFS(Matchmaker!$B$2:$B$999,"="&A127,Matchmaker!$H$2:$H$999,"<>") -> 0 | T127: =COUNTIFS(Matchmaker!$B$2:$B$999,"="&A127,Matchmaker!$J$2:$J$999,"<>") -> 0 | U127: =COUNTIFS(Support!$C$2:$C$973,"="&A127,Support!$C$2:$C$973,"<>") -> 0 | V127: 0 | Z127: Dr Susan Wandera | AA127: Deputy Country Director | AB127: info.uganda@amref.org | AC127: susan.wandera@amref.org | AE127: info.uganda@amref.org
A128: AMREF-UG | B128: AMREF HEALTH AFRICA IN UGANDA(FORMERLY AFRICAN MEDICAL AND RESEARCH FOUNDATION) | C128: Amref Health Africa is a non-governmental organisation partnering with the Uganda Ministry of Health, Ministry of Water, Ministry of Education and Sports and corporate and non-profit organizations to improve access to health services across the country. | D128: https://amref.org | E128: NGO | F128: National | G128: Social Behavioral Change Communication/Community Mobilization | L128: Social Behavioral Change Communication/Community Mobilization, , , , | M128: Implementer | N128: LNGO | O128: =COUNTIFS(Conveners!$B$2:$B$1798,"="&A128,Conveners!$AA$2:$AA$1798,">0") -> 0 | P128: =COUNTIFS(Challenges!$H$2:$H$982,"="&A128,Challenges!$H$2:$H$982,"<>") -> 0 | Q128: =COUNTIFS(Innovations!$C$2:$F$1628,"="&A128, Innovations!$C$2:$F$1628,"<>") -> 0 | R128: =COUNTIFS(Referrals!B121:'Referrals'!H2105,"="&A128, Referrals!B121:'Referrals'!H2105,"<>") -> 0 | S128: =COUNTIFS(Matchmaker!$B$2:$B$999,"="&A128,Matchmaker!$H$2:$H$999,"<>") -> 0 | T128: =COUNTIFS(Matchmaker!$B$2:$B$999,"="&A128,Matchmaker!$J$2:$J$999,"<>") -> 0 | U128: =COUNTIFS(Support!$C$2:$C$973,"="&A128,Support!$C$2:$C$973,"<>") -> 0 | V128: 0 | Z128: Dr. Patrick Kagurusi | AA128: Country Manager | AB128: amrefsa@iafrica.com | AD128: +256 414 346822 | AF128: Plot 01 Okurut road Kololo, Kamwokya | AG128: KAMPALA | AI128: 32.59696 | AJ128: 0.315722 | AK128: TO PROMOTE HEALTH SERVICES DELIVERY
A129: AMS-UG | B129: AWESOME MINDS SPEAKS | C129: Awesome Mind Speaks is a youth-led non-profit Organisation focused on mental health (MH) and emotional well-being for young people in Uganda. The Organisation fundamentally focuses on integrating mental health and sexual reproductive health and rights, HIV/AIDS awareness and prevention for young people through devising effective communication strategies and campaigns to create awareness and alleviate mental and sexual reproductive health risks among young people. | D129: https://awesomemindspeaks.org/about/ | E129: NGO | F129: National | G129: Youth | H129: Cash Transfer Programming/Social Protection/Financial Inclusion | L129: Youth, Cash Transfer Programming/Social Protection/Financial Inclusion, , , | M129: Private Sector | N129: Social Enterprise | O129: =COUNTIFS(Conveners!$B$2:$B$1798,"="&A129,Conveners!$AA$2:$AA$1798,">0") -> 1 | P129: =COUNTIFS(Challenges!$H$2:$H$982,"="&A129,Challenges!$H$2:$H$982,"<>") -> 0 | Q129: =COUNTIFS(Innovations!$C$2:$F$1628,"="&A129, Innovations!$C$2:$F$1628,"<>") -> 1 | R129: =COUNTIFS(Referrals!B122:'Referrals'!H2106,"="&A129, Referrals!B122:'Referrals'!H2106,"<>") -> 0 | S129: =COUNTIFS(Matchmaker!$B$2:$B$999,"="&A129,Matchmaker!$H$2:$H$999,"<>") -> 0 | T129: =COUNTIFS(Matchmaker!$B$2:$B$999,"="&A129,Matchmaker!$J$2:$J$999,"<>") -> 0 | U129: =COUNTIFS(Support!$C$2:$C$973,"="&A129,Support!$C$2:$C$973,"<>") -> 1 | V129: 3 | Y129: 2022-03-28 | Z129: Don Zane Muwanguzi | AA129: Founder | AB129: info@awesomemindspeaks.org | AC129: zane@awesomemindspeaks.org | AD129: 256759288254 | AE129: +256 (0) 759288254 info@awesomemindspeaks.org
A130: AMS-UG | B130: USDA NATIONAL ORGANIC PROGRAM | C130: The Agricultural Marketing Service (AMS) administers programs that create domestic and international marketing opportunities for U.S. producers of food, fiber, and specialty crops. AMS also provides the agriculture industry with valuable services to ensure the quality and availability of wholesome food for consumers across the country and around the world. | D130: http://www.ams.usda.gov/nop | E130: For-profit | F130: Global / Multi-country / Foreign | G130: Nutrition | H130: Food Security and Agriculture | I130: Monitoring Evaluation Accountability and Learning (MEAL) | L130: =G130&", "&H130&", "&I130&", "&J130&", "&K130 -> Nutrition, Food Security and Agriculture, Monitoring Evaluation Accountability and Learning (MEAL), , | M130: Private Sector | N130: Corporation | O130: =COUNTIFS(Conveners!$B$2:$B$1798,"="&A130,Conveners!$AA$2:$AA$1798,">0") -> 1 | P130: =COUNTIFS(Challenges!$H$2:$H$982,"="&A130,Challenges!$H$2:$H$982,"<>") -> 0 | Q130: =COUNTIFS(Innovations!$C$2:$F$1628,"="&A130, Innovations!$C$2:$F$1628,"<>") -> 1 | R130: =COUNTIFS(Referrals!B123:'Referrals'!H2107,"="&A130, Referrals!B123:'Referrals'!H2107,"<>") -> 0 | S130: =COUNTIFS(Matchmaker!$B$2:$B$999,"="&A130,Matchmaker!$H$2:$H$999,"<>") -> 0 | T130: =COUNTIFS(Matchmaker!$B$2:$B$999,"="&A130,Matchmaker!$J$2:$J$999,"<>") -> 0 | U130: =COUNTIFS(Support!$C$2:$C$973,"="&A130,Support!$C$2:$C$973,"<>") -> 1 | V130: 3 | Z130: Serita Daniel | AA130: Director | AB130: PA@usda.gov | AC130: wauganda@wateraid.org | AE130: serita.daniel@usda.gov
A131: ANCHOR-UG | B131: AFRICA NON-PROFIT CHORE | C131: ANCHOR is a nonprofit, Non Governmental Organization registered in Uganda whose goal is to reduce the suffering of the world’s most vulnerable groups and provide the tools and resources needed to increase their self-sufficiency. | D131: https://www.anchor-africa.org/ | E131: NGO | F131: National | G131: Cash Transfer Programming/Social Protection/Financial Inclusion | H131: Social Behavioral Change Communication/Community Mobilization | I131: Livelihoods / (social) Entrepreneurship | L131: Cash Transfer Programming/Social Protection/Financial Inclusion, Social Behavioral Change Communication/Community Mobilization, Livelihoods / (social) Entrepreneurship, , | M131: Implementer | N131: INGO | O131: =COUNTIFS(Conveners!$B$2:$B$1798,"="&A131,Conveners!$AA$2:$AA$1798,">0") -> 0 | P131: =COUNTIFS(Challenges!$H$2:$H$982,"="&A131,Challenges!$H$2:$H$982,"<>") -> 0 | Q131: =COUNTIFS(Innovations!$C$2:$F$1628,"="&A131, Innovations!$C$2:$F$1628,"<>") -> 0 | R131: =COUNTIFS(Referrals!B124:'Referrals'!H2108,"="&A131, Referrals!B124:'Referrals'!H2108,"<>") -> 0 | S131: =COUNTIFS(Matchmaker!$B$2:$B$999,"="&A131,Matchmaker!$H$2:$H$999,"<>") -> 0 | T131: =COUNTIFS(Matchmaker!$B$2:$B$999,"="&A131,Matchmaker!$J$2:$J$999,"<>") -> 0 | U131: =COUNTIFS(Support!$C$2:$C$973,"="&A131,Support!$C$2:$C$973,"<>") -> 1 | V131: 1 | Z131: Patrick Munduga | AA131: Executive Director | AB131: info@anchor-africa.org | AD131: (+256) 75 2300720 | AE131: (+256) 39 4006993 | AF131: Plot 190 Kigobe Road Ntinda | AI131: P.O. BOX 37041 Kampala Uganda | AL131: GREEN INNOVATION AND DIF
A132: ANCYWAX-UG | B132: ANCYWAX | C132: ANCYWAX is a concept development company that provides creative solutions in Media, marketing, consultancy. Clients and partners work with Ancywax towards catering a need for them under the sectors we work under. | D132: www.ancywax.com | E132: For-profit | F132: Global / Multi-country / Foreign | G132: Institutional Capacity Development/Ecosystem Support | H132: Social Behavioral Change Communication/Community Mobilization | I132: Multi-sectoral | J132: Energy/Environment | L132: Institutional Capacity Development/Ecosystem Support, Social Behavioral Change Communication/Community Mobilization, Multi-sectoral, Energy/Environment, | M132: Private Sector | N132: Social Enterprise | O132: =COUNTIFS(Conveners!$B$2:$B$1798,"="&A132,Conveners!$AA$2:$AA$1798,">0") -> 0 | P132: =COUNTIFS(Challenges!$H$2:$H$982,"="&A132,Challenges!$H$2:$H$982,"<>") -> 0 | Q132: =COUNTIFS(Innovations!$C$2:$F$1628,"="&A132, Innovations!$C$2:$F$1628,"<>") -> 0 | R132: =COUNTIFS(Referrals!B125:'Referrals'!H2109,"="&A132, Referrals!B125:'Referrals'!H2109,"<>") -> 0 | S132: =COUNTIFS(Matchmaker!$B$2:$B$999,"="&A132,Matchmaker!$H$2:$H$999,"<>") -> 0 | T132: =COUNTIFS(Matchmaker!$B$2:$B$999,"="&A132,Matchmaker!$J$2:$J$999,"<>") -> 0 | U132: =COUNTIFS(Support!$C$2:$C$973,"="&A132,Support!$C$2:$C$973,"<>") -> 0 | V132: 0 | Z132: Bwire Ancel | AA132: Founder, CEO | AB132: ancywax@gmail.com | AC132: ancelochino@ancywax.com | AE132: ancywax@gmail.com | AK132: The Story……. Started as a company that saw a gap in the Concept Development aspect, Ancywax felt things had to change. The name Ancywax comes from the founder’s first name Ancel whose nickname is ‘’Ancy’’ while the ‘’wax’’ is an abbreviation of works. The company was founded in 2003 but did not begin operations until 2014 fully. With this being a disrupter in the industry, the logo had to be authentic one that could reflect the originality of what we want to pass on to our clients and community. We chose black, grey and white as our colors as they represent the unknown, light, power, safety, intelligence, elegance and conformism. Our goal is to ensure whatever one does in anything there has to be inventiveness and much thought to bring out an identity: one that they would be associated with today, tomorrow, always. Who We Are We are a tailored company that is aimed at serving you and your business. Our wide range of services ensures you are adequately served as our team tailors for you value addition as our customer. Our key selling point is creativity as our driving force at Ancywax which we simply refer to as Concept Development. We offer you this in form of Media/Communication. Marketing. Consultancy. Our intention is not only to serve you but ensure you get full focus from idea level up to its implementation. We are a fully registered company under the Uganda Companies Act of 2012 Registration Number 209345 Vision ‚To be the leading company that offers professional concept development in East Africa and beyond.‛ Mission ‚To empower organizations with world class services that can ensure their sustainability towards their future.‛ Services Media/Communication Getting to understand the market, how to communicate to it and where to do it from is the focus we undertake for you. Areas we cover:  Mobile and Electronic Surveying  Consumer Insights  Data Analytics  Trends Advisory & Positioning  Products & Services Segmentation Marketing We provide cutting edge solutions for your products and services while ensuring that needs and wishes are met in this crucial section. Areas we cover:  Digital Marketing  Direct Marketing  Market Research & Advisory  Market Strategy & Planning  Branding Consultancy This section is primarily driven by business development practices. To stay abreast and competitive, we undertake this keenly for you. Areas we cover:  Proposal Writing  Training Staff, Beneficiaries & Users  Fundraising  Business Modeling  Technology & Innovations
A133: ANDELA-UG | B133: ANDELA LEARNING COMMUNITY | C133: Andela Learning Community is a network of technologists and tech enthusiasts across Africa dedicated to learning how to use technology to solve humanity’s problems. Our goal is to provide an ever-growing population of technologists with the resources and environments they need to become world-class problem solvers. | D133: https://andela.com/ | E133: Social enterprise | F133: Global / Multi-country / Foreign | G133: IT/Digital/ICT4D | H133: Engineering/Infrastructure | I133: Education | L133: IT/Digital/ICT4D, Engineering/Infrastructure, Education, , | M133: Knowledge | N133: Data Analytics | O133: =COUNTIFS(Conveners!$B$2:$B$1798,"="&A133,Conveners!$AA$2:$AA$1798,">0") -> 0 | P133: =COUNTIFS(Challenges!$H$2:$H$982,"="&A133,Challenges!$H$2:$H$982,"<>") -> 0 | Q133: =COUNTIFS(Innovations!$C$2:$F$1628,"="&A133, Innovations!$C$2:$F$1628,"<>") -> 1 | R133: =COUNTIFS(Referrals!B126:'Referrals'!H2110,"="&A133, Referrals!B126:'Referrals'!H2110,"<>") -> 0 | S133: =COUNTIFS(Matchmaker!$B$2:$B$999,"="&A133,Matchmaker!$H$2:$H$999,"<>") -> 0 | T133: =COUNTIFS(Matchmaker!$B$2:$B$999,"="&A133,Matchmaker!$J$2:$J$999,"<>") -> 0 | U133: =COUNTIFS(Support!$C$2:$C$973,"="&A133,Support!$C$2:$C$973,"<>") -> 0 | V133: 1 | AB133: info@andela.com | AD133: 0789 676847 | AF133: Plot 103 Kira Rd, Kampala
A134: ANDRE-UG | B134: ASPEN NETWORK OF DEVELOPMENT ENTREPRENEURS (ANDE) | C134: ANDE is a global network of organizations that propel entrepreneurship in emerging markets. Ande members provide critical financial, educational, and business support services to small and growing businesses based on the conviction that SGBS will create jobs, stimulate long-term economic growth, and produce environmental and social benefits. | D134: https://www.andeglobal.org | E134: NGO | F134: Global / Multi-country / Foreign | G134: Institutional Capacity Development/Ecosystem Support | H134: Education | I134: Livelihoods / (social) Entrepreneurship | L134: Institutional Capacity Development/Ecosystem Support, Education, Livelihoods / (social) Entrepreneurship, , | M134: Innovation Support | N134: Network | O134: =COUNTIFS(Conveners!$B$2:$B$1798,"="&A134,Conveners!$AA$2:$AA$1798,">0") -> 0 | P134: =COUNTIFS(Challenges!$H$2:$H$982,"="&A134,Challenges!$H$2:$H$982,"<>") -> 0 | Q134: =COUNTIFS(Innovations!$C$2:$F$1628,"="&A134, Innovations!$C$2:$F$1628,"<>") -> 0 | R134: =COUNTIFS(Referrals!B127:'Referrals'!H2111,"="&A134, Referrals!B127:'Referrals'!H2111,"<>") -> 0 | S134: =COUNTIFS(Matchmaker!$B$2:$B$999,"="&A134,Matchmaker!$H$2:$H$999,"<>") -> 0 | T134: =COUNTIFS(Matchmaker!$B$2:$B$999,"="&A134,Matchmaker!$J$2:$J$999,"<>") -> 0 | U134: =COUNTIFS(Support!$C$2:$C$973,"="&A134,Support!$C$2:$C$973,"<>") -> 0 | V134: 0 | AB134: ande.info@aspeninst.org | AD134: Phone: (202)736-2298 | AE134: ande.info@aspeninst.org | AF134: Washington, DC 20037 | AI134: Aspen Network of Development Entrepreneurs 2300 N St. NW, #700
A135: ANECCA-UG | B135: AFRICAN NETWORK FOR THE CARE OF CHILDREN AFFECTED BY HIV/AIDS UGANDA | C135: African Network for Care of Children Affected by HIV/AIDS is a network of clinicians and social scientists across Africa working to improve the quality of health care services for women, children, adolescents, young adults and their families in Africa by strengthening the Reproductive, Maternal, Neonatal, Child and Adolescent Health platform. | D135: www.anecca.org | E135: NGO | F135: National | G135: Disability/Inclusivity | H135: Social Behavioral Change Communication/Community Mobilization | I135: Disability/Inclusivity | J135: Health | L135: Disability/Inclusivity, Social Behavioral Change Communication/Community Mobilization, Disability/Inclusivity, Health, | M135: Innovation Support | N135: Network | O135: =COUNTIFS(Conveners!$B$2:$B$1798,"="&A135,Conveners!$AA$2:$AA$1798,">0") -> 1 | P135: =COUNTIFS(Challenges!$H$2:$H$982,"="&A135,Challenges!$H$2:$H$982,"<>") -> 0 | Q135: =COUNTIFS(Innovations!$C$2:$F$1628,"="&A135, Innovations!$C$2:$F$1628,"<>") -> 0 | R135: =COUNTIFS(Referrals!B128:'Referrals'!H2112,"="&A135, Referrals!B128:'Referrals'!H2112,"<>") -> 0 | S135: =COUNTIFS(Matchmaker!$B$2:$B$999,"="&A135,Matchmaker!$H$2:$H$999,"<>") -> 0 | T135: =COUNTIFS(Matchmaker!$B$2:$B$999,"="&A135,Matchmaker!$J$2:$J$999,"<>") -> 0 | U135: =COUNTIFS(Support!$C$2:$C$973,"="&A135,Support!$C$2:$C$973,"<>") -> 0 | V135: 1 | Z135: Dr. Denis Tindyebwa | AA135: Executive Director | AB135: mail@anecca.org | AD135: +256 393 516266 | AF135: Plot 1, Kololo Hill Drive | AG135: KAMPALA | AI135: 32.59696 | AJ135: 0.315722 | AK135: TO INCREASE HIV/AIDS AWARENESS AMONG COMMUNITIES
A136: AOGU-UG | B136: ASSOCIATION OF OBSTETRICIANS AND GYNECOLOGISTS OF UGANDA | C136: Association of Obstetricians and Gynecologists of Uganda (AOGU) is a non-profit, professional organization founded with mandate to promote professionalism, undertake research, and represent members at local, regional, international level and champion Sexual Reproductive Health & Rights (SRHR) of the people in the region. | D136: https://aogu.or.ug/ | E136: NGO | F136: National | G136: Health | I136: Social Behavioral Change Communication/Community Mobilization | L136: Health, , Social Behavioral Change Communication/Community Mobilization, , | M136: Implementer | N136: Association | O136: =COUNTIFS(Conveners!$B$2:$B$1798,"="&A136,Conveners!$AA$2:$AA$1798,">0") -> 0 | P136: =COUNTIFS(Challenges!$H$2:$H$982,"="&A136,Challenges!$H$2:$H$982,"<>") -> 0 | Q136: =COUNTIFS(Innovations!$C$2:$F$1628,"="&A136, Innovations!$C$2:$F$1628,"<>") -> 0 | R136: =COUNTIFS(Referrals!B129:'Referrals'!H2113,"="&A136, Referrals!B129:'Referrals'!H2113,"<>") -> 0 | S136: =COUNTIFS(Matchmaker!$B$2:$B$999,"="&A136,Matchmaker!$H$2:$H$999,"<>") -> 0 | T136: =COUNTIFS(Matchmaker!$B$2:$B$999,"="&A136,Matchmaker!$J$2:$J$999,"<>") -> 0 | U136: =COUNTIFS(Support!$C$2:$C$973,"="&A136,Support!$C$2:$C$973,"<>") -> 0 | V136: 0 | Z136: Dr. Priscilla Busingye | AA136: President | AB136: aogu2012@gmail.com | AC136: gynuganda@yahoo.com | AD136: +256 0393 215014 | AE136: aogu2012@gmail.com | AF136: Block 213, Plot 608, Sserumaga Road, Bukoto I, Kalonda Zone, Kampala-Uganda | AG136: KAMPALA | AI136: 32.59696 | AJ136: 0.315722 | AK136: TO PROMOTE AND FOSTER A VIBRANT AND PRODUCTIVE HEALTH
A137: APCA-UG | B137: AFRICAN PALLIATIVE CARE ASSOCIATION (APCA HOSPICE AFRICA UGANDA) | C137: African Palliative Care Association is a pan-African organisation ensuring that palliative care is widely understood, integrated into health systems at all levels and underpinned by evidence in order to reduce pain and suffering across Africa. The African Palliative Care Association (APCA) has worked with and supported partners across Africa to ensure that evidence is used in improving palliative care services. | D137: www.africanpalliativecare.org | E137: NGO | F137: Global / Multi-country / Foreign | G137: Health | H137: Cash Transfer Programming/Social Protection/Financial Inclusion | L137: Health, Cash Transfer Programming/Social Protection/Financial Inclusion, , , | M137: Implementer | N137: Association | O137: =COUNTIFS(Conveners!$B$2:$B$1798,"="&A137,Conveners!$AA$2:$AA$1798,">0") -> 0 | P137: =COUNTIFS(Challenges!$H$2:$H$982,"="&A137,Challenges!$H$2:$H$982,"<>") -> 0 | Q137: =COUNTIFS(Innovations!$C$2:$F$1628,"="&A137, Innovations!$C$2:$F$1628,"<>") -> 0 | R137: =COUNTIFS(Referrals!B130:'Referrals'!H2114,"="&A137, Referrals!B130:'Referrals'!H2114,"<>") -> 0 | S137: =COUNTIFS(Matchmaker!$B$2:$B$999,"="&A137,Matchmaker!$H$2:$H$999,"<>") -> 0 | T137: =COUNTIFS(Matchmaker!$B$2:$B$999,"="&A137,Matchmaker!$J$2:$J$999,"<>") -> 0 | U137: =COUNTIFS(Support!$C$2:$C$973,"="&A137,Support!$C$2:$C$973,"<>") -> 0 | V137: 0 | Z137: Dr. Emmanuel Luyirika | AA137: Executive Director | AB137: info@africapalliativecare.org | AC137: info@africanpalliativecare.org | AD137: +256 393 264 978 | AF137: Plot 95, Dr Gibbons Road, Makindye | AG137: KAMPALA | AI137: 32.59696 | AJ137: 0.315722 | AK137: TO PROMOTE PALLIATIVE CARE
A138: APINET-UG | B138: APINET UGANDA | C138: Apinet Uganda is an Agri company that produces quality organic liquid fertilizers and healthy food supplements. The company produces organic manures and supplies them to rural poor farmers on credit and farmers pay after harvesting. | D138: https://www.facebook.com/Apinet-Uganda-Ltd-111340560377582/ | E138: For-profit | F138: National | G138: Nutrition | H138: Energy/Environment | L138: Nutrition, Energy/Environment, , , | M138: Private Sector | N138: Startup | O138: =COUNTIFS(Conveners!$B$2:$B$1798,"="&A138,Conveners!$AA$2:$AA$1798,">0") -> 0 | P138: =COUNTIFS(Challenges!$H$2:$H$982,"="&A138,Challenges!$H$2:$H$982,"<>") -> 0 | Q138: =COUNTIFS(Innovations!$C$2:$F$1628,"="&A138, Innovations!$C$2:$F$1628,"<>") -> 1 | R138: =COUNTIFS(Referrals!#REF!:'Referrals'!H2115,"="&A138, Referrals!#REF!:'Referrals'!H2115,"<>") ->  | S138: =COUNTIFS(Matchmaker!$B$2:$B$999,"="&A138,Matchmaker!$H$2:$H$999,"<>") -> 0 | T138: =COUNTIFS(Matchmaker!$B$2:$B$999,"="&A138,Matchmaker!$J$2:$J$999,"<>") -> 0 | U138: =COUNTIFS(Support!$C$2:$C$973,"="&A138,Support!$C$2:$C$973,"<>") -> 0 | Z138: Edson Twinomugisha | AA138: Managing Director | AB138: info.apinetug@gmail.com | AC138: tmugisha19@gmail.com | AD138: +256 784 762770 | AE138: apinetuganda@gmail.com
A139: APPAFRICA-UG | B139: APPAFRICA | C139: Appfrica is a firm founded in 2008 in Kampala, Uganda which helps the world's leading multinational organizations and technology firms enter African markets. Appfrica offers creative program design, market research and technical solutions, in addition to offering regional talent and support in over 16 Sub-Saharan African countries. | D139: http://appfrica.com | E139: For-profit | F139: National | G139: IT/Digital/ICT4D | H139: Youth | L139: IT/Digital/ICT4D, Youth, , , | M139: Private Sector | N139: Industry | O139: =COUNTIFS(Conveners!$B$2:$B$1798,"="&A139,Conveners!$AA$2:$AA$1798,">0") -> 0 | P139: =COUNTIFS(Challenges!$H$2:$H$982,"="&A139,Challenges!$H$2:$H$982,"<>") -> 0 | Q139: =COUNTIFS(Innovations!$C$2:$F$1628,"="&A139, Innovations!$C$2:$F$1628,"<>") -> 0 | R139: =COUNTIFS(Referrals!B131:'Referrals'!H2116,"="&A139, Referrals!B131:'Referrals'!H2116,"<>") -> 0 | S139: =COUNTIFS(Matchmaker!$B$2:$B$999,"="&A139,Matchmaker!$H$2:$H$999,"<>") -> 0 | T139: =COUNTIFS(Matchmaker!$B$2:$B$999,"="&A139,Matchmaker!$J$2:$J$999,"<>") -> 0 | U139: =COUNTIFS(Support!$C$2:$C$973,"="&A139,Support!$C$2:$C$973,"<>") -> 0 | V139: 0
A140: APPCO-UG | B140: AFRICAN PARTNERS FOR CHILD POVERTY | C140: African Partners for Child Poverty (APPCO) is a non-profit organization with the ambition to have a positive impact on children and their families lives to Zero Poverty. APPCO seeks to address the causes and effects of poverty through development, relief, and advocacy. Our programming principle is to address the plight of Deprived, Excluded, and Vulnerable children and women in the communities where we operate. | D140: https://appcoug.org/ | E140: NGO | F140: National | G140: Disability/Inclusivity | H140: Youth | L140: Disability/Inclusivity, Youth, , , | M140: Implementer | N140: LNGO | O140: =COUNTIFS(Conveners!$B$2:$B$1798,"="&A140,Conveners!$AA$2:$AA$1798,">0") -> 0 | P140: =COUNTIFS(Challenges!$H$2:$H$982,"="&A140,Challenges!$H$2:$H$982,"<>") -> 0 | Q140: =COUNTIFS(Innovations!$C$2:$F$1628,"="&A140, Innovations!$C$2:$F$1628,"<>") -> 0 | R140: =COUNTIFS(Referrals!B132:'Referrals'!H2117,"="&A140, Referrals!B132:'Referrals'!H2117,"<>") -> 0 | S140: =COUNTIFS(Matchmaker!$B$2:$B$999,"="&A140,Matchmaker!$H$2:$H$999,"<>") -> 0 | T140: =COUNTIFS(Matchmaker!$B$2:$B$999,"="&A140,Matchmaker!$J$2:$J$999,"<>") -> 0 | U140: =COUNTIFS(Support!$C$2:$C$973,"="&A140,Support!$C$2:$C$973,"<>") -> 0 | V140: =SUM(O140:U140) -> 0 | AB140: info@appcoug.org | AD140: 039 3248827 | AF140: Naalya Housing Estate plot 2439, Block 221 along Rainbow Rise, Kampala
A141: APPFRICA-UG | B141: APPFRICA | C141: Appfrica is a global consultancy company that conducts market research, delivers custom technology solutions, and invests in emerging markets. The company offers regional support in over 16 sub-Saharan African countries and helps technology companies and innovation centric organizations enter African markets to invest and do business. Appfrica works with NGOs, government agencies, foundations, and corporations who are seeking local technical expertise and partners. Appfrica has invested in several African tech initiatives, including apps4africa, Hive Colab, women in technology Uganda, and aerials. | D141: www.appfrica.com | E141: For-profit | F141: Global / Multi-country / Foreign | G141: Livelihoods / (social) Entrepreneurship | I141: Education | L141: Livelihoods / (social) Entrepreneurship, , Education, , | M141: Knowledge | N141: Research | O141: =COUNTIFS(Conveners!$B$2:$B$1798,"="&A141,Conveners!$AA$2:$AA$1798,">0") -> 0 | P141: =COUNTIFS(Challenges!$H$2:$H$982,"="&A141,Challenges!$H$2:$H$982,"<>") -> 0 | Q141: =COUNTIFS(Innovations!$C$2:$F$1628,"="&A141, Innovations!$C$2:$F$1628,"<>") -> 0 | R141: =COUNTIFS(Referrals!B133:'Referrals'!H2118,"="&A141, Referrals!B133:'Referrals'!H2118,"<>") -> 0 | S141: =COUNTIFS(Matchmaker!$B$2:$B$999,"="&A141,Matchmaker!$H$2:$H$999,"<>") -> 0 | T141: =COUNTIFS(Matchmaker!$B$2:$B$999,"="&A141,Matchmaker!$J$2:$J$999,"<>") -> 0 | U141: =COUNTIFS(Support!$C$2:$C$973,"="&A141,Support!$C$2:$C$973,"<>") -> 0 | V141: 0 | Z141: Jon Gosier | AA141: Founder | AB141: info@appfrica.com | AD141: 256 4702652 | AE141: https://www.facebook.com/appfrica
A142: APTECHAFRICA-UG | B142: APTECH AFRICA LTD | C142: Aptech Africa Limited is Africa's solar energy and water pump specialist at supplies and provides complete assessments, solar designs and installation, and after sale services. Solar applications include solar power water pumps, borehole drilling, water pumps, irrigation, mini-grids, energy storage systems, power transmission, and solar refrigerators, solar street lights, solar refrigerators, and home kits. Aptech offers sales services to help their clients find the ideal solar solution to their energy needs and after sales services to maintain their products and systems. | D142: www.aptechafrica.com | E142: For-profit | F142: National | G142: Energy/Environment | H142: Water Sanitation and Hygiene (WASH) | L142: Energy/Environment, Water Sanitation and Hygiene (WASH), , , | M142: Private Sector | N142: Energy | O142: =COUNTIFS(Conveners!$B$2:$B$1798,"="&A142,Conveners!$AA$2:$AA$1798,">0") -> 0 | P142: =COUNTIFS(Challenges!$H$2:$H$982,"="&A142,Challenges!$H$2:$H$982,"<>") -> 0 | Q142: =COUNTIFS(Innovations!$C$2:$F$1628,"="&A142, Innovations!$C$2:$F$1628,"<>") -> 0 | R142: =COUNTIFS(Referrals!#REF!:'Referrals'!H2119,"="&A142, Referrals!#REF!:'Referrals'!H2119,"<>") ->  | S142: =COUNTIFS(Matchmaker!$B$2:$B$999,"="&A142,Matchmaker!$H$2:$H$999,"<>") -> 0 | T142: =COUNTIFS(Matchmaker!$B$2:$B$999,"="&A142,Matchmaker!$J$2:$J$999,"<>") -> 0 | U142: =COUNTIFS(Support!$C$2:$C$973,"="&A142,Support!$C$2:$C$973,"<>") -> 0 | Z142: Paul Kamoga | AA142: Distributor Developer | AB142: sales@aptechafrica.com | AC142: paul@aptechafrica.com | AD142: 256702000000 | AE142: sales@aptechafrica.com
A143: AQUAMETHODS-UG | B143: AQUA METHODS UGANDA | C143: Aqua Methods Uganda eco-water purifier, is an affordable, portable and efficient filtration system that aims at providing safe, clean and chemical free water to rural and remote areas and even to urban centers focusing on the entire population, can help to solve this problem of limited access to clean water thus strengthening the human capacity development. | D143: http://www.aqua-methodsug.com/ | E143: Social enterprise | F143: National | G143: Water Sanitation and Hygiene (WASH) | H143: Health | L143: Water Sanitation and Hygiene (WASH), Health, , , | M143: Private Sector | N143: Startup | O143: =COUNTIFS(Conveners!$B$2:$B$1798,"="&A143,Conveners!$AA$2:$AA$1798,">0") -> 0 | P143: =COUNTIFS(Challenges!$H$2:$H$982,"="&A143,Challenges!$H$2:$H$982,"<>") -> 0 | Q143: =COUNTIFS(Innovations!$C$2:$F$1628,"="&A143, Innovations!$C$2:$F$1628,"<>") -> 1 | R143: =COUNTIFS(Referrals!B134:'Referrals'!H2120,"="&A143, Referrals!B134:'Referrals'!H2120,"<>") -> 0 | S143: =COUNTIFS(Matchmaker!$B$2:$B$999,"="&A143,Matchmaker!$H$2:$H$999,"<>") -> 0 | T143: =COUNTIFS(Matchmaker!$B$2:$B$999,"="&A143,Matchmaker!$J$2:$J$999,"<>") -> 0 | U143: =COUNTIFS(Support!$C$2:$C$973,"="&A143,Support!$C$2:$C$973,"<>") -> 0 | V143: 1 | AD143: 256784822554
A144: ARCOS-UG | B144: ALBERTINE RIFT CONSERVATION SOCIETY (ARCOS) | C144: ARCOS is a regional conservation organization with the mission to enhance biodiversity conservation and sustainable management of natural resources in the Albertine Rift region, Africa Great Lakes region and African Mountains through the promotion of collaborative conservation actions for nature and people. | D144: http://www.arcosnetwork.org/ | E144: NGO | F144: Global / Multi-country / Foreign | G144: Energy/Environment | H144: Protection | L144: Energy/Environment, Protection, , , | M144: Implementer | N144: INGO | O144: =COUNTIFS(Conveners!$B$2:$B$1798,"="&A144,Conveners!$AA$2:$AA$1798,">0") -> 0 | P144: =COUNTIFS(Challenges!$H$2:$H$982,"="&A144,Challenges!$H$2:$H$982,"<>") -> 0 | Q144: =COUNTIFS(Innovations!$C$2:$F$1628,"="&A144, Innovations!$C$2:$F$1628,"<>") -> 0 | R144: =COUNTIFS(Referrals!B135:'Referrals'!H2121,"="&A144, Referrals!B135:'Referrals'!H2121,"<>") -> 0 | S144: =COUNTIFS(Matchmaker!$B$2:$B$999,"="&A144,Matchmaker!$H$2:$H$999,"<>") -> 0 | T144: =COUNTIFS(Matchmaker!$B$2:$B$999,"="&A144,Matchmaker!$J$2:$J$999,"<>") -> 0 | U144: =COUNTIFS(Support!$C$2:$C$973,"="&A144,Support!$C$2:$C$973,"<>") -> 0 | V144: 0 | Z144: Dr. Sam Kanyamibwa | AA144: Executive Director | AB144: arcos-rco@arcosnetwork.org | AD144: +256 41 530700 | AE144: skanyamibwa@arcosnetwork.org | AF144: PLOT 1329, BLOCK 15 NSAMBYA, KIBUGA. P.O. BOX 9146 KAMPALA | AG144: KAMPALA | AI144: 32.59696 | AJ144: 0.315722 | AK144: TO PROMOTE ENVIRONMENTAL CONSERVATION
A145: ARC-UG | B145: AMERICAN REFUGEE COMMITTEE | C145: American Refugee Committee is a family of organizations that works closely with refugees, trafficked persons, and economic migrants, to co-design solutions that help them build full and fulfilling lives, lives that are alight. They are an organization that sees possibility instead of scarcity, that provides services truly worthy of human beings instead of just ‘good enough.’ from the people they serve to the people who serve alongside, their purpose is to unlock limitless potential, together. That’s when abundance happens. | D145: https://wearealight.org/ | E145: Donor | F145: Global / Multi-country / Foreign | G145: Shelter and NFIs | H145: Cash Transfer Programming/Social Protection/Financial Inclusion | I145: Human Rights/Legal | L145: Shelter and NFIs, Cash Transfer Programming/Social Protection/Financial Inclusion, Human Rights/Legal, , | M145: Finance | N145: Donor | O145: =COUNTIFS(Conveners!$B$2:$B$1798,"="&A145,Conveners!$AA$2:$AA$1798,">0") -> 1 | P145: =COUNTIFS(Challenges!$H$2:$H$982,"="&A145,Challenges!$H$2:$H$982,"<>") -> 0 | Q145: =COUNTIFS(Innovations!$C$2:$F$1628,"="&A145, Innovations!$C$2:$F$1628,"<>") -> 0 | R145: =COUNTIFS(Referrals!B136:'Referrals'!H2122,"="&A145, Referrals!B136:'Referrals'!H2122,"<>") -> 0 | S145: =COUNTIFS(Matchmaker!$B$2:$B$999,"="&A145,Matchmaker!$H$2:$H$999,"<>") -> 0 | T145: =COUNTIFS(Matchmaker!$B$2:$B$999,"="&A145,Matchmaker!$J$2:$J$999,"<>") -> 0 | U145: =COUNTIFS(Support!$C$2:$C$973,"="&A145,Support!$C$2:$C$973,"<>") -> 0 | V145: 1 | W145: Refugee-Led Organisation | AB145: NoumeB@arcrelief.org | AC145: info@wearealight.org
A146: ARED-UG | B146: AFRICAN RENEWABLE ENERGY DISTRIBUTOR (ARED) | C146: African Renewable Energy Distributor (ARED) is a hard-tech company based in Rwanda and Uganda. It developed a business-in-a-box solar kiosk that offers customers phone charging and airtime top-up services, Wi-Fi, an intranet with free digital content and a bluetooth printer. ARED leases the kiosks out through a franchise model. | D146: https://greentec-capital.com/portfolio/ared-african-renewable-energy-distributor/ | E146: For-profit | F146: Global / Multi-country / Foreign | G146: Energy/Environment | H146: IT/Digital/ICT4D | I146: Livelihoods / (social) Entrepreneurship | L146: Energy/Environment, IT/Digital/ICT4D, Livelihoods / (social) Entrepreneurship, , | M146: Private Sector | N146: Energy | O146: =COUNTIFS(Conveners!$B$2:$B$1798,"="&A146,Conveners!$AA$2:$AA$1798,">0") -> 0 | P146: =COUNTIFS(Challenges!$H$2:$H$982,"="&A146,Challenges!$H$2:$H$982,"<>") -> 0 | Q146: =COUNTIFS(Innovations!$C$2:$F$1628,"="&A146, Innovations!$C$2:$F$1628,"<>") -> 0 | R146: =COUNTIFS(Referrals!B137:'Referrals'!H2123,"="&A146, Referrals!B137:'Referrals'!H2123,"<>") -> 0 | S146: =COUNTIFS(Matchmaker!$B$2:$B$999,"="&A146,Matchmaker!$H$2:$H$999,"<>") -> 0 | T146: =COUNTIFS(Matchmaker!$B$2:$B$999,"="&A146,Matchmaker!$J$2:$J$999,"<>") -> 0 | U146: =COUNTIFS(Support!$C$2:$C$973,"="&A146,Support!$C$2:$C$973,"<>") -> 0 | V146: 0 | Z146: Jeremiah Lewebigue | AA146: Uganda Country Developer | AB146: info@a-r-e-d.com | AD146: (+250) 787 666 436 | AF146: Carl-von-Noorden Platz 5, 3 OG 60596 Frankfurt am Main | AK146: . We created the first and only one stop shop platform in the market that allow people to access any services, charge their phone, connect the internet and consume offline digital content from one location.
A147: ARIII-UG | B147: ATAARI INTEGRATED IRRIGATION INITIATION | C147: Ataari River Integrated Irrigation Initiative (ARIII), a horticulture and rice production venture identifies, trains and seeds young people to begin their own agri-business ventures in a model dubbed “Learn as you earn”. Since receiving seed capital from the TEF Entrepreneurship Programme, ARIII has grown from strength to strength and has been at the forefront of transforming agriculture from peasant-led to commercial. As such, they have championed efforts like organising irrigation masterclasses to help mitigate the effects of climate change. ARII also organises Open Field days to link farmers to the latest technologies in Agriculture. | D147: https://www.tonyelumelufoundation.org/member/joel-cherop | E147: Social Enterprise | F147: National | G147: Food Security and Agriculture | H147: Disability/Inclusivity | L147: Food Security and Agriculture, Disability/Inclusivity, , , | M147: Private Sector | N147: Social Enterprise | O147: =COUNTIFS(Conveners!$B$2:$B$1798,"="&A147,Conveners!$AA$2:$AA$1798,">0") -> 0 | P147: =COUNTIFS(Challenges!$H$2:$H$982,"="&A147,Challenges!$H$2:$H$982,"<>") -> 0 | Q147: =COUNTIFS(Innovations!$C$2:$F$1628,"="&A147, Innovations!$C$2:$F$1628,"<>") -> 0 | R147: =COUNTIFS(Referrals!B1551:'Referrals'!H3540,"="&A147, Referrals!B1551:'Referrals'!H3540,"<>") -> 0 | S147: =COUNTIFS(Matchmaker!$B$2:$B$999,"="&A147,Matchmaker!$H$2:$H$999,"<>") -> 0 | T147: =COUNTIFS(Matchmaker!$B$2:$B$999,"="&A147,Matchmaker!$J$2:$J$999,"<>") -> 0 | U147: =COUNTIFS(Support!$C$2:$C$973,"="&A147,Support!$C$2:$C$973,"<>") -> 0 | V147: 0 | Z147: JOEL CHEROP | AA147: FOUNDER | AB147: Cherop1joel@yahoo.co.uk | AD147: 25678267265
A148: ARISER-UG | B148: AIR SERVE INTERNATIONAL | C148: AirServ International provides safe and reliable air transportation for humanitarian aid organizations in the world's most dangerous and isolated areas. | D148: https://www.airserv.co.ug/ | E148: NGO | F148: Global / Multi-country / Foreign | G148: Disaster Risk Reduction/Emergency Logistics/Early Warning Systems | H148: Protection | L148: Disaster Risk Reduction/Emergency Logistics/Early Warning Systems, Protection, , , | M148: Implementer | N148: INGO | O148: =COUNTIFS(Conveners!$B$2:$B$1798,"="&A148,Conveners!$AA$2:$AA$1798,">0") -> 0 | P148: =COUNTIFS(Challenges!$H$2:$H$982,"="&A148,Challenges!$H$2:$H$982,"<>") -> 0 | Q148: =COUNTIFS(Innovations!$C$2:$F$1628,"="&A148, Innovations!$C$2:$F$1628,"<>") -> 0 | R148: =COUNTIFS(Referrals!B138:'Referrals'!H2124,"="&A148, Referrals!B138:'Referrals'!H2124,"<>") -> 0 | S148: =COUNTIFS(Matchmaker!$B$2:$B$999,"="&A148,Matchmaker!$H$2:$H$999,"<>") -> 0 | T148: =COUNTIFS(Matchmaker!$B$2:$B$999,"="&A148,Matchmaker!$J$2:$J$999,"<>") -> 0 | U148: =COUNTIFS(Support!$C$2:$C$973,"="&A148,Support!$C$2:$C$973,"<>") -> 0 | V148: 0 | Z148: Johnson Mugulusi | AA148: Managing Director | AB148: info@airserv.co.ug | AD148: +256 393 326898 | AF148: HANGER ONE, ENTEBBE AIRPORT | AG148: KAMPALA | AI148: 32.59696 | AJ148: 0.315722 | AK148: TO PROVIDE AIR TRANSPORTATION AND TRANSPORT
A149: ART4PC-UG | B149: ART FOR POSITIVE CHANGE | C149: ART for Positive Change is an initiative to promote art for development. Art for positive change promotes and engages youths in Nakivale Refugee Settlement in the usage of art for self reliance, and recycling plastic waste into art for environment protection. | D149: http://www.artforpositivechange.com | E149: NGO | F149: Subnational and settlement-level | G149: Youth | H149: Social Behavioral Change Communication/Community Mobilization | L149: Youth, Social Behavioral Change Communication/Community Mobilization, , , | M149: Implementer | N149: LNGO | O149: =COUNTIFS(Conveners!$B$2:$B$1798,"="&A149,Conveners!$AA$2:$AA$1798,">0") -> 0 | P149: =COUNTIFS(Challenges!$H$2:$H$982,"="&A149,Challenges!$H$2:$H$982,"<>") -> 0 | Q149: =COUNTIFS(Innovations!$C$2:$F$1628,"="&A149, Innovations!$C$2:$F$1628,"<>") -> 0 | R149: =COUNTIFS(Referrals!B139:'Referrals'!H2125,"="&A149, Referrals!B139:'Referrals'!H2125,"<>") -> 0 | S149: =COUNTIFS(Matchmaker!$B$2:$B$999,"="&A149,Matchmaker!$H$2:$H$999,"<>") -> 0 | T149: =COUNTIFS(Matchmaker!$B$2:$B$999,"="&A149,Matchmaker!$J$2:$J$999,"<>") -> 0 | U149: =COUNTIFS(Support!$C$2:$C$973,"="&A149,Support!$C$2:$C$973,"<>") -> 0 | V149: 0 | W149: Refugee-Led Organisation | Z149: Issa Patrick | AA149: Founder | AB149: artforposichange@gmail.com | AD149: +256 782 021923 | AF149: Nakivale, Isingiro | AG149: Isingiro | AH149: Nakivale | AM149: Active | AN149: no
A150: ARTEMIS-UG | B150: ARTEMIS | C150: We are using technology to create a world that sustains itself. We are determined to create a more profitable, more productive, and safer agricultural supply chain. We believe that no one should ever get sick from consuming plants, farmers should make a good living, farmworkers should be treated with dignity, and profitability is the key to scaling our agriculture system. | D150: https://artemisag.com/ | E150: For-profit | F150: Global / Multi-country / Foreign | G150: Food Security and Agriculture | H150: Cash Transfer Programming/Social Protection/Financial Inclusion | I150: Media/Communication | L150: Food Security and Agriculture, Cash Transfer Programming/Social Protection/Financial Inclusion, Media/Communication, , | M150: Private Sector | N150: Corporation | O150: =COUNTIFS(Conveners!$B$2:$B$1798,"="&A150,Conveners!$AA$2:$AA$1798,">0") -> 0 | P150: =COUNTIFS(Challenges!$H$2:$H$982,"="&A150,Challenges!$H$2:$H$982,"<>") -> 0 | Q150: =COUNTIFS(Innovations!$C$2:$F$1628,"="&A150, Innovations!$C$2:$F$1628,"<>") -> 0 | R150: =COUNTIFS(Referrals!B140:'Referrals'!H2126,"="&A150, Referrals!B140:'Referrals'!H2126,"<>") -> 0 | S150: =COUNTIFS(Matchmaker!$B$2:$B$999,"="&A150,Matchmaker!$H$2:$H$999,"<>") -> 0 | T150: =COUNTIFS(Matchmaker!$B$2:$B$999,"="&A150,Matchmaker!$J$2:$J$999,"<>") -> 0 | U150: =COUNTIFS(Support!$C$2:$C$973,"="&A150,Support!$C$2:$C$973,"<>") -> 0 | V150: 0 | Z150: Nolbert Muhumuza | AA150: Founder, CEO | AB150: raquel@artemis.org.br | AC150: http://awamu.ug/
A151: ARW-UG | B151: ARROW EMPIRICAL RESEARCH AND SKILLS ENHANCEMENT LTD | C151: Arrow Empirical Research and Skills Enhancement is located in Makerere and provides short courses in M.E.A.L and I.C.T to enhancing practical skills than theoretical. | D151: https://www.facebook.com/Arrow-Research-World-276946992723662/posts | E151: Academic | F151: National | G151: Monitoring Evaluation Accountability and Learning (MEAL) | H151: Education | I151: Youth | L151: Monitoring Evaluation Accountability and Learning (MEAL), Education, Youth, , | M151: Knowledge | N151: Training | O151: =COUNTIFS(Conveners!$B$2:$B$1798,"="&A151,Conveners!$AA$2:$AA$1798,">0") -> 0 | P151: =COUNTIFS(Challenges!$H$2:$H$982,"="&A151,Challenges!$H$2:$H$982,"<>") -> 0 | Q151: =COUNTIFS(Innovations!$C$2:$F$1628,"="&A151, Innovations!$C$2:$F$1628,"<>") -> 0 | R151: =COUNTIFS(Referrals!B141:'Referrals'!H2127,"="&A151, Referrals!B141:'Referrals'!H2127,"<>") -> 0 | S151: =COUNTIFS(Matchmaker!$B$2:$B$999,"="&A151,Matchmaker!$H$2:$H$999,"<>") -> 0 | T151: =COUNTIFS(Matchmaker!$B$2:$B$999,"="&A151,Matchmaker!$J$2:$J$999,"<>") -> 0 | U151: =COUNTIFS(Support!$C$2:$C$973,"="&A151,Support!$C$2:$C$973,"<>") -> 0 | V151: 0 | Z151: Mashani Titus Colline | AA151: Director of Training | AD151: 775230373 | AE151: 0700285523/0788303024
A152: ASAAK-UG | B152: ASAAK | C152: Asaak provides world-class financial services via a mobile application which helps them provide a full suite of financial services and use mobile technology to keep the operating costs low. They also use credit to built on sophisticated risk algorithms capable of scoring a borrower instantaneously. Asaak’s mobile platform uses a community-based approach to build trust with customers and provide a lifetime of easy financial access. Investors have few options to produce consistently high returns and billions of emerging market consumers lack access to credit. Asaak provides the link between these parties with a comprehensive lending marketplace. | D152: https://www.asaak.co/ | E152: For-profit | F152: National | G152: Livelihoods / (social) Entrepreneurship | H152: Cash Transfer Programming/Social Protection/Financial Inclusion | I152: IT/Digital/ICT4D | L152: Livelihoods / (social) Entrepreneurship, Cash Transfer Programming/Social Protection/Financial Inclusion, IT/Digital/ICT4D, , | M152: Private Sector | N152: Startup | O152: =COUNTIFS(Conveners!$B$2:$B$1798,"="&A152,Conveners!$AA$2:$AA$1798,">0") -> 0 | P152: =COUNTIFS(Challenges!$H$2:$H$982,"="&A152,Challenges!$H$2:$H$982,"<>") -> 0 | Q152: =COUNTIFS(Innovations!$C$2:$F$1628,"="&A152, Innovations!$C$2:$F$1628,"<>") -> 1 | R152: =COUNTIFS(Referrals!B142:'Referrals'!H2128,"="&A152, Referrals!B142:'Referrals'!H2128,"<>") -> 0 | S152: =COUNTIFS(Matchmaker!$B$2:$B$999,"="&A152,Matchmaker!$H$2:$H$999,"<>") -> 0 | T152: =COUNTIFS(Matchmaker!$B$2:$B$999,"="&A152,Matchmaker!$J$2:$J$999,"<>") -> 0 | U152: =COUNTIFS(Support!$C$2:$C$973,"="&A152,Support!$C$2:$C$973,"<>") -> 0 | V152: 1 | Z152: Kaivan Sattar | AA152: Chief Executive Officer | AB152: support@asaak.com | AC152: support@asaak.co | AD152: +256 750 445566
A153: ASARECA-UG | B153: THE ASSOCIATION FOR STRENGTHENING AGRICULTURAL RESEARCH IN EASTERN AND CENTRAL AFRICA | C153: The Association for Strengthening Agricultural Research in Eastern and Central Africa (ASARECA) is a not-for-profit sub-regional organization of the National Agricultural Research Systems (NARS) that brings together scientists from the national agricultural research institutions of the member countries, national agricultural extension service providers and strategic development oriented partners to generate, share and promote knowledge and innovations to solve common challenges facing agriculture in the member countries. | D153: https://www.asareca.org/ | E153: NGO | F153: Global / Multi-country / Foreign | G153: Food Security and Agriculture | H153: Energy/Environment | I153: Monitoring Evaluation Accountability and Learning (MEAL) | L153: Food Security and Agriculture, Energy/Environment, Monitoring Evaluation Accountability and Learning (MEAL), , | M153: Implementer | N153: Association | O153: =COUNTIFS(Conveners!$B$2:$B$1798,"="&A153,Conveners!$AA$2:$AA$1798,">0") -> 0 | P153: =COUNTIFS(Challenges!$H$2:$H$982,"="&A153,Challenges!$H$2:$H$982,"<>") -> 0 | Q153: =COUNTIFS(Innovations!$C$2:$F$1628,"="&A153, Innovations!$C$2:$F$1628,"<>") -> 0 | R153: =COUNTIFS(Referrals!B143:'Referrals'!H2129,"="&A153, Referrals!B143:'Referrals'!H2129,"<>") -> 0 | S153: =COUNTIFS(Matchmaker!$B$2:$B$999,"="&A153,Matchmaker!$H$2:$H$999,"<>") -> 0 | T153: =COUNTIFS(Matchmaker!$B$2:$B$999,"="&A153,Matchmaker!$J$2:$J$999,"<>") -> 0 | U153: =COUNTIFS(Support!$C$2:$C$973,"="&A153,Support!$C$2:$C$973,"<>") -> 0 | V153: 0 | Z153: Prof. Jean Jacques Mbonigaba Muhinda | AA153: Executive Director | AB153: secretariat@asareca.org | AF153: P.O.Box 765 Entebbe, Uganda
A154: ASHEN-UG | B154: ASHDEN | C154: Ashden is a London-based charity that works in the field of sustainable energy and development. Its work includes the annual ashden awards, advocacy and research in the field of sustainable energy, and mentoring and practical support for award winners. | D154: https://ashden.org/ | E154: Donor | F154: Global / Multi-country / Foreign | G154: Energy/Environment | H154: Energy/Environment | I154: Multi-sectoral | L154: Energy/Environment, Energy/Environment, Multi-sectoral, , | M154: Private Sector | N154: Energy | O154: =COUNTIFS(Conveners!$B$2:$B$1798,"="&A154,Conveners!$AA$2:$AA$1798,">0") -> 0 | P154: =COUNTIFS(Challenges!$H$2:$H$982,"="&A154,Challenges!$H$2:$H$982,"<>") -> 0 | Q154: =COUNTIFS(Innovations!$C$2:$F$1628,"="&A154, Innovations!$C$2:$F$1628,"<>") -> 0 | R154: =COUNTIFS(Referrals!B144:'Referrals'!H2130,"="&A154, Referrals!B144:'Referrals'!H2130,"<>") -> 2 | S154: =COUNTIFS(Matchmaker!$B$2:$B$999,"="&A154,Matchmaker!$H$2:$H$999,"<>") -> 0 | T154: =COUNTIFS(Matchmaker!$B$2:$B$999,"="&A154,Matchmaker!$J$2:$J$999,"<>") -> 0 | U154: =COUNTIFS(Support!$C$2:$C$973,"="&A154,Support!$C$2:$C$973,"<>") -> 0 | V154: 2 | X154: Feb 24, 2021 | Z154: Nashwa Naushad | AA154: Programme Officer | AB154: info@ashden.org | AC154: Nashwa.Naushad@ashden.org | AD154: 44 (0) 20 7410 7023 | AE154: E: info@ashden.org Registered in England and Wales as a company limited by guarantee. Registered number: 05062574/ Charity number: 1104153 website by e-innovate | AF154: The Peak, 3rd Floor 5 Wilton Road | AI154: London, SW1V 1AP
A155: ASHOKA-UG | B155: ASHOKA | C155: Ashoka builds and cultivates a community of change leaders who see that the world now requires everyone to be a changemaker. Together, we collaborate to transform institutions and cultures worldwide so they support change making for the good of society. | D155: https://www.ashoka.org/en-gb/country/Uganda | E155: NGO | F155: Global / Multi-country / Foreign | G155: Human Rights/Legal | H155: Protection | I155: Monitoring Evaluation Accountability and Learning (MEAL) | L155: Human Rights/Legal, Protection, Monitoring Evaluation Accountability and Learning (MEAL), , | M155: Implementer | N155: INGO | O155: =COUNTIFS(Conveners!$B$2:$B$1798,"="&A155,Conveners!$AA$2:$AA$1798,">0") -> 0 | P155: =COUNTIFS(Challenges!$H$2:$H$982,"="&A155,Challenges!$H$2:$H$982,"<>") -> 0 | Q155: =COUNTIFS(Innovations!$C$2:$F$1628,"="&A155, Innovations!$C$2:$F$1628,"<>") -> 0 | R155: =COUNTIFS(Referrals!#REF!:'Referrals'!H2131,"="&A155, Referrals!#REF!:'Referrals'!H2131,"<>") ->  | S155: =COUNTIFS(Matchmaker!$B$2:$B$999,"="&A155,Matchmaker!$H$2:$H$999,"<>") -> 0 | T155: =COUNTIFS(Matchmaker!$B$2:$B$999,"="&A155,Matchmaker!$J$2:$J$999,"<>") -> 0 | U155: =COUNTIFS(Support!$C$2:$C$973,"="&A155,Support!$C$2:$C$973,"<>") -> 0 | AB155: ashokaea@ashoka.org | AC155: sns@peace-winds.org | AE155: infouk@ashoka.org
A156: ASIGMA-UG | B156: ASIGMA CAPITAL | C156: Asigma Capital is a management and financial advisory firm that leverages data analytics and technology to add value to organizations their and they seek opportunities to invest in alternative asset classes such as real estate, energy and SMEs sees. | D156: https://asigmacapital.com/ | E156: For-profit | F156: Global / Multi-country / Foreign | G156: Cash Transfer Programming/Social Protection/Financial Inclusion | H156: Livelihoods / (social) Entrepreneurship | I156: Monitoring Evaluation Accountability and Learning (MEAL) | J156: Economic Development | L156: Cash Transfer Programming/Social Protection/Financial Inclusion, Livelihoods / (social) Entrepreneurship, Monitoring Evaluation Accountability and Learning (MEAL), Economic Development, | M156: Innovation Support | N156: Technical Innovation Support | O156: =COUNTIFS(Conveners!$B$2:$B$1798,"="&A156,Conveners!$AA$2:$AA$1798,">0") -> 0 | P156: =COUNTIFS(Challenges!$H$2:$H$982,"="&A156,Challenges!$H$2:$H$982,"<>") -> 0 | Q156: =COUNTIFS(Innovations!$C$2:$F$1628,"="&A156, Innovations!$C$2:$F$1628,"<>") -> 0 | R156: =COUNTIFS(Referrals!B145:'Referrals'!H2132,"="&A156, Referrals!B145:'Referrals'!H2132,"<>") -> 0 | S156: =COUNTIFS(Matchmaker!$B$2:$B$999,"="&A156,Matchmaker!$H$2:$H$999,"<>") -> 0 | T156: =COUNTIFS(Matchmaker!$B$2:$B$999,"="&A156,Matchmaker!$J$2:$J$999,"<>") -> 0 | U156: =COUNTIFS(Support!$C$2:$C$973,"="&A156,Support!$C$2:$C$973,"<>") -> 0 | V156: 0 | Z156: David Nanambi | AA156: Managing director | AB156: info@asigmacapital.com | AC156: david.wakyiku@asigmacapital.com | AD156: 772974343 | AE156: info@asigmacapital.com | AF156: Legacy House, 1st floor | AI156: P.O Box 2841, Kampala, Uganda.
A157: ASKOTEC-UG | B157: ASKOTEC | C157: An emergency field kit for access to skills and knowledge. Askotec; the 'access to skills and knowledge open tech emergency case' is a resource kit for community trainers, created for mobile field-use where there is neither easy power nor internet connectivity such as refugee camps, low-infrastructure regions or rural areas. | D157: www.gogirlsict.org | E157: Public sector | F157: National | G157: Education | H157: Social Behavioral Change Communication/Community Mobilization | I157: IT/Digital/ICT4D | L157: Education, Social Behavioral Change Communication/Community Mobilization, IT/Digital/ICT4D, , | M157: Implementer | N157: LNGO | O157: =COUNTIFS(Conveners!$B$2:$B$1798,"="&A157,Conveners!$AA$2:$AA$1798,">0") -> 0 | P157: =COUNTIFS(Challenges!$H$2:$H$982,"="&A157,Challenges!$H$2:$H$982,"<>") -> 0 | Q157: =COUNTIFS(Innovations!$C$2:$F$1628,"="&A157, Innovations!$C$2:$F$1628,"<>") -> 0 | R157: =COUNTIFS(Referrals!B146:'Referrals'!H2133,"="&A157, Referrals!B146:'Referrals'!H2133,"<>") -> 0 | S157: =COUNTIFS(Matchmaker!$B$2:$B$999,"="&A157,Matchmaker!$H$2:$H$999,"<>") -> 0 | T157: =COUNTIFS(Matchmaker!$B$2:$B$999,"="&A157,Matchmaker!$J$2:$J$999,"<>") -> 0 | U157: =COUNTIFS(Support!$C$2:$C$973,"="&A157,Support!$C$2:$C$973,"<>") -> 0 | V157: 0 | Z157: Eva Yayi Mawa | AA157: Co-Founder | AB157: info@yef-uganda.org | AC157: info@gogirlsict.org | AD157: 211 924 115 895. | AE157: Yine Yenki Nyika Co-Founder | AF157: Juba, South Sudan
A158: ASRIU-UG | B158: ASSOCIATION OF THE RELIGIOUS IN UGANDA | C158: Association of Religious in Uganda (ARU) is an umbrella body for all Religious Institutes working in Uganda led by the body of the Assembly of Major Superiors of Religious Institutes in Uganda (AMSRIU) with a mission to collaborate, support and empower each Institute to live its unique Charism within Church. | D158: https://aruamsriu.org/ | E158: NGO | F158: National | G158: Monitoring Evaluation Accountability and Learning (MEAL) | H158: Education | I158: Health | L158: Monitoring Evaluation Accountability and Learning (MEAL), Education, Health, , | M158: Implementer | N158: Association | O158: =COUNTIFS(Conveners!$B$2:$B$1798,"="&A158,Conveners!$AA$2:$AA$1798,">0") -> 0 | P158: =COUNTIFS(Challenges!$H$2:$H$982,"="&A158,Challenges!$H$2:$H$982,"<>") -> 0 | Q158: =COUNTIFS(Innovations!$C$2:$F$1628,"="&A158, Innovations!$C$2:$F$1628,"<>") -> 0 | R158: =COUNTIFS(Referrals!B147:'Referrals'!H2134,"="&A158, Referrals!B147:'Referrals'!H2134,"<>") -> 0 | S158: =COUNTIFS(Matchmaker!$B$2:$B$999,"="&A158,Matchmaker!$H$2:$H$999,"<>") -> 0 | T158: =COUNTIFS(Matchmaker!$B$2:$B$999,"="&A158,Matchmaker!$J$2:$J$999,"<>") -> 0 | U158: =COUNTIFS(Support!$C$2:$C$973,"="&A158,Support!$C$2:$C$973,"<>") -> 0 | V158: 0 | Z158: Rev. Sr. Lydia Apili Bwor | AA158: Secretary General | AB158: aru@arumsriu.org | AC158: aru@aruamsriu.org | AD158: +256 414 510 034 | AF158: Plot 518, Nsambya Estate Road, Kampala
A159: ASU-UG | B159: ARIZONA STATE UNIVERSITY'S EDUCATION FOR HUMANITY | C159: Arizona State University meets refugee learners where they are and where they may be going with digital learning tools offered in a blended learning model to enable admission to university and proof of academic and workplace readiness. | D159: https://global.asu.edu/education-humanity | E159: Academic | F159: Global / Multi-country / Foreign | G159: Education | H159: Livelihoods / (social) Entrepreneurship | I159: Displacement (refugees and IDPs) | L159: Education, Livelihoods / (social) Entrepreneurship, Displacement (refugees and IDPs), , | M159: Knowledge | N159: University | O159: =COUNTIFS(Conveners!$B$2:$B$1798,"="&A159,Conveners!$AA$2:$AA$1798,">0") -> 0 | P159: =COUNTIFS(Challenges!$H$2:$H$982,"="&A159,Challenges!$H$2:$H$982,"<>") -> 0 | Q159: =COUNTIFS(Innovations!$C$2:$F$1628,"="&A159, Innovations!$C$2:$F$1628,"<>") -> 0 | R159: =COUNTIFS(Referrals!B148:'Referrals'!H2135,"="&A159, Referrals!B148:'Referrals'!H2135,"<>") -> 0 | S159: =COUNTIFS(Matchmaker!$B$2:$B$999,"="&A159,Matchmaker!$H$2:$H$999,"<>") -> 0 | T159: =COUNTIFS(Matchmaker!$B$2:$B$999,"="&A159,Matchmaker!$J$2:$J$999,"<>") -> 0 | U159: =COUNTIFS(Support!$C$2:$C$973,"="&A159,Support!$C$2:$C$973,"<>") -> 0 | V159: 0 | Z159: Michael M. Crow | AA159: President | AB159: customerservice@asu.edu | AC159: president@asu.edu | AD159: (480) 965-8972 | AF159: 300 E. University Drive Suite 410 Tempe, Arizona | AI159: 300 E. University Drive Suite 410 Tempe, Arizona
A160: ATC-UG | B160: THE APPROPRIATE TECHNOLOGY CENTRE FOR WATER AND SANITATION (ATC) | C160: ATC was established in 2010 as the research arm for Ministry of Water and Environment to undertake applied/action researching water and sanitation technologies, promotion of appropriate WASH technologies as well as carry out capacity building of sector actors. ATC today undertakes applied research, capacity building and promotion of appropriate water and sanitation technologies. ATC vision is to become a self sustaining entity; able to attract and generate funding. | D160: http://atc.mwe.go.ug/ | E160: Public sector | F160: National | G160: Water Sanitation and Hygiene (WASH) | H160: Education | L160: Water Sanitation and Hygiene (WASH), Education, , , | M160: Knowledge | N160: Training | O160: =COUNTIFS(Conveners!$B$2:$B$1798,"="&A160,Conveners!$AA$2:$AA$1798,">0") -> 0 | P160: =COUNTIFS(Challenges!$H$2:$H$982,"="&A160,Challenges!$H$2:$H$982,"<>") -> 0 | Q160: =COUNTIFS(Innovations!$C$2:$F$1628,"="&A160, Innovations!$C$2:$F$1628,"<>") -> 0 | R160: =COUNTIFS(Referrals!B149:'Referrals'!H2136,"="&A160, Referrals!B149:'Referrals'!H2136,"<>") -> 0 | S160: =COUNTIFS(Matchmaker!$B$2:$B$999,"="&A160,Matchmaker!$H$2:$H$999,"<>") -> 0 | T160: =COUNTIFS(Matchmaker!$B$2:$B$999,"="&A160,Matchmaker!$J$2:$J$999,"<>") -> 0 | U160: =COUNTIFS(Support!$C$2:$C$973,"="&A160,Support!$C$2:$C$973,"<>") -> 0 | V160: 0 | AB160: appropiate.technologycenter@mwe.go.ug | AE160: appropriate.technologycenter@mwe.go.ug | AF160: P.O Box 748, Mukono, Uganda | AI160: Upper Kauga , Prison Road
A161: ATTENDANCETRACKING-UG | B161: ATTENDANCE TRACKING | C161: The project supports and set-up Accelerated Education Programme (AEP) to help children that have dropped out of school to complete primary level education and transition into formal education or vocational training. The project also run physical education activities to help improve children’s psychosocial wellbeing. | D161: https://Uganda.savethechildren.net | E161: NGO | F161: National | G161: Education | H161: Monitoring Evaluation Accountability and Learning (MEAL) | I161: IT/Digital/ICT4D | L161: Education, Monitoring Evaluation Accountability and Learning (MEAL), IT/Digital/ICT4D, , | M161: Implementer | N161: Project | O161: =COUNTIFS(Conveners!$B$2:$B$1798,"="&A161,Conveners!$AA$2:$AA$1798,">0") -> 0 | P161: =COUNTIFS(Challenges!$H$2:$H$982,"="&A161,Challenges!$H$2:$H$982,"<>") -> 0 | Q161: =COUNTIFS(Innovations!$C$2:$F$1628,"="&A161, Innovations!$C$2:$F$1628,"<>") -> 0 | R161: =COUNTIFS(Referrals!#REF!:'Referrals'!H2137,"="&A161, Referrals!#REF!:'Referrals'!H2137,"<>") ->  | S161: =COUNTIFS(Matchmaker!$B$2:$B$999,"="&A161,Matchmaker!$H$2:$H$999,"<>") -> 0 | T161: =COUNTIFS(Matchmaker!$B$2:$B$999,"="&A161,Matchmaker!$J$2:$J$999,"<>") -> 0 | U161: =COUNTIFS(Support!$C$2:$C$973,"="&A161,Support!$C$2:$C$973,"<>") -> 0 | AB161: uganda@savethechildren.org | AD161: 256 (0)393 260063 | AF161: Plot 2163, Dadiri Close, Muyenga (off Tank Hill Road) | AI161: P.O. Box 12018, Kampala – Uganda.
A162: AUC-UG | B162: AFRICA UNION OF CONSERVATIONIST (AUC) | C162: African Union of Conservationists (AUC) has been established to be the biggest Union of Conservationists in Africa, to champion conservation and development integration. It is an independent nongovernmental organization mandated to promote contemporary conservation activities, facilitate joint work with local NGOs, CBOs, CSOs, local authorities, and governments among its members. The Strategy of the Union is to provide essential framework and direction to Africa to arrest the current biodiversity loss. | D162: http://www.afruc.org/ | E162: NGO | F162: Global / Multi-country / Foreign | G162: Energy/Environment | H162: Multi-sectoral | L162: Energy/Environment, Multi-sectoral, , , | M162: Implementer | N162: Multilateral | O162: =COUNTIFS(Conveners!$B$2:$B$1798,"="&A162,Conveners!$AA$2:$AA$1798,">0") -> 0 | P162: =COUNTIFS(Challenges!$H$2:$H$982,"="&A162,Challenges!$H$2:$H$982,"<>") -> 0 | Q162: =COUNTIFS(Innovations!$C$2:$F$1628,"="&A162, Innovations!$C$2:$F$1628,"<>") -> 0 | R162: =COUNTIFS(Referrals!B150:'Referrals'!H2138,"="&A162, Referrals!B150:'Referrals'!H2138,"<>") -> 0 | S162: =COUNTIFS(Matchmaker!$B$2:$B$999,"="&A162,Matchmaker!$H$2:$H$999,"<>") -> 0 | T162: =COUNTIFS(Matchmaker!$B$2:$B$999,"="&A162,Matchmaker!$J$2:$J$999,"<>") -> 0 | U162: =COUNTIFS(Support!$C$2:$C$973,"="&A162,Support!$C$2:$C$973,"<>") -> 0 | V162: 0 | Z162: Raymond Katebaka | AA162: Head of Environment & Development | AB162: rkatebaka@afruc.org | AD162: 256 782909816 | AE162: African Union of Conservationists (AUC) Makerere University Botanical Garden P.O.Box 28973 Kampala Uganda
A163: AULOGO-UH | B163: AULOGO MEDIA/COMMUNICATION SERVICES LIMITED | C163: Aulogo provide Media services to both the refugees and host community e.g. share information like news broad cast, local radio talk shows, radio advertisements, profiling and sharing motivational experiences of refugees on line. We host RWCs for radio talk shows and also provide training on public speaking with support from NGOs implementing activities within the Refugee response. | D163: www.aulogo.com | E163: For-profit | F163: Subnational and settlement-level | G163: Media/Communication | H163: Social Behavioral Change Communication/Community Mobilization | L163: Media/Communication, Social Behavioral Change Communication/Community Mobilization, , , | M163: Private Sector | N163: Social Enterprise | O163: =COUNTIFS(Conveners!$B$2:$B$1798,"="&A163,Conveners!$AA$2:$AA$1798,">0") -> 0 | P163: =COUNTIFS(Challenges!$H$2:$H$982,"="&A163,Challenges!$H$2:$H$982,"<>") -> 0 | Q163: =COUNTIFS(Innovations!$C$2:$F$1628,"="&A163, Innovations!$C$2:$F$1628,"<>") -> 0 | R163: =COUNTIFS(Referrals!B152:'Referrals'!H2140,"="&A163, Referrals!B152:'Referrals'!H2140,"<>") -> 0 | S163: =COUNTIFS(Matchmaker!$B$2:$B$999,"="&A163,Matchmaker!$H$2:$H$999,"<>") -> 0 | T163: =COUNTIFS(Matchmaker!$B$2:$B$999,"="&A163,Matchmaker!$J$2:$J$999,"<>") -> 0 | U163: =COUNTIFS(Support!$C$2:$C$973,"="&A163,Support!$C$2:$C$973,"<>") -> 0 | V163: 0 | W163: Refugee-Led Organisation | Z163: Asiimwe Julius | AA163: Manager | AB163: aulogomediaservices@gmail.com | AD163: 789747869 | AF163: Nkoma C, Rwamwanja refugee settlement | AG163: Adjumani | AH163: Adjumani | AI163: Adjumani town (Moyo road) | AJ163: Adjumani | AK163: ULEARN STAKEHOLDERS MAPPING EXERCISE (Fri 3/26/2021) | AL163: ULEARN
A164: AUPWAE-UG | B164: ASSOCIATION OF UGANDA PROFESSIONAL WOMEN IN AGRICULTURE AND ENVIRONMENT | C164: Association of Uganda Professional Women in Agriculture and Environment (AUPWAE) is transferring clean energy technologies to the rural women by empowering them to be able to build and use the lorena improved energy savings stoves. AUPWAE is interested in enable the rural woman to be able to produce and use briquettes for consumption and income generation so as to increase income and improve their livelihoods and promote improved welfare of rural women, the girl child and professional women in agriculture and environment by advocating and lobbying for policies and interventions which create opportunities for their skills and knowledge development. | D164: http://aupwae.net/ | E164: NGO | F164: National | G164: Energy/Environment | H164: Livelihoods / (social) Entrepreneurship | I164: IT/Digital/ICT4D | L164: Energy/Environment, Livelihoods / (social) Entrepreneurship, IT/Digital/ICT4D, , | M164: Implementer | N164: Association | O164: =COUNTIFS(Conveners!$B$2:$B$1798,"="&A164,Conveners!$AA$2:$AA$1798,">0") -> 1 | P164: =COUNTIFS(Challenges!$H$2:$H$982,"="&A164,Challenges!$H$2:$H$982,"<>") -> 0 | Q164: =COUNTIFS(Innovations!$C$2:$F$1628,"="&A164, Innovations!$C$2:$F$1628,"<>") -> 0 | R164: =COUNTIFS(Referrals!B153:'Referrals'!H2141,"="&A164, Referrals!B153:'Referrals'!H2141,"<>") -> 0 | S164: =COUNTIFS(Matchmaker!$B$2:$B$999,"="&A164,Matchmaker!$H$2:$H$999,"<>") -> 0 | T164: =COUNTIFS(Matchmaker!$B$2:$B$999,"="&A164,Matchmaker!$J$2:$J$999,"<>") -> 0 | U164: =COUNTIFS(Support!$C$2:$C$973,"="&A164,Support!$C$2:$C$973,"<>") -> 0 | V164: 1 | Z164: Grace Okiror | AA164: Contact person | AB164: info@aupwae.net | AC164: aupwae2010@gmail.com | AD164: 256 772 389548 | AE164: Adeline Muheebwa Email ademuheebwa@gmail.com/info@aupwae.net Phone +256 772 415029 | AK164: This is an assocation | AL164: WOMEN LED ORG
A165: AUSAID-UG | B165: AUSTRALIAN AGENCY FOR INTERNATIONAL DEVELOPMENT | C165: Australian Aid helps in promoting prosperity, reducing poverty, enhancing stability and performance framework making performance count: enhancing the accountability and effectiveness of Australian aid outline key aspects of our aid program. AUSAID works to make Australia stronger, safer and more prosperous, to provide timely and responsive consular and passport services, and to ensure a secure Australian government presence overseas. | D165: https://dfat.gov.au/aid/pages/australias-aid-program.aspx | E165: Donor | F165: Global / Multi-country / Foreign | G165: Protection | I165: Economic Development | L165: Protection, , Economic Development, , | M165: Implementer | N165: Multilateral | O165: =COUNTIFS(Conveners!$B$2:$B$1798,"="&A165,Conveners!$AA$2:$AA$1798,">0") -> 0 | P165: =COUNTIFS(Challenges!$H$2:$H$982,"="&A165,Challenges!$H$2:$H$982,"<>") -> 0 | Q165: =COUNTIFS(Innovations!$C$2:$F$1628,"="&A165, Innovations!$C$2:$F$1628,"<>") -> 0 | R165: =COUNTIFS(Referrals!B154:'Referrals'!H2142,"="&A165, Referrals!B154:'Referrals'!H2142,"<>") -> 0 | S165: =COUNTIFS(Matchmaker!$B$2:$B$999,"="&A165,Matchmaker!$H$2:$H$999,"<>") -> 0 | T165: =COUNTIFS(Matchmaker!$B$2:$B$999,"="&A165,Matchmaker!$J$2:$J$999,"<>") -> 0 | U165: =COUNTIFS(Support!$C$2:$C$973,"="&A165,Support!$C$2:$C$973,"<>") -> 0 | V165: 0 | Z165: Günter Engelits | AA165: Head of Office | AB165: guenter.engelits@ada.gv.at
A166: AUTMO-UG | B166: AUTMO | C166: Autmo is developing a temperature band and display board to continuously monitor neonatal temperatures during and after admissions. The band has a screen that displays temperature ranges with colors that light according to the baby's temperature range(green light for normal temperatures, red light for high temperatures and orange for low temperatures). | D166: https://www.f6s.com/autmo | E166: Social enterprise | F166: National | G166: Health | H166: Engineering/Infrastructure | L166: Health, Engineering/Infrastructure, , , | M166: Private Sector | N166: Startup | O166: =COUNTIFS(Conveners!$B$2:$B$1798,"="&A166,Conveners!$AA$2:$AA$1798,">0") -> 0 | P166: =COUNTIFS(Challenges!$H$2:$H$982,"="&A166,Challenges!$H$2:$H$982,"<>") -> 0 | Q166: =COUNTIFS(Innovations!$C$2:$F$1628,"="&A166, Innovations!$C$2:$F$1628,"<>") -> 1 | R166: =COUNTIFS(Referrals!B155:'Referrals'!H2143,"="&A166, Referrals!B155:'Referrals'!H2143,"<>") -> 0 | S166: =COUNTIFS(Matchmaker!$B$2:$B$999,"="&A166,Matchmaker!$H$2:$H$999,"<>") -> 0 | T166: =COUNTIFS(Matchmaker!$B$2:$B$999,"="&A166,Matchmaker!$J$2:$J$999,"<>") -> 0 | U166: =COUNTIFS(Support!$C$2:$C$973,"="&A166,Support!$C$2:$C$973,"<>") -> 0 | V166: 1 | Z166: Jow Agaba | AA166: CTO | AB166: camtech@must.ac.ug
A167: AVACIDAFRICA-UG | B167: AVACIDAFRICA | C167: AVACIDAFRICA is a social enterprise development organization that focuses on the development of value chain linked community enterprises for the integration of productive resource protection, production, and use by linking value chain related opportunities to markets using farmer created and owned agribusiness organizations that intersect along agricultural value chains that the producers engage with. We link with governments, ICT4D companies, investment organizations, development partners, and value chain focused agribusiness enterprises in a public private perspective using technology solutions whose adoption we champion. | D167: www.avacidafrica.org | E167: For-profit | F167: National | G167: Food Security and Agriculture | H167: Nutrition | I167: IT/Digital/ICT4D | J167: Monitoring Evaluation Accountability and Learning (MEAL) | K167: Multi-sectoral | L167: Food Security and Agriculture, Nutrition, IT/Digital/ICT4D, Monitoring Evaluation Accountability and Learning (MEAL), Multi-sectoral | M167: Private Sector | N167: Social Enterprise | O167: =COUNTIFS(Conveners!$B$2:$B$1798,"="&A167,Conveners!$AA$2:$AA$1798,">0") -> 0 | P167: =COUNTIFS(Challenges!$H$2:$H$982,"="&A167,Challenges!$H$2:$H$982,"<>") -> 0 | Q167: =COUNTIFS(Innovations!$C$2:$F$1628,"="&A167, Innovations!$C$2:$F$1628,"<>") -> 1 | R167: =COUNTIFS(Referrals!B156:'Referrals'!H2144,"="&A167, Referrals!B156:'Referrals'!H2144,"<>") -> 0 | S167: =COUNTIFS(Matchmaker!$B$2:$B$999,"="&A167,Matchmaker!$H$2:$H$999,"<>") -> 0 | T167: =COUNTIFS(Matchmaker!$B$2:$B$999,"="&A167,Matchmaker!$J$2:$J$999,"<>") -> 0 | U167: =COUNTIFS(Support!$C$2:$C$973,"="&A167,Support!$C$2:$C$973,"<>") -> 0 | V167: 1 | Z167: Ocilaje Michael | AA167: Board Director | AB167: info@avacidafrica.com | AC167: ocilaje@gmail.com | AD167: 0785 369829 | AE167: info@avacidafrica.org | AL167: DIF APPLICANT, LINS
